Col. Code,Agency,Check No.,Payee,Month,Day,Year,Purpose,Source,Amount
48,J.F. Drake State,208483,ENTERPRISE RENT-A-CAR,Oct,31,2012,Materials and Supplies,PERKINS FUNDS,$205.20
48,J.F. Drake State,208484,"HENRY, KARL W. SR.",Oct,31,2012,Out-of-State Travel,NAT'L SCIENCE FOUNDATION,$86.07
48,J.F. Drake State,208485,NICK KSEPKA,Oct,31,2012,In-State Travel,TITLE III,$683.52
48,J.F. Drake State,208486,ROGER CHEN,Oct,31,2012,In-State Travel,TITLE III,$989.46
48,J.F. Drake State,208487,SCRIP-SAFE SECURITY,Oct,31,2012,Materials and Supplies,,$152.00
48,J.F. Drake State,106201,SUCCESS MARKETING,Oct,31,2012,Advertising and Promotions,UNRESTRICTED,"$13,870.00"
48,J.F. Drake State,208488,BEST BOOKS,Oct,31,2012,Books,TITLE III,"$3,265.55"
48,J.F. Drake State,302666,PROMISE C OGWU,Oct,31,2012,Hourly Wages,UNRESTRICTED,$996.00
48,J.F. Drake State,90003940,DEMICA SHERMIR ALLISON,Oct,31,2012,Hourly Wages,,$860.00
48,J.F. Drake State,90003941,JULIA A ARNETT,Oct,31,2012,Instructional Salaries - Tempo,UNRESTRICTED,$225.00
48,J.F. Drake State,90003942,NINYANA N ASHBY,Oct,31,2012,Support Personnel Salaries - S,UNRESTRICTED,$692.02
48,J.F. Drake State,90003943,LYSA AUGUSTIN,Oct,31,2012,Instructional Salaries - Tempo,ADULT ED,$528.00
48,J.F. Drake State,90003944,CAROLYN AVRITTE,Oct,31,2012,Instructional Salaries - Tempo,UNRESTRICTED,"$2,460.00"
48,J.F. Drake State,90003945,ZELDA M AZOR,Oct,31,2012,Instructional Salaries - Tempo,UNRESTRICTED,"$2,670.00"
48,J.F. Drake State,90003946,JUDY M BAKER,Oct,31,2012,Support Personnel Salaries - S,UNRESTRICTED,"$2,634.33"
48,J.F. Drake State,90003947,NELSON E BARNES,Oct,31,2012,Instructional Salaries - Tempo,UNRESTRICTED,"$1,012.50"
48,J.F. Drake State,90003948,NICOLE CLARESE BARNETT,Oct,31,2012,Other Professional Salaries -,ADULT ED,"$4,166.67"
48,J.F. Drake State,90003949,BEN BATTLE,Oct,31,2012,Instructional Salaries - Regul,UNRESTRICTED,"$5,602.89"
48,J.F. Drake State,90003950,ANGELA NICOLE BELL,Oct,31,2012,Instructional Salaries - Regul,UNRESTRICTED,"$5,520.33"
48,J.F. Drake State,90003952,PATRICE BIVINS,Oct,31,2012,Support Personnel Salaries - S,STUDENT SUPPORT SERVICES,"$1,964.25"
48,J.F. Drake State,90003953,TRACY H BOND,Oct,31,2012,Instructional Salaries - Tempo,UNRESTRICTED,$337.50
48,J.F. Drake State,90003954,STEPHANIE JONES BOUNDS,Oct,31,2012,Instructional Salaries - Tempo,UNRESTRICTED,$900.00
48,J.F. Drake State,90003955,JOSHUA N BRANTLEY,Oct,31,2012,Hourly Wages,STUDENT SUPPORT SERVICES,$475.00
48,J.F. Drake State,90003956,CHERYL BRAWLEY-KELLY,Oct,31,2012,Instructional Salaries - Tempo,UNRESTRICTED,"$1,620.00"
48,J.F. Drake State,90003957,LASHONDA D BROWN,Oct,31,2012,Instructional Salaries - Tempo,UNRESTRICTED,$337.50
48,J.F. Drake State,90003958,BRUCE A BULLUCK,Oct,31,2012,Other Professional Salaries -,UNRESTRICTED,"$6,450.08"
48,J.F. Drake State,90003959,KHALILAH BURTON,Oct,31,2012,Instructional Salaries - Tempo,UNRESTRICTED,"$1,125.00"
48,J.F. Drake State,90003960,LISA G BURTON,Oct,31,2012,Other Professional Salaries -,UNRESTRICTED,"$4,166.67"
48,J.F. Drake State,90003961,DERICK R CARPENAY,Oct,31,2012,Instructional Salaries - Tempo,UNRESTRICTED,$337.50
48,J.F. Drake State,90003962,ROCHELLE CATTAGE,Oct,31,2012,Hourly Wages,NAT'L SCIENCE FOUNDATION,$655.00
48,J.F. Drake State,90003963,KEMBA CHAMBERS,Oct,31,2012,Other Professional Salaries -,UNRESTRICTED,"$7,360.42"
48,J.F. Drake State,90003964,KATIE E CHANCE,Oct,31,2012,Support Personnel Salaries - S,UNRESTRICTED,"$3,452.08"
48,J.F. Drake State,90003965,ROGER CHEN,Oct,31,2012,Hourly Wages,,"$2,231.25"
48,J.F. Drake State,90003966,ADAM CLARK,Oct,31,2012,Instructional Salaries - Regul,UNRESTRICTED,"$5,230.89"
48,J.F. Drake State,90003967,TASKA S CLARK,Oct,31,2012,Support Personnel Salaries - S,UNRESTRICTED,"$2,262.08"
48,J.F. Drake State,90003969,CARLA R CLIFT,Oct,31,2012,Other Professional Salaries -,UNRESTRICTED,"$5,609.75"
48,J.F. Drake State,90003970,RICHARD COLLIE,Oct,31,2012,Instructional Salaries - Tempo,UNRESTRICTED,$225.00
48,J.F. Drake State,90003970,RICHARD COLLIE,Oct,31,2012,Other Professional Salaries -,STUDENT SUPPORT SERVICES,"$3,750.00"
48,J.F. Drake State,90003971,TOMEKA CROSS,Oct,31,2012,Support Personnel Salaries - S,UNRESTRICTED,"$2,187.33"
48,J.F. Drake State,90003972,DEIONE L CRUTCHER,Oct,31,2012,Hourly Wages,ADULT ED,"$1,230.00"
48,J.F. Drake State,90003973,CHRISTINE H DAVIS,Oct,31,2012,Instructional Salaries - Regul,UNRESTRICTED,"$5,602.89"
48,J.F. Drake State,90003974,MATTIE D DAVIS,Oct,31,2012,Instructional Salaries - Regul,UNRESTRICTED,"$6,641.89"
48,J.F. Drake State,90003975,BRANDIE A DEL VALLE,Oct,31,2012,Instructional Salaries - Tempo,UNRESTRICTED,$810.00
48,J.F. Drake State,90003976,MARLO DRAKE,Oct,31,2012,Support Personnel Salaries - S,UNRESTRICTED,"$2,477.38"
48,J.F. Drake State,90003976,MARLO DRAKE,Oct,31,2012,Support Personnel Salaries - S,,$825.79
48,J.F. Drake State,90003978,ANTHONY H DRAPER,Oct,31,2012,Hourly Wages,,$600.00
48,J.F. Drake State,90003979,DARRELL J ECHOLS,Oct,31,2012,Instructional Salaries - Regul,UNRESTRICTED,"$4,565.11"
48,J.F. Drake State,90003981,MONICA L EDMONDS,Oct,31,2012,Instructional Salaries - Tempo,UNRESTRICTED,$337.50
48,J.F. Drake State,90003982,VERNESSA M EDWARDS,Oct,31,2012,Instructional Salaries - Tempo,UNRESTRICTED,$562.50
48,J.F. Drake State,90003983,CHRISTIANA A OPARA EGBUJO,Oct,31,2012,Instructional Salaries - Tempo,UNRESTRICTED,$600.00
48,J.F. Drake State,90003984,RONALD E EGSON,Oct,31,2012,Instructional Salaries - Tempo,UNRESTRICTED,$337.50
48,J.F. Drake State,90003984,RONALD E EGSON,Oct,31,2012,Instructional Salaries - Regul,UNRESTRICTED,"$4,379.00"
48,J.F. Drake State,90003985,ROSELINE C ELIKE,Oct,31,2012,Instructional Salaries - Tempo,UNRESTRICTED,"$2,670.00"
48,J.F. Drake State,90003986,LESLEY-ANNE TOYO ENG,Oct,31,2012,Hourly Wages,UNRESTRICTED,"$1,690.00"
48,J.F. Drake State,90003987,AVA D FARR,Oct,31,2012,Instructional Salaries - Regul,,"$5,268.56"
48,J.F. Drake State,90003988,VICTORIA FARRAR LONG,Oct,31,2012,Support Personnel Salaries - S,UNRESTRICTED,"$2,262.08"
48,J.F. Drake State,90003989,GAIL E FISCH,Oct,31,2012,Instructional Salaries - Regul,ADULT ED,"$2,687.50"
48,J.F. Drake State,90003990,EDWIN T FORBES,Oct,31,2012,Instructional Salaries - Regul,UNRESTRICTED,"$4,062.58"
48,J.F. Drake State,90003990,EDWIN T FORBES,Oct,31,2012,Instructional Salaries - Tempo,UNRESTRICTED,$337.50
48,J.F. Drake State,90003991,HORACE L FRANKLIN JR,Oct,31,2012,Instructional Salaries - Tempo,UNRESTRICTED,$292.50
48,J.F. Drake State,90003991,HORACE L FRANKLIN JR,Oct,31,2012,Administrative Salaries- Sched,UNRESTRICTED,"$7,165.50"
48,J.F. Drake State,90003992,MATTIE B FREEMAN,Oct,31,2012,Instructional Salaries - Tempo,UNRESTRICTED,"$2,280.00"
48,J.F. Drake State,90003993,ALEXANDREA L FRYE,Oct,31,2012,Support Personnel Salaries - S,UNRESTRICTED,"$3,079.83"
48,J.F. Drake State,90003994,WENDY F GANNON,Oct,31,2012,Instructional Salaries - Tempo,UNRESTRICTED,$337.50
48,J.F. Drake State,90003994,WENDY F GANNON,Oct,31,2012,Instructional Salaries - Tempo,,"$2,415.00"
48,J.F. Drake State,90003995,BONNIE GARRETT,Oct,31,2012,Instructional Salaries - Tempo,UNRESTRICTED,"$1,125.00"
48,J.F. Drake State,90003996,DENISE CLEOSHI GAYMON,Oct,31,2012,Other Professional Salaries -,,"$3,166.67"
48,J.F. Drake State,90003997,SYMMETRIS K GOHANNA,Oct,31,2012,Instructional Salaries - Regul,UNRESTRICTED,"$4,890.33"
48,J.F. Drake State,90003997,SYMMETRIS K GOHANNA,Oct,31,2012,Instructional Salaries - Tempo,UNRESTRICTED,$675.00
48,J.F. Drake State,90003998,LARDELL GOODLOE JR,Oct,31,2012,Instructional Salaries - Regul,UNRESTRICTED,"$5,009.89"
48,J.F. Drake State,90003998,LARDELL GOODLOE JR,Oct,31,2012,Instructional Salaries - Tempo,SESP,"$1,200.00"
48,J.F. Drake State,90003999,TIFFANY R GREEN,Oct,31,2012,Support Personnel Salaries - S,CAREER COACHES,"$1,181.60"
48,J.F. Drake State,90004000,TIMOTHY RYAN GREEN,Oct,31,2012,Instructional Salaries - Regul,UNRESTRICTED,"$4,120.33"
48,J.F. Drake State,90004000,TIMOTHY RYAN GREEN,Oct,31,2012,Instructional Salaries - Tempo,UNRESTRICTED,$225.00
48,J.F. Drake State,90004001,VICKIE E GREEN,Oct,31,2012,Instructional Salaries - Regul,,"$3,840.25"
48,J.F. Drake State,90004002,ROBERT N GRISSIM,Oct,31,2012,Instructional Salaries - Regul,UNRESTRICTED,"$3,646.17"
48,J.F. Drake State,90004003,CHARLES GROSS,Oct,31,2012,Instructional Salaries - Tempo,UNRESTRICTED,"$1,012.50"
48,J.F. Drake State,90004004,SAMUEL V GUISHARD,Oct,31,2012,Instructional Salaries - Tempo,UNRESTRICTED,"$1,687.50"
48,J.F. Drake State,90004005,MANELZA CRAWFORD HAMBRICK,Oct,31,2012,Support Personnel Salaries - S,UNRESTRICTED,"$2,485.42"
48,J.F. Drake State,90004006,ARCHIE LEE HAMLET,Oct,31,2012,Hourly Wages,UNRESTRICTED,$996.00
48,J.F. Drake State,90004007,SHELIA D HAMMON,Oct,31,2012,Instructional Salaries - Regul,UNRESTRICTED,"$5,416.78"
48,J.F. Drake State,90004008,AUNDREA D HANSON,Oct,31,2012,Instructional Salaries - Tempo,UNRESTRICTED,$675.00
48,J.F. Drake State,90004009,GEORGE VICTOR HARLOW III,Oct,31,2012,Hourly Wages,NAT'L SCIENCE FOUNDATION,$430.00
48,J.F. Drake State,90004010,KATRINA J HARRIS,Oct,31,2012,Support Personnel Salaries - S,UNRESTRICTED,$974.50
48,J.F. Drake State,90004010,KATRINA J HARRIS,Oct,31,2012,Support Personnel Salaries - S,,"$2,923.50"
48,J.F. Drake State,90004011,HENRY C HAWKINS,Oct,31,2012,Instructional Salaries - Tempo,SESP,"$1,500.00"
48,J.F. Drake State,90004012,CAROLYN HENDERSON,Oct,31,2012,Instructional Salaries - Regul,UNRESTRICTED,"$4,062.58"
48,J.F. Drake State,90004013,DEXTER R HENRY,Oct,31,2012,Instructional Salaries - Regul,UNRESTRICTED,"$6,416.89"
48,J.F. Drake State,90004013,DEXTER R HENRY,Oct,31,2012,Instructional Salaries - Tempo,SESP,$480.00
48,J.F. Drake State,90004014,KARL W HENRY SR,Oct,31,2012,Instructional Salaries - Regul,UNRESTRICTED,"$7,261.67"
48,J.F. Drake State,90004015,ELBREY WARREN HERRING,Oct,31,2012,Instructional Salaries - Tempo,ADULT ED,"$1,068.00"
48,J.F. Drake State,90004016,ISSAC D HINES,Oct,31,2012,Instructional Salaries - Tempo,UNRESTRICTED,$675.00
48,J.F. Drake State,90004016,ISSAC D HINES,Oct,31,2012,Hourly Wages,NAT'L SCIENCE FOUNDATION,"$1,120.00"
48,J.F. Drake State,90004017,DORIS HINTON,Oct,31,2012,Instructional Salaries - Regul,UNRESTRICTED,"$5,416.78"
48,J.F. Drake State,90004018,KHALID HOLMES,Oct,31,2012,Instructional Salaries - Regul,UNRESTRICTED,"$3,284.25"
48,J.F. Drake State,90004018,KHALID HOLMES,Oct,31,2012,Instructional Salaries - Tempo,UNRESTRICTED,$450.00
48,J.F. Drake State,90004019,PORTIA S HOUSTON,Oct,31,2012,Instructional Salaries - Tempo,UNRESTRICTED,"$1,912.50"
48,J.F. Drake State,90004020,CANDICE HOWELL,Oct,31,2012,Instructional Salaries - Tempo,UNRESTRICTED,$337.50
48,J.F. Drake State,90004021,JAN J HYMAN,Oct,31,2012,Support Personnel Salaries - S,,"$3,229.00"
48,J.F. Drake State,90004023,NEOKA JANE IVEY,Oct,31,2012,Support Personnel Salaries - S,UNRESTRICTED,"$1,964.25"
48,J.F. Drake State,90004023,NEOKA JANE IVEY,Oct,31,2012,Hourly Wages,NAT'L SCIENCE FOUNDATION,"$1,035.00"
48,J.F. Drake State,90004024,VICTOR G JOLLEY,Oct,31,2012,Instructional Salaries - Tempo,UNRESTRICTED,$562.50
48,J.F. Drake State,90004025,DONYALE D JONES,Oct,31,2012,Instructional Salaries - Tempo,UNRESTRICTED,$112.50
48,J.F. Drake State,90004025,DONYALE D JONES,Oct,31,2012,Support Personnel Salaries - S,UNRESTRICTED,"$3,303.42"
48,J.F. Drake State,90004026,PINEY L JORDAN,Oct,31,2012,Instructional Salaries - Tempo,UNRESTRICTED,"$2,820.00"
48,J.F. Drake State,90004027,JUSTIN M KELLY,Oct,31,2012,Instructional Salaries - Tempo,UNRESTRICTED,"$2,137.50"
48,J.F. Drake State,90004028,CHERYL P KEMP,Oct,31,2012,Instructional Salaries - Tempo,UNRESTRICTED,"$1,620.00"
48,J.F. Drake State,90004029,JAPHETH K KESSIO,Oct,31,2012,Instructional Salaries - Tempo,UNRESTRICTED,$337.50
48,J.F. Drake State,90004030,THOMAS B KIBLER,Oct,31,2012,Hourly Wages,,$450.00
48,J.F. Drake State,90004031,NICHOLAS PAUL KSEPKA,Oct,31,2012,Hourly Wages,UNRESTRICTED,"$3,076.50"
48,J.F. Drake State,90004032,HONG THUYDUC LAM,Oct,31,2012,Instructional Salaries - Regul,UNRESTRICTED,"$6,790.11"
48,J.F. Drake State,90004033,JOYCE P LAMAR,Oct,31,2012,Support Personnel Salaries - S,UNRESTRICTED,"$4,568.08"
48,J.F. Drake State,90004034,TELLUS LANGFORD,Oct,31,2012,Instructional Salaries - Tempo,UNRESTRICTED,$337.50
48,J.F. Drake State,90004035,DIANNE T LANZA,Oct,31,2012,Instructional Salaries - Tempo,ADULT ED,"$1,274.00"
48,J.F. Drake State,90004036,ORENTHAL MARC LEWIS,Oct,31,2012,Support Personnel Salaries - S,NAT'L SCIENCE FOUNDATION,"$3,228.75"
48,J.F. Drake State,90004037,STEPHANY L STEINFAITH,Oct,31,2012,Instructional Salaries - Tempo,UNRESTRICTED,$337.50
48,J.F. Drake State,90004038,SHANISSA SHANTE LONDON,Oct,31,2012,Hourly Wages,TITLE III,$600.00
48,J.F. Drake State,90004039,PAMELA LONG,Oct,31,2012,Instructional Salaries - Tempo,UNRESTRICTED,$787.50
48,J.F. Drake State,90004039,PAMELA LONG,Oct,31,2012,Hourly Wages,NAT'L SCIENCE FOUNDATION,"$1,020.00"
48,J.F. Drake State,90004040,JESSICA DANIELLE MALMBERG,Oct,31,2012,Hourly Wages,,$380.00
48,J.F. Drake State,90004041,STEPHEN ROBERT MAURER,Oct,31,2012,Hourly Wages,,$455.00
48,J.F. Drake State,90004042,MICHEAL V MAXTON,Oct,31,2012,Instructional Salaries - Tempo,UNRESTRICTED,$675.00
48,J.F. Drake State,90004043,HELEN T MCALPINE,Oct,31,2012,Administrative Salaries- Sched,UNRESTRICTED,"$14,266.42"
48,J.F. Drake State,90004043,HELEN T MCALPINE,Oct,31,2012,President's Expense Allowance,UNRESTRICTED,$200.00
48,J.F. Drake State,90004043,HELEN T MCALPINE,Oct,31,2012,Housing Allowance,UNRESTRICTED,"$1,000.00"
48,J.F. Drake State,90004043,HELEN T MCALPINE,Oct,31,2012,Employee Taxable Per Diem,,$11.25
48,J.F. Drake State,90004045,DEMETIUS L MCCARTY,Oct,31,2012,Support Personnel Salaries - S,UNRESTRICTED,"$2,187.58"
48,J.F. Drake State,90004046,JERRY L MCCAULLEY,Oct,31,2012,Instructional Salaries - Tempo,UNRESTRICTED,"$1,350.00"
48,J.F. Drake State,90004047,MARCUS R MCINTYRE,Oct,31,2012,Hourly Wages,STUDENT SUPPORT SERVICES,$925.00
48,J.F. Drake State,90004048,MISHIKI A MCINTYRE,Oct,31,2012,Hourly Wages,,$720.00
48,J.F. Drake State,90004049,SCOTTY MCLAUGHLIN,Oct,31,2012,Instructional Salaries - Tempo,UNRESTRICTED,$787.50
48,J.F. Drake State,90004049,SCOTTY MCLAUGHLIN,Oct,31,2012,Instructional Salaries - Regul,UNRESTRICTED,"$7,401.89"
48,J.F. Drake State,90004050,PAMELA F MCTILLER,Oct,31,2012,Instructional Salaries - Tempo,UNRESTRICTED,$337.50
48,J.F. Drake State,90004051,BRADLEY LADALE MCWILLIAMS,Oct,31,2012,Hourly Wages,,$105.00
48,J.F. Drake State,90004052,MARIA YVETTE MEADOR,Oct,31,2012,Support Personnel Salaries - S,STUDENT SUPPORT SERVICES,"$2,559.33"
48,J.F. Drake State,90004053,DEBORAH A MILLING,Oct,31,2012,Instructional Salaries - Regul,UNRESTRICTED,"$5,262.33"
48,J.F. Drake State,90004054,SAMMY J MILTON,Oct,31,2012,Support Personnel Salaries - S,UNRESTRICTED,"$3,452.83"
48,J.F. Drake State,90004055,COURTNEY CHEVON MITCHELL,Oct,31,2012,Hourly Wages,,$60.00
48,J.F. Drake State,90004056,ACOLEA J MOORE,Oct,31,2012,Instructional Salaries - Tempo,UNRESTRICTED,$675.00
48,J.F. Drake State,90004057,ALFRED CROSHAN MOORE,Oct,31,2012,Instructional Salaries - Tempo,UNRESTRICTED,"$1,125.00"
48,J.F. Drake State,90004058,BRUCE D MORRISON,Oct,31,2012,Support Personnel Salaries - S,UNRESTRICTED,"$4,196.17"
48,J.F. Drake State,90004059,JENNIFER O'LINGER,Oct,31,2012,Other Professional Salaries -,UNRESTRICTED,"$6,013.50"
48,J.F. Drake State,90004060,DONALD ORR,Oct,31,2012,Support Personnel Salaries - S,UNRESTRICTED,"$3,824.67"
48,J.F. Drake State,90004061,JENNIFER E PATTERSON,Oct,31,2012,Instructional Salaries - Regul,UNRESTRICTED,"$5,092.58"
48,J.F. Drake State,90004061,JENNIFER E PATTERSON,Oct,31,2012,Instructional Salaries - Tempo,UNRESTRICTED,$337.50
48,J.F. Drake State,90004062,JERROLD DION PHIPPS,Oct,31,2012,Instructional Salaries - Tempo,UNRESTRICTED,"$1,350.00"
48,J.F. Drake State,90004063,MARK PAUL PILOTTE,Oct,31,2012,Instructional Salaries - Tempo,UNRESTRICTED,$412.50
48,J.F. Drake State,90004064,INODU TONY PIRI,Oct,31,2012,Instructional Salaries - Tempo,UNRESTRICTED,$337.50
48,J.F. Drake State,90004065,ELIZABETH A PITCHFORD,Oct,31,2012,Other Professional Salaries -,UNRESTRICTED,"$4,166.67"
48,J.F. Drake State,90004066,GWENDOLYN D POPE,Oct,31,2012,Instructional Salaries - Tempo,UNRESTRICTED,$337.50
48,J.F. Drake State,90004066,GWENDOLYN D POPE,Oct,31,2012,Instructional Salaries - Regul,UNRESTRICTED,"$5,651.75"
48,J.F. Drake State,90004067,FREDRICK O PRUITT,Oct,31,2012,Instructional Salaries - Regul,UNRESTRICTED,"$3,840.25"
48,J.F. Drake State,90004068,MICHAEL RADDEN,Oct,31,2012,Instructional Salaries - Tempo,UNRESTRICTED,"$1,012.50"
48,J.F. Drake State,90004069,LORAINE RAGIN,Oct,31,2012,Instructional Salaries - Regul,UNRESTRICTED,"$3,090.25"
48,J.F. Drake State,90004070,ALICE G RAYMOND,Oct,31,2012,Other Professional Salaries -,,"$8,233.59"
48,J.F. Drake State,90004071,JOYCE L RENTZ,Oct,31,2012,Instructional Salaries - Regul,UNRESTRICTED,"$6,706.33"
48,J.F. Drake State,90004071,JOYCE L RENTZ,Oct,31,2012,Instructional Salaries - Tempo,UNRESTRICTED,$675.00
48,J.F. Drake State,90004072,JOHN REUTTER III,Oct,31,2012,Other Professional Salaries -,,"$7,053.25"
48,J.F. Drake State,90004073,LYSCELLE M REYES,Oct,31,2012,Instructional Salaries - Tempo,UNRESTRICTED,$900.00
48,J.F. Drake State,90004073,LYSCELLE M REYES,Oct,31,2012,Hourly Wages,NAT'L SCIENCE FOUNDATION,$930.00
48,J.F. Drake State,90004074,BILL E RICE,Oct,31,2012,Instructional Salaries - Tempo,UNRESTRICTED,"$2,025.00"
48,J.F. Drake State,90004075,ROXANNE D RICHARDSON,Oct,31,2012,Support Personnel Salaries - S,UNRESTRICTED,"$3,079.83"
48,J.F. Drake State,90004076,MARTHA J ROBERTS,Oct,31,2012,Support Personnel Salaries - S,UNRESTRICTED,"$4,940.33"
48,J.F. Drake State,90004077,WENDY L ROBERTS,Oct,31,2012,Support Personnel Salaries - S,UNRESTRICTED,"$3,228.75"
48,J.F. Drake State,90004078,CHERILYN ROOKS,Oct,31,2012,Instructional Salaries - Tempo,UNRESTRICTED,$300.00
48,J.F. Drake State,90004079,JACQUELINE M SHIVERS,Oct,31,2012,Instructional Salaries - Tempo,ADULT ED,"$2,018.75"
48,J.F. Drake State,90004080,LESLEY SHOTTS,Oct,31,2012,Instructional Salaries - Regul,UNRESTRICTED,"$4,627.58"
48,J.F. Drake State,90004082,AMANDA R SIMPSON,Oct,31,2012,Support Personnel Salaries - S,UNRESTRICTED,"$2,112.00"
48,J.F. Drake State,90004083,PATRICIA GORDON SIMS,Oct,31,2012,Administrative Salaries- Sched,UNRESTRICTED,"$9,245.09"
48,J.F. Drake State,90004084,BHESHAM JERRY SINGH,Oct,31,2012,Hourly Wages,,$600.00
48,J.F. Drake State,90004085,JASON MICHAEL SMITH,Oct,31,2012,Hourly Wages,NAT'L SCIENCE FOUNDATION,"$1,725.00"
48,J.F. Drake State,90004086,RYAN E SMITH,Oct,31,2012,Other Professional Salaries -,,"$5,722.42"
48,J.F. Drake State,90004087,DELORIS A SMOTHERS,Oct,31,2012,Instructional Salaries - Tempo,UNRESTRICTED,$337.50
48,J.F. Drake State,90004087,DELORIS A SMOTHERS,Oct,31,2012,Instructional Salaries - Regul,UNRESTRICTED,"$7,261.67"
48,J.F. Drake State,90004088,JULIE P SPURGEON,Oct,31,2012,Support Personnel Salaries - S,UNRESTRICTED,"$3,303.17"
48,J.F. Drake State,90004089,JASON M STEPHENS,Oct,31,2012,Hourly Wages,STUDENT SUPPORT SERVICES,$884.38
48,J.F. Drake State,90004090,VERLINDSEY B STEWART,Oct,31,2012,Instructional Salaries - Regul,UNRESTRICTED,"$7,001.89"
48,J.F. Drake State,90004090,VERLINDSEY B STEWART,Oct,31,2012,Instructional Salaries - Tempo,UNRESTRICTED,$337.50
48,J.F. Drake State,90004091,CHARLES A SULLINS JR,Oct,31,2012,Instructional Salaries - Tempo,UNRESTRICTED,$337.50
48,J.F. Drake State,90004092,KIMBERLY DEE SULLIVAN,Oct,31,2012,Hourly Wages,NAT'L SCIENCE FOUNDATION,$600.00
48,J.F. Drake State,90004093,SHANNON SUMMERS,Oct,31,2012,Instructional Salaries - Tempo,ADULT ED,$594.00
48,J.F. Drake State,90004094,DOCQUINN N TAYLOR,Oct,31,2012,Instructional Salaries - Tempo,UNRESTRICTED,$337.50
48,J.F. Drake State,90004094,DOCQUINN N TAYLOR,Oct,31,2012,Hourly Wages,STUDENT SUPPORT SERVICES,$930.00
48,J.F. Drake State,90004095,MALCOLM G TAYLOR,Oct,31,2012,Instructional Salaries - Tempo,UNRESTRICTED,$675.00
48,J.F. Drake State,90004096,FORREST BRYANT TEAGUE,Oct,31,2012,Hourly Wages,UNRESTRICTED,"$2,257.50"
48,J.F. Drake State,90004097,HUGH L THOMPSON JR,Oct,31,2012,Instructional Salaries - Tempo,UNRESTRICTED,"$1,575.00"
48,J.F. Drake State,90004098,YOLANDA R TONEY,Oct,31,2012,Instructional Salaries - Tempo,UNRESTRICTED,"$1,012.50"
48,J.F. Drake State,90004099,JOY D TORNQUIST,Oct,31,2012,Instructional Salaries - Tempo,UNRESTRICTED,"$2,160.00"
48,J.F. Drake State,90004100,KRISTIN TREADWAY,Oct,31,2012,Support Personnel Salaries - S,,"$2,931.17"
48,J.F. Drake State,90004101,ELIZABETH A TUGGLE,Oct,31,2012,Instructional Salaries - Tempo,ADULT ED,"$1,248.00"
48,J.F. Drake State,90004102,GILBERT T TURLEY,Oct,31,2012,Other Professional Salaries -,UNRESTRICTED,"$6,886.58"
48,J.F. Drake State,90004103,LARRY CHARLES TURNER,Oct,31,2012,Hourly Wages,,$900.00
48,J.F. Drake State,90004104,KAROL C WADDELL,Oct,31,2012,Hourly Wages,READY TO WORK,"$3,885.00"
48,J.F. Drake State,90004105,ANITA G WALKER,Oct,31,2012,Hourly Wages,,"$1,700.00"
48,J.F. Drake State,90004106,LETITIA E WALKER,Oct,31,2012,Support Personnel Salaries - S,UNRESTRICTED,"$3,229.42"
48,J.F. Drake State,90004107,DEVONA WARNER,Oct,31,2012,Hourly Wages,,$960.00
48,J.F. Drake State,90004108,DWAYNIA WILKERSON,Oct,31,2012,Instructional Salaries - Tempo,UNRESTRICTED,$112.50
48,J.F. Drake State,90004109,CALANDRA S WILLIAMS,Oct,31,2012,Instructional Salaries - Tempo,ADULT ED,$575.00
48,J.F. Drake State,90004110,DAYMETRIE D WILLIAMS,Oct,31,2012,Hourly Wages,,$760.00
48,J.F. Drake State,90004111,KELLY L WILLIAMS,Oct,31,2012,Instructional Salaries - Tempo,UNRESTRICTED,$562.50
48,J.F. Drake State,90004112,RICKY WILLINGHAM,Oct,31,2012,Other Professional Salaries -,,"$6,886.58"
48,J.F. Drake State,90004113,DYLAN J WILSON,Oct,31,2012,Hourly Wages,TITLE III,$650.00
48,J.F. Drake State,90004114,TRACEY L WILSON,Oct,31,2012,Instructional Salaries - Tempo,UNRESTRICTED,$337.50
48,J.F. Drake State,90004115,BRANDI G WINCHESTER,Oct,31,2012,Instructional Salaries - Regul,UNRESTRICTED,"$3,617.83"
48,J.F. Drake State,90004116,GEORGE R WINN,Oct,31,2012,Instructional Salaries - Regul,UNRESTRICTED,"$5,675.67"
48,J.F. Drake State,90004116,GEORGE R WINN,Oct,31,2012,Instructional Salaries - Tempo,UNRESTRICTED,$675.00
48,J.F. Drake State,90004117,CHARLES R WINTER,Oct,31,2012,Support Personnel Salaries - S,UNRESTRICTED,"$1,889.83"
48,J.F. Drake State,90004118,JEANNIE WYNONA YORK,Oct,31,2012,Hourly Wages,NAT'L SCIENCE FOUNDATION,$430.00
48,J.F. Drake State,90004119,DELESHIA D YOUNG,Oct,31,2012,Support Personnel Salaries - S,UNRESTRICTED,"$3,079.83"
48,J.F. Drake State,302667,NINYANA N ASHBY,Oct,31,2012,Annual Leave - Retirement/Term,UNRESTRICTED,$100.85
48,J.F. Drake State,106182,"LANIER,FORD,SHAVER &",Oct,24,2012,Legal Services,UNRESTRICTED,$190.00
48,J.F. Drake State,106183,NEXUS ENERGY CENTER,Oct,24,2012,Other Contractual Services,SESP,"$9,882.00"
48,J.F. Drake State,208457,VICKIE GREEN,Oct,24,2012,In-State Travel,,$156.75
48,J.F. Drake State,208458,THUY LAM,Oct,24,2012,In-State Travel,,$40.00
48,J.F. Drake State,208459,MARIA MEADOR,Oct,24,2012,Out-of-State Travel,STUDENT SUPPORT SERVICES,$385.07
48,J.F. Drake State,208460,"MILLING, DEBORAH",Oct,24,2012,In-State Travel,,$40.00
48,J.F. Drake State,208461,RICHARD COLLIE,Oct,24,2012,Out-of-State Travel,STUDENT SUPPORT SERVICES,$356.91
48,J.F. Drake State,208462,"SHOTTS, LESLEY",Oct,24,2012,Out-of-State Travel,TITLE III,"$1,065.12"
48,J.F. Drake State,208463,"STEWART, VERLINDSEY B.",Oct,24,2012,Out-of-State Travel,TITLE III,$261.52
48,J.F. Drake State,208430,AFFORDABLE LIBRARY PRODUC,Oct,17,2012,Materials and Supplies,TITLE III,$140.00
48,J.F. Drake State,208431,"ALLIANT DATA SYSTEM,INC",Oct,17,2012,Other Contractual Services,TITLE III,"$15,315.00"
48,J.F. Drake State,208432,"ALLIANT DATA SYSTEM,INC",Oct,17,2012,Institutional Use,TITLE III,"$2,250.00"
48,J.F. Drake State,208433,CAROLINA BIOLOGICAL,Oct,17,2012,Materials and Supplies,TITLE III,"$1,479.73"
48,J.F. Drake State,208434,"CONCORD USA, INC",Oct,17,2012,Materials and Supplies,TITLE III,"$3,995.00"
48,J.F. Drake State,208435,GAIL WALKER,Oct,17,2012,In-State Travel,TITLE III,$143.75
48,J.F. Drake State,208436,INLINE ELECTRIC SUPPLY,Oct,17,2012,Materials and Supplies,TITLE III,"$4,661.05"
48,J.F. Drake State,208437,NACUBO,Oct,17,2012,Memberships,TITLE III,"$1,334.00"
48,J.F. Drake State,208438,"RAYMOND, ALICE",Oct,17,2012,Out-of-State Travel,TITLE III,"$1,493.30"
48,J.F. Drake State,208439,"SMITH, RYAN",Oct,17,2012,Out-of-State Travel,TITLE III,$197.82
48,J.F. Drake State,208439,"SMITH, RYAN",Oct,17,2012,In-State Travel,TITLE III,$253.73
48,J.F. Drake State,208440,STAPLES BUS ADVANTAGE,Oct,17,2012,Materials and Supplies,TITLE III,$179.25
48,J.F. Drake State,208440,STAPLES BUS ADVANTAGE,Oct,17,2012,Materials and Supplies,STUDENT SUPPORT SERVICES,$121.03
48,J.F. Drake State,106149,CASTLEBRANCH,Oct,17,2012,Purchases for Resale,AUXILIARY,$805.00
48,J.F. Drake State,106150,"ELLUCIAN CO,LP",Oct,17,2012,Computer Software,UNRESTRICTED,"$12,066.50"
48,J.F. Drake State,106151,"ELLUCIAN CO,LP",Oct,17,2012,Other Contractual Services,UNRESTRICTED,"$17,716.00"
48,J.F. Drake State,106152,"ELLUCIAN CO,LP",Oct,17,2012,Other Contractual Services,UNRESTRICTED,"$17,716.00"
48,J.F. Drake State,106153,"ELLUCIAN CO,LP",Oct,17,2012,Other Contractual Services,UNRESTRICTED,"$17,716.00"
48,J.F. Drake State,106154,"ELLUCIAN CO,LP",Oct,17,2012,In-State Travel,UNRESTRICTED,$900.00
48,J.F. Drake State,106154,"ELLUCIAN CO,LP",Oct,17,2012,Other Contractual Services,UNRESTRICTED,"$3,870.00"
48,J.F. Drake State,106155,"ELLUCIAN CO,LP",Oct,17,2012,Other Contractual Services,UNRESTRICTED,"$17,716.00"
48,J.F. Drake State,106156,ELSEVIER/HESI,Oct,17,2012,Purchases for Resale,AUXILIARY,"$2,946.75"
48,J.F. Drake State,106157,ELSEVIER/HESI,Oct,17,2012,Purchases for Resale,AUXILIARY,"$5,506.20"
48,J.F. Drake State,106158,ELSEVIER/HESI,Oct,17,2012,Purchases for Resale,AUXILIARY,$598.00
48,J.F. Drake State,106159,ELSEVIER/HESI,Oct,17,2012,Purchases for Resale,AUXILIARY,$312.00
48,J.F. Drake State,106160,ELSEVIER/HESI,Oct,17,2012,Purchases for Resale,AUXILIARY,$286.00
48,J.F. Drake State,106161,GED TESTING PROGRAM,Oct,17,2012,Materials and Supplies,UNRESTRICTED,$112.00
48,J.F. Drake State,106162,HUNTSVILLE TIMES,Oct,17,2012,Materials and Supplies,UNRESTRICTED,$244.40
48,J.F. Drake State,106163,MCGRAW HILL EDUCATION,Oct,17,2012,Purchases for Resale,UNRESTRICTED,"$2,376.82"
48,J.F. Drake State,106164,OAKHALL INDUSTRIES,Oct,17,2012,Materials and Supplies,UNRESTRICTED,$58.72
48,J.F. Drake State,106165,PARTY CITY,Oct,17,2012,Materials and Supplies,UNRESTRICTED,$148.16
48,J.F. Drake State,106166,PROGRESSIVE INS,Oct,17,2012,Insurance and Bonding,UNRESTRICTED,$215.00
48,J.F. Drake State,101512,AMERICAN EXPRESS,Oct,15,2012,Out-of-State Travel,,"$4,069.60"
48,J.F. Drake State,151012,CHASE,Oct,15,2012,In-State Travel,,$115.82
48,J.F. Drake State,151012,CHASE,Oct,15,2012,Out-of-State Travel,,$446.48
48,J.F. Drake State,151012,CHASE,Oct,15,2012,Materials and Supplies,UNRESTRICTED,"$1,986.52"
48,J.F. Drake State,151012,CHASE,Oct,15,2012,Advertising and Promotions,UNRESTRICTED,$323.04
48,J.F. Drake State,151012,CHASE,Oct,15,2012,Institutional Use,UNRESTRICTED,"$2,360.49"
48,J.F. Drake State,151012,CHASE,Oct,15,2012,Maintenance and Repairs,PLANT FUNDS,$74.04
48,J.F. Drake State,151012,CHASE,Oct,15,2012,Maintenance and Repairs,UNRESTRICTED,$741.45
48,J.F. Drake State,151012,CHASE,Oct,15,2012,Materials and Supplies,PLANT FUNDS,"$6,139.22"
48,J.F. Drake State,208417,BERNEY OFFICE SOLUTIONS,Oct,10,2012,Materials and Supplies,TITLE III,$84.18
48,J.F. Drake State,208418,GREY HOUSE PUB,Oct,10,2012,Books,TITLE III,$668.50
48,J.F. Drake State,208419,HBCU LIBRARY ALLIANCE,Oct,10,2012,Books,TITLE III,$250.00
48,J.F. Drake State,208420,KATIE CHANCE,Oct,10,2012,In-State Travel,TITLE III,$30.53
48,J.F. Drake State,208421,"LAMAR, JOYCE",Oct,10,2012,Materials and Supplies,TITLE III,$54.90
48,J.F. Drake State,208422,PHI THETA KAPPA HONOR SOC,Oct,10,2012,Memberships,TITLE III,$500.00
48,J.F. Drake State,208423,SAM'S CLUB/WALMART,Oct,10,2012,Materials and Supplies,PERKINS FUNDS,$18.58
48,J.F. Drake State,208424,SEXTON WELDING SUPPLY,Oct,10,2012,Materials and Supplies,TITLE III,"$4,920.48"
48,J.F. Drake State,208425,DELORIS SMOTHERS,Oct,10,2012,Memberships,TITLE III,$110.00
48,J.F. Drake State,208426,STRICKLAND COMPANIES,Oct,10,2012,Buildings and Fixed Equipment,TITLE III,"$4,551.00"
48,J.F. Drake State,208427,GIL TURLEY,Oct,10,2012,Out-of-State Travel,TITLE III,"$2,392.61"
48,J.F. Drake State,106126,ACT,Oct,10,2012,Materials and Supplies,UNRESTRICTED,$270.00
48,J.F. Drake State,106127,AL DEPT OF LABOR,Oct,10,2012,Materials and Supplies,UNRESTRICTED,$100.00
48,J.F. Drake State,106129,BUBBA'S,Oct,10,2012,Materials and Supplies,UNRESTRICTED,$313.75
48,J.F. Drake State,106130,COPELAND CLEANERS,Oct,10,2012,Materials and Supplies,UNRESTRICTED,$307.98
48,J.F. Drake State,106132,"DYNAMIC SECURITY, INC.",Oct,10,2012,Other Contractual Services,UNRESTRICTED,"$5,940.48"
48,J.F. Drake State,106133,ELSEVIER,Oct,10,2012,Purchases for Resale,UNRESTRICTED,"$2,431.38"
48,J.F. Drake State,106135,"MOBILE MINI, INC",Oct,10,2012,Materials and Supplies,UNRESTRICTED,$322.50
48,J.F. Drake State,106137,PITNEY BOWES,Oct,10,2012,Postage,UNRESTRICTED,"$1,200.00"
48,J.F. Drake State,106138,"RAYMOND, ALICE",Oct,10,2012,Institutional Use,UNRESTRICTED,$45.23
48,J.F. Drake State,106139,SCHOOLCRAFT PUB,Oct,10,2012,Purchases for Resale,UNRESTRICTED,$758.63
48,J.F. Drake State,106141,THOMSON REUTERS,Oct,10,2012,Subscriptions,UNRESTRICTED,$265.00
48,J.F. Drake State,106142,"TRUESCREEN, INC",Oct,10,2012,Other Contractual Services,UNRESTRICTED,$104.00
48,J.F. Drake State,106144,VERIZON WIRELESS,Oct,10,2012,Institutional Use,UNRESTRICTED,"$15,180.61"
48,J.F. Drake State,106144,VERIZON WIRELESS,Oct,10,2012,Communications,UNRESTRICTED,"$2,337.51"
48,J.F. Drake State,208428,BANKS INDUSTRIES INC.,Oct,10,2012,Materials and Supplies,TITLE III,"$2,793.12"
48,J.F. Drake State,91282,AT&T,Oct,8,2012,Communications,UNRESTRICTED,$439.29
48,J.F. Drake State,91284,COMCAST,Oct,8,2012,Communications,UNRESTRICTED,$179.14
48,J.F. Drake State,91285,COOK'S PEST CONTROL,Oct,8,2012,Other Contractual Services,UNRESTRICTED,$386.00
48,J.F. Drake State,91286,EARTHLINK/DELTACOM,Oct,8,2012,Communications,UNRESTRICTED,"$5,280.76"
48,J.F. Drake State,91287,HUNTSVILLE UTILITIES,Oct,8,2012,Water and Sewer,UNRESTRICTED,$999.51
48,J.F. Drake State,91287,HUNTSVILLE UTILITIES,Oct,8,2012,Electricity,ARMY GRANT,"$3,393.69"
48,J.F. Drake State,91287,HUNTSVILLE UTILITIES,Oct,8,2012,Gas and Heating Fuel,ARMY GRANT,$7.00
48,J.F. Drake State,91287,HUNTSVILLE UTILITIES,Oct,8,2012,Gas and Heating Fuel,UNRESTRICTED,$339.75
48,J.F. Drake State,91287,HUNTSVILLE UTILITIES,Oct,8,2012,Electricity,UNRESTRICTED,"$22,206.43"
48,J.F. Drake State,71272,AT&T,Oct,8,2012,Communications,UNRESTRICTED,$422.19
48,J.F. Drake State,71274,COMCAST,Oct,8,2012,Communications,UNRESTRICTED,$282.85
48,J.F. Drake State,71275,COOK'S PEST CONTROL,Oct,8,2012,Other Contractual Services,UNRESTRICTED,$386.00
48,J.F. Drake State,71276,EARTHLINK/DELTACOM,Oct,8,2012,Communications,UNRESTRICTED,"$5,288.02"
48,J.F. Drake State,71277,HUNTSVILLE UTILITIES,Oct,8,2012,Water and Sewer,UNRESTRICTED,"$1,240.66"
48,J.F. Drake State,71277,HUNTSVILLE UTILITIES,Oct,8,2012,Electricity,ARMY GRANT,"$4,084.70"
48,J.F. Drake State,71277,HUNTSVILLE UTILITIES,Oct,8,2012,Gas and Heating Fuel,ARMY GRANT,$7.00
48,J.F. Drake State,71277,HUNTSVILLE UTILITIES,Oct,8,2012,Electricity,UNRESTRICTED,"$23,521.30"
48,J.F. Drake State,71277,HUNTSVILLE UTILITIES,Oct,8,2012,Gas and Heating Fuel,UNRESTRICTED,$367.43
48,J.F. Drake State,71278,WOW! BUSINESS,Oct,8,2012,Communications,UNRESTRICTED,"$1,108.42"
48,J.F. Drake State,71279,PITNEY BOWES,Oct,8,2012,Postage,UNRESTRICTED,"$1,200.00"
48,J.F. Drake State,91288,WOW! BUSINESS,Oct,8,2012,Communications,UNRESTRICTED,"$1,108.26"
48,J.F. Drake State,81281,AT&T,Oct,8,2012,Communications,UNRESTRICTED,$432.51
48,J.F. Drake State,81283,COOK'S PEST CONTROL,Oct,8,2012,Other Contractual Services,UNRESTRICTED,$386.00
48,J.F. Drake State,81284,COMCAST,Oct,8,2012,Communications,UNRESTRICTED,$179.14
48,J.F. Drake State,81285,EARTHLINK/DELTACOM,Oct,8,2012,Communications,UNRESTRICTED,"$5,279.28"
48,J.F. Drake State,81286,HUNTSVILLE UTILITIES,Oct,8,2012,Water and Sewer,UNRESTRICTED,"$1,312.29"
48,J.F. Drake State,81286,HUNTSVILLE UTILITIES,Oct,8,2012,Electricity,ARMY GRANT,"$3,708.41"
48,J.F. Drake State,81286,HUNTSVILLE UTILITIES,Oct,8,2012,Gas and Heating Fuel,ARMY GRANT,$7.00
48,J.F. Drake State,81286,HUNTSVILLE UTILITIES,Oct,8,2012,Electricity,UNRESTRICTED,"$24,962.90"
48,J.F. Drake State,81286,HUNTSVILLE UTILITIES,Oct,8,2012,Gas and Heating Fuel,UNRESTRICTED,$343.56
48,J.F. Drake State,81287,WOW! BUSINESS,Oct,8,2012,Communications,UNRESTRICTED,"$1,108.26"
48,J.F. Drake State,81288,PITNEY BOWES,Oct,8,2012,Postage,UNRESTRICTED,"$1,200.00"
48,J.F. Drake State,302665,PREMA A MONTEIRO,Oct,4,2012,Instructional Salaries - Regul,UNRESTRICTED,"$4,609.00"
48,J.F. Drake State,208394,ACSHRMA,Oct,3,2012,In-State Travel,TITLE III,$100.00
48,J.F. Drake State,208395,ACCS PRESIDENTS' ASSOC,Oct,3,2012,Institutional Use,TITLE III,$300.00
48,J.F. Drake State,208396,"APPLE COMPUTER, INC.",Oct,3,2012,Materials and Supplies,STUDENT SUPPORT SERVICES,"$2,541.00"
48,J.F. Drake State,208397,BERNEY OFFICE SOLUTIONS,Oct,3,2012,Materials and Supplies,TITLE III,$18.66
48,J.F. Drake State,208398,BERNEY OFFICE SOLUTIONS,Oct,3,2012,Materials and Supplies,ALLIED HEALTH,"$1,595.00"
48,J.F. Drake State,208399,BERNEY OFFICE SOLUTIONS,Oct,3,2012,Materials and Supplies,TITLE III,"$5,257.86"
48,J.F. Drake State,208400,BERNEY OFFICE SOLUTIONS,Oct,3,2012,Materials and Supplies,STUDENT SUPPORT SERVICES,"$5,257.86"
48,J.F. Drake State,208401,HARPER COLLINS PUBLISHERS,Oct,3,2012,Books,TITLE III,$295.32
48,J.F. Drake State,208402,PREMA A MONTEIRO,Oct,3,2012,Out-of-State Travel,TITLE III,$292.72
48,J.F. Drake State,208403,SCRIP-SAFE SECURITY,Oct,3,2012,Materials and Supplies,TITLE III,$149.00
48,J.F. Drake State,208404,STRICKLAND COMPANIES,Oct,3,2012,Buildings and Fixed Equipment,TITLE III,"$2,866.00"
48,J.F. Drake State,208405,WEATHERTECH DIST,Oct,3,2012,Materials and Supplies,TITLE III,"$1,953.07"
48,J.F. Drake State,106090,AT&T LONG DISTANCE SERV.,Oct,3,2012,Communications,UNRESTRICTED,$46.14
48,J.F. Drake State,106091,BANKS INDUSTRIES INC.,Oct,3,2012,Materials and Supplies,UNRESTRICTED,"$1,846.50"
48,J.F. Drake State,106092,CENGAGE LEARNING,Oct,3,2012,Purchases for Resale,UNRESTRICTED,$207.86
48,J.F. Drake State,106093,KEMBA CHAMBERS,Oct,3,2012,Out-of-State Travel,,$219.94
48,J.F. Drake State,106094,CHEVRON CARD SERVICES,Oct,3,2012,Gasoline and Oil - Motor Vehic,UNRESTRICTED,$987.48
48,J.F. Drake State,106096,KOORSEN PROTECTION SERVIC,Oct,3,2012,Other Contractual Services,UNRESTRICTED,$685.77
48,J.F. Drake State,106097,"LANIER,FORD,SHAVER &",Oct,3,2012,Legal Services,UNRESTRICTED,"$1,311.00"
48,J.F. Drake State,106098,"OFFICE DEPOT, INC.",Oct,3,2012,Materials and Supplies,UNRESTRICTED,$99.51
48,J.F. Drake State,106099,PEARSON,Oct,3,2012,Purchases for Resale,UNRESTRICTED,"$4,587.08"
48,J.F. Drake State,106100,STANLEY STEEMER,Oct,3,2012,Materials and Supplies,UNRESTRICTED,$503.86
48,J.F. Drake State,106102,THE ALABAMA LAWNMASTERS,Oct,3,2012,Other Contractual Services,UNRESTRICTED,"$3,045.00"
48,J.F. Drake State,106102,THE ALABAMA LAWNMASTERS,Oct,3,2012,Other Contractual Services,ARMY GRANT,$650.00
48,J.F. Drake State,106103,UPS,Oct,3,2012,Freight,UNRESTRICTED,$31.42
48,J.F. Drake State,106104,WASTE MANAGEMENT OF NORTH,Oct,3,2012,Other Contractual Services,UNRESTRICTED,$670.65
48,J.F. Drake State,106104,WASTE MANAGEMENT OF NORTH,Oct,3,2012,Other Contractual Services,ARMY GRANT,$276.27
48,J.F. Drake State,302663,TRACY H BOND,Oct,2,2012,Accounts Payable,UNRESTRICTED,$265.36
48,J.F. Drake State,302650,STEPHANIE JONES BOUNDS,Sep,28,2012,Instructional Salaries - Tempo,UNRESTRICTED,$900.00
48,J.F. Drake State,302651,CHRISTINE H DAVIS,Sep,28,2012,Instructional Salaries - Regul,UNRESTRICTED,"$5,602.89"
48,J.F. Drake State,302652,ANTHONY H DRAPER,Sep,28,2012,Hourly Wages,TITLE III,$150.00
48,J.F. Drake State,302653,DARRELL J ECHOLS,Sep,28,2012,Instructional Salaries - Regul,UNRESTRICTED,"$4,565.11"
48,J.F. Drake State,302654,GEORGE VICTOR HARLOW III,Sep,28,2012,Hourly Wages,NAT'L SCIENCE FOUNDATION,$340.00
48,J.F. Drake State,302655,PAMELA F MCTILLER,Sep,28,2012,Instructional Salaries - Tempo,UNRESTRICTED,$337.50
48,J.F. Drake State,302656,PROMISE C OGWU,Sep,28,2012,Hourly Wages,UNRESTRICTED,"$1,056.00"
48,J.F. Drake State,302657,JULIE P SPURGEON,Sep,28,2012,Support Personnel Salaries - S,UNRESTRICTED,"$3,303.17"
48,J.F. Drake State,302658,KIMBERLY DEE SULLIVAN,Sep,28,2012,Hourly Wages,NAT'L SCIENCE FOUNDATION,$300.00
48,J.F. Drake State,90003768,DEMICA SHERMIR ALLISON,Sep,28,2012,Hourly Wages,,"$1,230.00"
48,J.F. Drake State,90003769,JULIA A ARNETT,Sep,28,2012,Instructional Salaries - Tempo,UNRESTRICTED,$225.00
48,J.F. Drake State,90003770,NINYANA N ASHBY,Sep,28,2012,Support Personnel Salaries - S,UNRESTRICTED,"$2,400.57"
48,J.F. Drake State,90003771,LYSA AUGUSTIN,Sep,28,2012,Instructional Salaries - Tempo,ADULT ED,$682.00
48,J.F. Drake State,90003772,CAROLYN AVRITTE,Sep,28,2012,Instructional Salaries - Tempo,UNRESTRICTED,"$2,385.00"
48,J.F. Drake State,90003773,ZELDA M AZOR,Sep,28,2012,Instructional Salaries - Tempo,UNRESTRICTED,"$2,812.50"
48,J.F. Drake State,90003774,JUDY M BAKER,Sep,28,2012,Support Personnel Salaries - S,UNRESTRICTED,"$2,634.33"
48,J.F. Drake State,90003775,NELSON E BARNES,Sep,28,2012,Instructional Salaries - Tempo,UNRESTRICTED,"$1,012.50"
48,J.F. Drake State,90003776,NICOLE CLARESE BARNETT,Sep,28,2012,Other Professional Salaries -,ADULT ED,"$4,166.67"
48,J.F. Drake State,90003777,BEN BATTLE,Sep,28,2012,Instructional Salaries - Regul,UNRESTRICTED,"$5,602.89"
48,J.F. Drake State,90003778,ANGELA NICOLE BELL,Sep,28,2012,Instructional Salaries - Regul,UNRESTRICTED,"$5,520.33"
48,J.F. Drake State,90003780,PATRICE BIVINS,Sep,28,2012,Support Personnel Salaries - S,STUDENT SUPPORT SERVICES,"$1,964.25"
48,J.F. Drake State,90003781,TRACY H BOND,Sep,28,2012,Instructional Salaries - Tempo,UNRESTRICTED,$337.50
48,J.F. Drake State,90003782,CHERYL BRAWLEY-KELLY,Sep,28,2012,Instructional Salaries - Tempo,UNRESTRICTED,"$1,560.00"
48,J.F. Drake State,90003783,LASHONDA D BROWN,Sep,28,2012,Instructional Salaries - Tempo,UNRESTRICTED,$337.50
48,J.F. Drake State,90003784,BRUCE A BULLUCK,Sep,28,2012,Other Professional Salaries -,UNRESTRICTED,"$6,450.08"
48,J.F. Drake State,90003785,KHALILAH BURTON,Sep,28,2012,Instructional Salaries - Tempo,UNRESTRICTED,"$1,125.00"
48,J.F. Drake State,90003786,LISA G BURTON,Sep,28,2012,Other Professional Salaries -,UNRESTRICTED,"$4,166.67"
48,J.F. Drake State,90003787,DERICK R CARPENAY,Sep,28,2012,Instructional Salaries - Tempo,UNRESTRICTED,$337.50
48,J.F. Drake State,90003788,ROYCE DANTE CARVER,Sep,28,2012,Hourly Wages,STUDENT SUPPORT SERVICES,"$1,140.63"
48,J.F. Drake State,90003789,ROCHELLE CATTAGE,Sep,28,2012,Hourly Wages,NAT'L SCIENCE FOUNDATION,$100.00
48,J.F. Drake State,90003790,KEMBA CHAMBERS,Sep,28,2012,Other Professional Salaries -,UNRESTRICTED,"$7,360.42"
48,J.F. Drake State,90003791,KATIE E CHANCE,Sep,28,2012,Support Personnel Salaries - S,UNRESTRICTED,"$3,452.08"
48,J.F. Drake State,90003792,ROGER CHEN,Sep,28,2012,Hourly Wages,,"$2,493.75"
48,J.F. Drake State,90003793,ADAM CLARK,Sep,28,2012,Instructional Salaries - Regul,UNRESTRICTED,"$5,230.89"
48,J.F. Drake State,90003794,TASKA S CLARK,Sep,28,2012,Support Personnel Salaries - S,UNRESTRICTED,"$2,262.08"
48,J.F. Drake State,90003796,CARLA R CLIFT,Sep,28,2012,Other Professional Salaries -,UNRESTRICTED,"$5,609.75"
48,J.F. Drake State,90003797,RICHARD COLLIE,Sep,28,2012,Instructional Salaries - Tempo,UNRESTRICTED,$225.00
48,J.F. Drake State,90003797,RICHARD COLLIE,Sep,28,2012,Other Professional Salaries -,STUDENT SUPPORT SERVICES,"$3,750.00"
48,J.F. Drake State,90003798,TOMEKA CROSS,Sep,28,2012,Support Personnel Salaries - S,UNRESTRICTED,"$2,187.33"
48,J.F. Drake State,90003799,DEIONE L CRUTCHER,Sep,28,2012,Hourly Wages,ADULT ED,"$1,150.50"
48,J.F. Drake State,90003800,MATTIE D DAVIS,Sep,28,2012,Instructional Salaries - Regul,UNRESTRICTED,"$6,641.89"
48,J.F. Drake State,90003801,BRANDIE A DEL VALLE,Sep,28,2012,Instructional Salaries - Tempo,UNRESTRICTED,$450.00
48,J.F. Drake State,90003802,MARLO DRAKE,Sep,28,2012,Support Personnel Salaries - S,UNRESTRICTED,"$2,477.38"
48,J.F. Drake State,90003802,MARLO DRAKE,Sep,28,2012,Support Personnel Salaries - S,TITLE III,$825.79
48,J.F. Drake State,90003804,MONICA L EDMONDS,Sep,28,2012,Instructional Salaries - Tempo,UNRESTRICTED,$337.50
48,J.F. Drake State,90003805,VERNESSA M EDWARDS,Sep,28,2012,Instructional Salaries - Tempo,UNRESTRICTED,$562.50
48,J.F. Drake State,90003806,CHRISTIANA A OPARA EGBUJO,Sep,28,2012,Instructional Salaries - Tempo,UNRESTRICTED,$660.00
48,J.F. Drake State,90003807,RONALD E EGSON,Sep,28,2012,Instructional Salaries - Tempo,UNRESTRICTED,$337.50
48,J.F. Drake State,90003807,RONALD E EGSON,Sep,28,2012,Instructional Salaries - Regul,UNRESTRICTED,"$4,379.00"
48,J.F. Drake State,90003808,ROSELINE C ELIKE,Sep,28,2012,Instructional Salaries - Tempo,UNRESTRICTED,"$2,250.00"
48,J.F. Drake State,90003809,LESLEY-ANNE TOYO ENG,Sep,28,2012,Hourly Wages,UNRESTRICTED,"$1,450.00"
48,J.F. Drake State,90003810,AVA D FARR,Sep,28,2012,Instructional Salaries - Regul,,"$5,268.56"
48,J.F. Drake State,90003811,VICTORIA FARRAR LONG,Sep,28,2012,Support Personnel Salaries - S,UNRESTRICTED,"$2,262.08"
48,J.F. Drake State,90003812,GAIL E FISCH,Sep,28,2012,Instructional Salaries - Regul,ADULT ED,"$2,687.50"
48,J.F. Drake State,90003813,EDWIN T FORBES,Sep,28,2012,Instructional Salaries - Regul,UNRESTRICTED,"$4,062.58"
48,J.F. Drake State,90003813,EDWIN T FORBES,Sep,28,2012,Instructional Salaries - Tempo,UNRESTRICTED,$337.50
48,J.F. Drake State,90003814,HORACE L FRANKLIN JR,Sep,28,2012,Instructional Salaries - Tempo,UNRESTRICTED,$292.50
48,J.F. Drake State,90003814,HORACE L FRANKLIN JR,Sep,28,2012,Administrative Salaries- Sched,UNRESTRICTED,"$7,165.50"
48,J.F. Drake State,90003815,MATTIE B FREEMAN,Sep,28,2012,Instructional Salaries - Tempo,UNRESTRICTED,"$2,850.00"
48,J.F. Drake State,90003816,ALEXANDREA L FRYE,Sep,28,2012,Support Personnel Salaries - S,UNRESTRICTED,"$3,079.83"
48,J.F. Drake State,90003817,WENDY F GANNON,Sep,28,2012,Instructional Salaries - Tempo,UNRESTRICTED,$337.50
48,J.F. Drake State,90003817,WENDY F GANNON,Sep,28,2012,Instructional Salaries - Tempo,,"$2,695.00"
48,J.F. Drake State,90003818,BONNIE GARRETT,Sep,28,2012,Instructional Salaries - Tempo,UNRESTRICTED,"$1,125.00"
48,J.F. Drake State,90003819,DENISE CLEOSHI GAYMON,Sep,28,2012,Support Personnel Salaries - S,CAREER COACHES,"$3,166.67"
48,J.F. Drake State,90003820,SYMMETRIS K GOHANNA,Sep,28,2012,Instructional Salaries - Regul,UNRESTRICTED,"$4,890.33"
48,J.F. Drake State,90003820,SYMMETRIS K GOHANNA,Sep,28,2012,Instructional Salaries - Tempo,UNRESTRICTED,$675.00
48,J.F. Drake State,90003821,LARDELL GOODLOE JR,Sep,28,2012,Instructional Salaries - Regul,UNRESTRICTED,"$5,009.89"
48,J.F. Drake State,90003822,TIMOTHY RYAN GREEN,Sep,28,2012,Instructional Salaries - Regul,UNRESTRICTED,"$4,120.33"
48,J.F. Drake State,90003822,TIMOTHY RYAN GREEN,Sep,28,2012,Instructional Salaries - Tempo,UNRESTRICTED,$225.00
48,J.F. Drake State,90003823,VICKIE E GREEN,Sep,28,2012,Instructional Salaries - Regul,,"$3,840.25"
48,J.F. Drake State,90003824,ROBERT N GRISSIM,Sep,28,2012,Instructional Salaries - Regul,UNRESTRICTED,"$3,646.17"
48,J.F. Drake State,90003825,CHARLES GROSS,Sep,28,2012,Instructional Salaries - Tempo,UNRESTRICTED,"$1,012.50"
48,J.F. Drake State,90003826,SAMUEL V GUISHARD,Sep,28,2012,Instructional Salaries - Tempo,UNRESTRICTED,"$1,687.50"
48,J.F. Drake State,90003827,MANELZA CRAWFORD HAMBRICK,Sep,28,2012,Support Personnel Salaries - S,UNRESTRICTED,"$2,485.42"
48,J.F. Drake State,90003828,ARCHIE LEE HAMLET,Sep,28,2012,Hourly Wages,UNRESTRICTED,"$1,056.00"
48,J.F. Drake State,90003829,SHELIA D HAMMON,Sep,28,2012,Instructional Salaries - Regul,UNRESTRICTED,"$5,416.78"
48,J.F. Drake State,90003830,AUNDREA D HANSON,Sep,28,2012,Instructional Salaries - Tempo,UNRESTRICTED,$675.00
48,J.F. Drake State,90003831,KATRINA J HARRIS,Sep,28,2012,Support Personnel Salaries - S,UNRESTRICTED,$974.50
48,J.F. Drake State,90003831,KATRINA J HARRIS,Sep,28,2012,Support Personnel Salaries - S,TITLE III,"$2,923.50"
48,J.F. Drake State,90003832,CAROLYN HENDERSON,Sep,28,2012,Instructional Salaries - Regul,UNRESTRICTED,"$4,062.58"
48,J.F. Drake State,90003833,DEXTER R HENRY,Sep,28,2012,Instructional Salaries - Regul,UNRESTRICTED,"$6,416.89"
48,J.F. Drake State,90003833,DEXTER R HENRY,Sep,28,2012,Instructional Salaries - Tempo,SESP,$480.00
48,J.F. Drake State,90003834,KARL W HENRY SR,Sep,28,2012,Instructional Salaries - Regul,UNRESTRICTED,"$7,261.67"
48,J.F. Drake State,90003835,ELBREY WARREN HERRING,Sep,28,2012,Instructional Salaries - Tempo,ADULT ED,"$1,224.00"
48,J.F. Drake State,90003836,ISSAC D HINES,Sep,28,2012,Instructional Salaries - Tempo,UNRESTRICTED,$675.00
48,J.F. Drake State,90003836,ISSAC D HINES,Sep,28,2012,Hourly Wages,NAT'L SCIENCE FOUNDATION,"$1,020.00"
48,J.F. Drake State,90003837,DORIS HINTON,Sep,28,2012,Instructional Salaries - Regul,UNRESTRICTED,"$5,416.78"
48,J.F. Drake State,90003838,KHALID HOLMES,Sep,28,2012,Instructional Salaries - Regul,UNRESTRICTED,"$3,284.25"
48,J.F. Drake State,90003838,KHALID HOLMES,Sep,28,2012,Instructional Salaries - Tempo,UNRESTRICTED,$450.00
48,J.F. Drake State,90003839,PORTIA S HOUSTON,Sep,28,2012,Instructional Salaries - Tempo,UNRESTRICTED,"$1,912.50"
48,J.F. Drake State,90003840,CANDICE HOWELL,Sep,28,2012,Instructional Salaries - Tempo,UNRESTRICTED,$337.50
48,J.F. Drake State,90003841,JAN J HYMAN,Sep,28,2012,Support Personnel Salaries - S,,"$3,229.00"
48,J.F. Drake State,90003843,NEOKA JANE IVEY,Sep,28,2012,Support Personnel Salaries - S,UNRESTRICTED,"$1,964.25"
48,J.F. Drake State,90003843,NEOKA JANE IVEY,Sep,28,2012,Hourly Wages,NAT'L SCIENCE FOUNDATION,"$1,080.00"
48,J.F. Drake State,90003844,SARAH J JAMAR,Sep,28,2012,Hourly Wages,STUDENT SUPPORT SERVICES,"$1,087.50"
48,J.F. Drake State,90003845,VICTOR G JOLLEY,Sep,28,2012,Instructional Salaries - Tempo,UNRESTRICTED,$562.50
48,J.F. Drake State,90003846,DONYALE D JONES,Sep,28,2012,Instructional Salaries - Tempo,UNRESTRICTED,$112.50
48,J.F. Drake State,90003846,DONYALE D JONES,Sep,28,2012,Support Personnel Salaries - S,UNRESTRICTED,"$3,303.42"
48,J.F. Drake State,90003847,PINEY L JORDAN,Sep,28,2012,Instructional Salaries - Tempo,UNRESTRICTED,"$2,820.00"
48,J.F. Drake State,90003848,JUSTIN M KELLY,Sep,28,2012,Instructional Salaries - Tempo,UNRESTRICTED,"$2,137.50"
48,J.F. Drake State,90003849,CHERYL P KEMP,Sep,28,2012,Instructional Salaries - Tempo,UNRESTRICTED,"$2,760.00"
48,J.F. Drake State,90003850,JAPHETH K KESSIO,Sep,28,2012,Instructional Salaries - Tempo,UNRESTRICTED,$337.50
48,J.F. Drake State,90003851,NICHOLAS PAUL KSEPKA,Sep,28,2012,Hourly Wages,UNRESTRICTED,"$3,433.50"
48,J.F. Drake State,90003852,HONG THUYDUC LAM,Sep,28,2012,Instructional Salaries - Regul,UNRESTRICTED,"$6,790.11"
48,J.F. Drake State,90003853,JOYCE P LAMAR,Sep,28,2012,Support Personnel Salaries - S,UNRESTRICTED,"$4,568.08"
48,J.F. Drake State,90003854,TELLUS LANGFORD,Sep,28,2012,Instructional Salaries - Tempo,UNRESTRICTED,$337.50
48,J.F. Drake State,90003855,DIANNE T LANZA,Sep,28,2012,Instructional Salaries - Tempo,ADULT ED,$990.00
48,J.F. Drake State,90003856,PAULA W LESKO,Sep,28,2012,Support Personnel Salaries - S,ADULT ED,$945.00
48,J.F. Drake State,90003857,ORENTHAL MARC LEWIS,Sep,28,2012,Support Personnel Salaries - S,CAREER COACHES,"$3,228.75"
48,J.F. Drake State,90003858,STEPHANY L STEINFAITH,Sep,28,2012,Instructional Salaries - Tempo,UNRESTRICTED,$337.50
48,J.F. Drake State,90003859,PAMELA LONG,Sep,28,2012,Instructional Salaries - Tempo,UNRESTRICTED,$787.50
48,J.F. Drake State,90003859,PAMELA LONG,Sep,28,2012,Hourly Wages,NAT'L SCIENCE FOUNDATION,"$1,140.00"
48,J.F. Drake State,90003860,JESSICA DANIELLE MALMBERG,Sep,28,2012,Hourly Wages,,$230.00
48,J.F. Drake State,90003861,STEPHEN ROBERT MAURER,Sep,28,2012,Hourly Wages,TITLE III,$175.00
48,J.F. Drake State,90003862,MICHEAL V MAXTON,Sep,28,2012,Instructional Salaries - Tempo,UNRESTRICTED,$675.00
48,J.F. Drake State,90003863,HELEN T MCALPINE,Sep,28,2012,Administrative Salaries- Sched,UNRESTRICTED,"$14,266.42"
48,J.F. Drake State,90003863,HELEN T MCALPINE,Sep,28,2012,President's Expense Allowance,UNRESTRICTED,$200.00
48,J.F. Drake State,90003863,HELEN T MCALPINE,Sep,28,2012,Housing Allowance,UNRESTRICTED,"$1,000.00"
48,J.F. Drake State,90003865,DEMETIUS L MCCARTY,Sep,28,2012,Support Personnel Salaries - S,UNRESTRICTED,"$2,187.58"
48,J.F. Drake State,90003866,JERRY L MCCAULLEY,Sep,28,2012,Instructional Salaries - Tempo,UNRESTRICTED,"$1,350.00"
48,J.F. Drake State,90003867,MARCUS R MCINTYRE,Sep,28,2012,Hourly Wages,STUDENT SUPPORT SERVICES,"$1,137.50"
48,J.F. Drake State,90003868,MISHIKI A MCINTYRE,Sep,28,2012,Hourly Wages,TITLE III,$750.00
48,J.F. Drake State,90003869,SCOTTY MCLAUGHLIN,Sep,28,2012,Instructional Salaries - Tempo,UNRESTRICTED,$787.50
48,J.F. Drake State,90003869,SCOTTY MCLAUGHLIN,Sep,28,2012,Instructional Salaries - Regul,UNRESTRICTED,"$7,401.89"
48,J.F. Drake State,90003870,MARIA YVETTE MEADOR,Sep,28,2012,Support Personnel Salaries - S,STUDENT SUPPORT SERVICES,"$2,559.33"
48,J.F. Drake State,90003871,DEBORAH A MILLING,Sep,28,2012,Instructional Salaries - Regul,UNRESTRICTED,"$5,262.33"
48,J.F. Drake State,90003872,SAMMY J MILTON,Sep,28,2012,Support Personnel Salaries - S,UNRESTRICTED,"$3,452.83"
48,J.F. Drake State,90003873,COURTNEY CHEVON MITCHELL,Sep,28,2012,Hourly Wages,TITLE III,$45.00
48,J.F. Drake State,90003874,ACOLEA J MOORE,Sep,28,2012,Instructional Salaries - Tempo,UNRESTRICTED,$675.00
48,J.F. Drake State,90003875,ALFRED CROSHAN MOORE,Sep,28,2012,Instructional Salaries - Tempo,UNRESTRICTED,"$2,025.00"
48,J.F. Drake State,90003876,BRUCE D MORRISON,Sep,28,2012,Support Personnel Salaries - S,UNRESTRICTED,"$4,196.17"
48,J.F. Drake State,90003877,JENNIFER O'LINGER,Sep,28,2012,Other Professional Salaries -,UNRESTRICTED,"$6,013.50"
48,J.F. Drake State,90003878,DONALD ORR,Sep,28,2012,Support Personnel Salaries - S,UNRESTRICTED,"$3,824.67"
48,J.F. Drake State,90003879,JENNIFER E PATTERSON,Sep,28,2012,Instructional Salaries - Regul,UNRESTRICTED,"$5,092.58"
48,J.F. Drake State,90003879,JENNIFER E PATTERSON,Sep,28,2012,Instructional Salaries - Tempo,UNRESTRICTED,$337.50
48,J.F. Drake State,90003880,JERROLD DION PHIPPS,Sep,28,2012,Instructional Salaries - Tempo,UNRESTRICTED,"$1,350.00"
48,J.F. Drake State,90003881,MARK PAUL PILOTTE,Sep,28,2012,Instructional Salaries - Tempo,UNRESTRICTED,$412.50
48,J.F. Drake State,90003882,INODU TONY PIRI,Sep,28,2012,Instructional Salaries - Tempo,UNRESTRICTED,$337.50
48,J.F. Drake State,90003883,ELIZABETH A PITCHFORD,Sep,28,2012,Other Professional Salaries -,UNRESTRICTED,"$4,166.67"
48,J.F. Drake State,90003884,GWENDOLYN D POPE,Sep,28,2012,Instructional Salaries - Tempo,UNRESTRICTED,$337.50
48,J.F. Drake State,90003884,GWENDOLYN D POPE,Sep,28,2012,Instructional Salaries - Regul,UNRESTRICTED,"$5,651.75"
48,J.F. Drake State,90003885,FREDRICK O PRUITT,Sep,28,2012,Instructional Salaries - Regul,UNRESTRICTED,"$3,840.25"
48,J.F. Drake State,90003885,FREDRICK O PRUITT,Sep,28,2012,Instructional Salaries - Tempo,UNRESTRICTED,$240.00
48,J.F. Drake State,90003886,MICHAEL RADDEN,Sep,28,2012,Instructional Salaries - Tempo,UNRESTRICTED,"$1,012.50"
48,J.F. Drake State,90003887,LORAINE RAGIN,Sep,28,2012,Instructional Salaries - Regul,UNRESTRICTED,"$3,090.25"
48,J.F. Drake State,90003888,ALICE G RAYMOND,Sep,28,2012,Other Professional Salaries -,UNRESTRICTED,"$8,233.59"
48,J.F. Drake State,90003889,JOYCE L RENTZ,Sep,28,2012,Instructional Salaries - Regul,UNRESTRICTED,"$6,706.33"
48,J.F. Drake State,90003889,JOYCE L RENTZ,Sep,28,2012,Instructional Salaries - Tempo,UNRESTRICTED,$675.00
48,J.F. Drake State,90003890,JOHN REUTTER III,Sep,28,2012,Other Professional Salaries -,TITLE III,"$7,053.25"
48,J.F. Drake State,90003891,LYSCELLE M REYES,Sep,28,2012,Instructional Salaries - Tempo,UNRESTRICTED,$900.00
48,J.F. Drake State,90003891,LYSCELLE M REYES,Sep,28,2012,Hourly Wages,NAT'L SCIENCE FOUNDATION,$560.00
48,J.F. Drake State,90003892,BILL E RICE,Sep,28,2012,Instructional Salaries - Tempo,UNRESTRICTED,"$2,025.00"
48,J.F. Drake State,90003893,ROXANNE D RICHARDSON,Sep,28,2012,Support Personnel Salaries - S,UNRESTRICTED,"$3,079.83"
48,J.F. Drake State,90003894,MARTHA J ROBERTS,Sep,28,2012,Support Personnel Salaries - S,UNRESTRICTED,"$4,940.33"
48,J.F. Drake State,90003895,WENDY L ROBERTS,Sep,28,2012,Support Personnel Salaries - S,UNRESTRICTED,"$3,228.75"
48,J.F. Drake State,90003896,CHERILYN ROOKS,Sep,28,2012,Instructional Salaries - Tempo,UNRESTRICTED,$690.00
48,J.F. Drake State,90003897,JACQUELINE M SHIVERS,Sep,28,2012,Instructional Salaries - Tempo,ADULT ED,"$1,693.75"
48,J.F. Drake State,90003898,LESLEY SHOTTS,Sep,28,2012,Instructional Salaries - Regul,UNRESTRICTED,"$4,627.58"
48,J.F. Drake State,90003900,AMANDA R SIMPSON,Sep,28,2012,Support Personnel Salaries - S,UNRESTRICTED,"$2,208.00"
48,J.F. Drake State,90003901,PATRICIA GORDON SIMS,Sep,28,2012,Administrative Salaries- Sched,UNRESTRICTED,"$9,245.09"
48,J.F. Drake State,90003902,BHESHAM JERRY SINGH,Sep,28,2012,Hourly Wages,,$642.50
48,J.F. Drake State,90003903,JASON MICHAEL SMITH,Sep,28,2012,Hourly Wages,NAT'L SCIENCE FOUNDATION,"$2,610.00"
48,J.F. Drake State,90003904,RYAN E SMITH,Sep,28,2012,Other Professional Salaries -,TITLE III,"$5,722.42"
48,J.F. Drake State,90003905,DELORIS A SMOTHERS,Sep,28,2012,Instructional Salaries - Tempo,UNRESTRICTED,$337.50
48,J.F. Drake State,90003905,DELORIS A SMOTHERS,Sep,28,2012,Instructional Salaries - Regul,UNRESTRICTED,"$7,261.67"
48,J.F. Drake State,90003906,JASON M STEPHENS,Sep,28,2012,Hourly Wages,STUDENT SUPPORT SERVICES,$890.63
48,J.F. Drake State,90003907,VERLINDSEY B STEWART,Sep,28,2012,Instructional Salaries - Regul,UNRESTRICTED,"$7,001.89"
48,J.F. Drake State,90003907,VERLINDSEY B STEWART,Sep,28,2012,Instructional Salaries - Tempo,UNRESTRICTED,$337.50
48,J.F. Drake State,90003908,MONICA SUDEALL-HAWKINS,Sep,28,2012,Instructional Salaries - Tempo,UNRESTRICTED,$180.00
48,J.F. Drake State,90003909,CHARLES A SULLINS JR,Sep,28,2012,Instructional Salaries - Tempo,UNRESTRICTED,$337.50
48,J.F. Drake State,90003910,SHANNON SUMMERS,Sep,28,2012,Instructional Salaries - Tempo,ADULT ED,$594.00
48,J.F. Drake State,90003911,DOCQUINN N TAYLOR,Sep,28,2012,Instructional Salaries - Tempo,UNRESTRICTED,$337.50
48,J.F. Drake State,90003911,DOCQUINN N TAYLOR,Sep,28,2012,Hourly Wages,STUDENT SUPPORT SERVICES,$937.50
48,J.F. Drake State,90003912,MALCOLM G TAYLOR,Sep,28,2012,Instructional Salaries - Tempo,UNRESTRICTED,$675.00
48,J.F. Drake State,90003913,FORREST BRYANT TEAGUE,Sep,28,2012,Hourly Wages,UNRESTRICTED,"$1,095.00"
48,J.F. Drake State,90003914,HUGH L THOMPSON JR,Sep,28,2012,Instructional Salaries - Tempo,UNRESTRICTED,"$1,575.00"
48,J.F. Drake State,90003915,YOLANDA R TONEY,Sep,28,2012,Instructional Salaries - Tempo,UNRESTRICTED,"$1,012.50"
48,J.F. Drake State,90003916,JOY D TORNQUIST,Sep,28,2012,Instructional Salaries - Tempo,UNRESTRICTED,"$2,310.00"
48,J.F. Drake State,90003917,KRISTIN TREADWAY,Sep,28,2012,Support Personnel Salaries - S,,"$2,931.17"
48,J.F. Drake State,90003918,ELIZABETH A TUGGLE,Sep,28,2012,Instructional Salaries - Tempo,ADULT ED,"$1,612.00"
48,J.F. Drake State,90003919,GILBERT T TURLEY,Sep,28,2012,Other Professional Salaries -,UNRESTRICTED,"$6,886.58"
48,J.F. Drake State,90003920,LARRY CHARLES TURNER,Sep,28,2012,Hourly Wages,TITLE III,"$1,320.00"
48,J.F. Drake State,90003921,KAROL C WADDELL,Sep,28,2012,Hourly Wages,READY TO WORK,"$1,710.00"
48,J.F. Drake State,90003922,ANITA G WALKER,Sep,28,2012,Hourly Wages,,"$2,480.00"
48,J.F. Drake State,90003923,LETITIA E WALKER,Sep,28,2012,Support Personnel Salaries - S,UNRESTRICTED,"$3,229.42"
48,J.F. Drake State,90003924,DEVONA WARNER,Sep,28,2012,Hourly Wages,,$750.00
48,J.F. Drake State,90003925,DWAYNIA WILKERSON,Sep,28,2012,Instructional Salaries - Tempo,UNRESTRICTED,$112.50
48,J.F. Drake State,90003926,CALANDRA S WILLIAMS,Sep,28,2012,Instructional Salaries - Tempo,ADULT ED,$759.00
48,J.F. Drake State,90003927,DAYMETRIE D WILLIAMS,Sep,28,2012,Hourly Wages,TITLE III,"$1,290.00"
48,J.F. Drake State,90003928,KELLY L WILLIAMS,Sep,28,2012,Instructional Salaries - Tempo,UNRESTRICTED,$562.50
48,J.F. Drake State,90003929,RICKY WILLINGHAM,Sep,28,2012,Other Professional Salaries -,TITLE III,"$6,886.58"
48,J.F. Drake State,90003930,TRACEY L WILSON,Sep,28,2012,Instructional Salaries - Tempo,UNRESTRICTED,$337.50
48,J.F. Drake State,90003931,BRANDI G WINCHESTER,Sep,28,2012,Instructional Salaries - Regul,UNRESTRICTED,"$3,617.83"
48,J.F. Drake State,90003932,GEORGE R WINN,Sep,28,2012,Instructional Salaries - Regul,UNRESTRICTED,"$5,675.67"
48,J.F. Drake State,90003932,GEORGE R WINN,Sep,28,2012,Instructional Salaries - Tempo,UNRESTRICTED,$675.00
48,J.F. Drake State,90003933,CHARLES R WINTER,Sep,28,2012,Support Personnel Salaries - S,UNRESTRICTED,$872.80
48,J.F. Drake State,90003934,ANDREA J YELDELL,Sep,28,2012,Hourly Wages,UNRESTRICTED,$462.00
48,J.F. Drake State,90003935,JEANNIE WYNONA YORK,Sep,28,2012,Hourly Wages,NAT'L SCIENCE FOUNDATION,$240.00
48,J.F. Drake State,90003936,DELESHIA D YOUNG,Sep,28,2012,Support Personnel Salaries - S,UNRESTRICTED,"$3,079.83"
48,J.F. Drake State,106032,BANKS INDUSTRIES INC.,Sep,26,2012,Materials and Supplies,PLANT FUNDS,"$2,801.32"
48,J.F. Drake State,106033,BB&T,Sep,26,2012,Investment Transaction Expense,UNRESTRICTED,$90.00
48,J.F. Drake State,106034,"BURMAX, INC.",Sep,26,2012,Purchases for Resale,UNRESTRICTED,$74.80
48,J.F. Drake State,106035,CASTLEBRANCH,Sep,26,2012,Purchases for Resale,AUXILIARY,"$1,600.00"
48,J.F. Drake State,106036,CDW-G,Sep,26,2012,Materials and Supplies,UNRESTRICTED,$214.99
48,J.F. Drake State,106036,CDW-G,Sep,26,2012,Technology - Noncapitalized,UNRESTRICTED,$696.60
48,J.F. Drake State,106036,CDW-G,Sep,26,2012,Technology - Capitalized,UNRESTRICTED,"$3,904.75"
48,J.F. Drake State,106037,CDW-G,Sep,26,2012,Materials and Supplies,UNRESTRICTED,$419.97
48,J.F. Drake State,106038,CDW-G,Sep,26,2012,Materials and Supplies,UNRESTRICTED,$414.40
48,J.F. Drake State,106039,CDW-G,Sep,26,2012,Materials and Supplies,UNRESTRICTED,$419.96
48,J.F. Drake State,106040,CENGAGE LEARNING,Sep,26,2012,Purchases for Resale,UNRESTRICTED,$534.50
48,J.F. Drake State,106041,"CERTIPORT, INC",Sep,26,2012,Materials and Supplies,UNRESTRICTED,"$1,125.00"
48,J.F. Drake State,106042,CONDITIONED AIR SOLUTIONS,Sep,26,2012,Maintenance and Repairs,ARMY GRANT,$368.00
48,J.F. Drake State,106043,COPELAND CLEANERS,Sep,26,2012,Materials and Supplies,UNRESTRICTED,$33.99
48,J.F. Drake State,106044,PETTY CASH,Sep,26,2012,Materials and Supplies,UNRESTRICTED,$218.08
48,J.F. Drake State,106044,PETTY CASH,Sep,26,2012,Advertising and Promotions,UNRESTRICTED,$15.00
48,J.F. Drake State,106045,"DYNAMIC SECURITY, INC.",Sep,26,2012,Other Contractual Services,UNRESTRICTED,"$11,880.96"
48,J.F. Drake State,106046,ELSEVIER/HESI,Sep,26,2012,Purchases for Resale,AUXILIARY,$45.00
48,J.F. Drake State,106047,FEDEX,Sep,26,2012,Postage,UNRESTRICTED,$212.51
48,J.F. Drake State,106048,GIGAWATT/GOGREENSOLAR.COM,Sep,26,2012,Materials and Supplies,SESP,$429.00
48,J.F. Drake State,106049,JOHNSTONE SUPPLY,Sep,26,2012,Purchases for Resale,UNRESTRICTED,"$1,353.73"
48,J.F. Drake State,106050,KOORSEN PROTECTION SERVIC,Sep,26,2012,Other Contractual Services,UNRESTRICTED,$285.12
48,J.F. Drake State,106051,"LANIER,FORD,SHAVER &",Sep,26,2012,Legal Services,UNRESTRICTED,$190.00
48,J.F. Drake State,106052,MCGRAW-HILL BOOK COMPANY,Sep,26,2012,Materials and Supplies,ADULT ED,$875.00
48,J.F. Drake State,106053,MULLINS FIVE POINTS RENTA,Sep,26,2012,Materials and Supplies,UNRESTRICTED,$915.00
48,J.F. Drake State,106054,"OFFICE DEPOT, INC.",Sep,26,2012,Materials and Supplies,UNRESTRICTED,$173.89
48,J.F. Drake State,106055,PITNEY BOWES,Sep,26,2012,Other Contractual Services,UNRESTRICTED,$630.00
48,J.F. Drake State,106056,PRO-AIR SERVICES,Sep,26,2012,Maintenance and Repairs,UNRESTRICTED,$137.00
48,J.F. Drake State,106057,PROFESSIONAL SALES,Sep,26,2012,Purchases for Resale,UNRESTRICTED,$750.98
48,J.F. Drake State,106059,"SMITH, RYAN",Sep,26,2012,Materials and Supplies,UNRESTRICTED,$200.00
48,J.F. Drake State,106060,STILL SERVING VETERANS,Sep,26,2012,Advertising and Promotions,UNRESTRICTED,$500.00
48,J.F. Drake State,106061,SUCCESS MARKETING,Sep,26,2012,Advertising and Promotions,UNRESTRICTED,"$25,026.60"
48,J.F. Drake State,106061,SUCCESS MARKETING,Sep,26,2012,Advertising and Promotions,ADULT ED,"$1,940.00"
48,J.F. Drake State,106062,SUCCESS MARKETING,Sep,26,2012,Advertising and Promotions,,"$12,705.00"
48,J.F. Drake State,106063,SUCCESS MARKETING,Sep,26,2012,Advertising and Promotions,UNRESTRICTED,"$3,939.00"
48,J.F. Drake State,106064,SYSCO CENTRAL ALABAMA,Sep,26,2012,Materials and Supplies,UNRESTRICTED,$799.14
48,J.F. Drake State,106065,U.S. GREEN BUILDING COUNC,Sep,26,2012,Memberships,SESP,$750.00
48,J.F. Drake State,106066,UPS,Sep,26,2012,Freight,UNRESTRICTED,$1.49
48,J.F. Drake State,106067,WOLAVER,Sep,26,2012,Maintenance and Repairs,UNRESTRICTED,"$1,500.00"
48,J.F. Drake State,208344,AL DEANS STUDENT/AFFAIRS,Sep,26,2012,In-State Travel,PERKINS FUNDS,$200.00
48,J.F. Drake State,208345,"APPLE COMPUTER, INC.",Sep,26,2012,Materials and Supplies,TITLE III,"$4,202.85"
48,J.F. Drake State,208346,BANKS INDUSTRIES INC.,Sep,26,2012,Materials and Supplies,TITLE III,"$7,860.00"
48,J.F. Drake State,208347,BERNEY OFFICE SOLUTIONS,Sep,26,2012,Materials and Supplies,TITLE III,$137.21
48,J.F. Drake State,208348,CAROLINA BIOLOGICAL,Sep,26,2012,Materials and Supplies,TITLE III,"$1,650.76"
48,J.F. Drake State,208349,CDW-G,Sep,26,2012,Materials and Supplies,TITLE III,"$8,246.43"
48,J.F. Drake State,208349,CDW-G,Sep,26,2012,Materials and Supplies,ALLIED HEALTH,"$1,471.97"
48,J.F. Drake State,208350,CDW-G,Sep,26,2012,Materials and Supplies,TITLE III,"$1,698.26"
48,J.F. Drake State,208351,CDW-G,Sep,26,2012,Materials and Supplies,TITLE III,$875.97
48,J.F. Drake State,208352,CENGAGE LEARNING,Sep,26,2012,Books,TITLE III,$260.02
48,J.F. Drake State,208353,COPELAND CLEANERS,Sep,26,2012,Materials and Supplies,PERKINS FUNDS,$49.44
48,J.F. Drake State,208355,GRAYBAR,Sep,26,2012,Materials and Supplies,TITLE III,$614.92
48,J.F. Drake State,208356,HAAS FACTORY OUTLET,Sep,26,2012,Furniture and Equipment,PERKINS FUNDS,"$5,500.00"
48,J.F. Drake State,208357,HIGH GROUND SOLUTIONS,Sep,26,2012,Other Contractual Services,TITLE III,"$4,500.00"
48,J.F. Drake State,208359,"MCALPINE, HELEN",Sep,26,2012,Out-of-State Travel,TITLE III,$554.27
48,J.F. Drake State,208360,"MILLING, DEBORAH",Sep,26,2012,Out-of-State Travel,TITLE III,$280.37
48,J.F. Drake State,208361,MULLINS FIVE POINTS RENTA,Sep,26,2012,Institutional Use,TITLE III,$490.00
48,J.F. Drake State,208362,NASFAA,Sep,26,2012,Memberships,TITLE III,$854.00
48,J.F. Drake State,208363,"NATIONAL SEMINARS, INC.",Sep,26,2012,In-State Travel,TITLE III,$139.00
48,J.F. Drake State,208364,"OFFICE DEPOT, INC.",Sep,26,2012,Materials and Supplies,TITLE III,$220.03
48,J.F. Drake State,208364,"OFFICE DEPOT, INC.",Sep,26,2012,Materials and Supplies,NSF CARRYOVER,$283.45
48,J.F. Drake State,208364,"OFFICE DEPOT, INC.",Sep,26,2012,Materials and Supplies,ALLIED HEALTH,$748.42
48,J.F. Drake State,208365,"OFFICE DEPOT, INC.",Sep,26,2012,Materials and Supplies,TITLE III,$51.99
48,J.F. Drake State,208366,"OFFICE DEPOT, INC.",Sep,26,2012,Materials and Supplies,TITLE III,$35.04
48,J.F. Drake State,208367,"OFFICE DEPOT, INC.",Sep,26,2012,Materials and Supplies,TITLE III,$295.98
48,J.F. Drake State,208368,ORENTHAL LEWIS,Sep,26,2012,In-State Travel,TITLE III,$417.92
48,J.F. Drake State,208369,ORIENTAL TRADING,Sep,26,2012,Materials and Supplies,TITLE III,$85.99
48,J.F. Drake State,208370,PROFESSIONAL SALES CO,Sep,26,2012,Materials and Supplies,PERKINS FUNDS,$976.85
48,J.F. Drake State,208371,SAEOPP,Sep,26,2012,Materials and Supplies,STUDENT SUPPORT SERVICES,$160.00
48,J.F. Drake State,208372,"STANFA EQUIPMENT SALES, L",Sep,26,2012,Other Contractual Services,TITLE III,$515.00
48,J.F. Drake State,208373,STAPLES BUS ADVANTAGE,Sep,26,2012,Materials and Supplies,TITLE III,$375.48
48,J.F. Drake State,208374,WOLAVER,Sep,26,2012,Maintenance and Repairs,TITLE III,"$2,800.00"
48,J.F. Drake State,105967,ACT,Sep,19,2012,Materials and Supplies,UNRESTRICTED,$132.00
48,J.F. Drake State,105968,ALA LABOR LAW POSTER,Sep,19,2012,Materials and Supplies,UNRESTRICTED,$134.50
48,J.F. Drake State,105969,MPS,Sep,19,2012,Purchases for Resale,UNRESTRICTED,$679.92
48,J.F. Drake State,105970,BROOKS LOCK & KEY,Sep,19,2012,Maintenance and Repairs,UNRESTRICTED,$595.00
48,J.F. Drake State,105971,CAR QUEST AUTO PARTS,Sep,19,2012,Materials and Supplies,UNRESTRICTED,$106.47
48,J.F. Drake State,105972,CENGAGE LEARNING,Sep,19,2012,Purchases for Resale,UNRESTRICTED,"$2,733.63"
48,J.F. Drake State,105973,CHEVRON CARD SERVICES,Sep,19,2012,Gasoline and Oil - Motor Vehic,UNRESTRICTED,$801.72
48,J.F. Drake State,105974,"DYNAMIC SECURITY, INC.",Sep,19,2012,Other Contractual Services,UNRESTRICTED,"$5,940.48"
48,J.F. Drake State,105975,"DYNAMIC SECURITY, INC.",Sep,19,2012,Other Contractual Services,UNRESTRICTED,"$6,377.28"
48,J.F. Drake State,105976,HUNTSVILLE TIMES,Sep,19,2012,Other Contractual Services,UNRESTRICTED,$272.20
48,J.F. Drake State,105977,HUNTSVILLE HIGH PTSA,Sep,19,2012,Advertising and Promotions,UNRESTRICTED,$500.00
48,J.F. Drake State,105978,"MOBILE MINI, INC",Sep,19,2012,Materials and Supplies,UNRESTRICTED,$322.50
48,J.F. Drake State,105979,MINUTEMAN PRESS,Sep,19,2012,Advertising and Promotions,UNRESTRICTED,$199.24
48,J.F. Drake State,105980,NICOLE BARNETT,Sep,19,2012,In-State Travel,ADULT ED,$111.29
48,J.F. Drake State,105982,"OFFICE DEPOT, INC.",Sep,19,2012,Advertising and Promotions,UNRESTRICTED,$74.99
48,J.F. Drake State,105983,SKT ARCHITECTS,Sep,19,2012,Alterations,PLANT FUNDS,"$1,545.19"
48,J.F. Drake State,105984,"SMITH, RYAN",Sep,19,2012,Materials and Supplies,UNRESTRICTED,$131.37
48,J.F. Drake State,105985,SOUTHERNLINC WIRELESS,Sep,19,2012,Communications,UNRESTRICTED,$63.60
48,J.F. Drake State,105986,SPARKMAN QUARTERBACK CLUB,Sep,19,2012,Advertising and Promotions,UNRESTRICTED,$250.00
48,J.F. Drake State,105987,STAPLES BUS ADVANTAGE,Sep,19,2012,Purchases for Resale,UNRESTRICTED,$12.00
48,J.F. Drake State,105988,STRICKLAND COMPANIES,Sep,19,2012,Materials and Supplies,UNRESTRICTED,"$1,812.60"
48,J.F. Drake State,105989,THE ALABAMA LAWNMASTERS,Sep,19,2012,Other Contractual Services,UNRESTRICTED,"$3,045.00"
48,J.F. Drake State,105989,THE ALABAMA LAWNMASTERS,Sep,19,2012,Other Contractual Services,ARMY GRANT,$650.00
48,J.F. Drake State,105990,"THE SOLUTIONS TEAM, INC",Sep,19,2012,Computer Software,UNRESTRICTED,$200.00
48,J.F. Drake State,105991,"TRUESCREEN, INC",Sep,19,2012,Other Contractual Services,UNRESTRICTED,$234.00
48,J.F. Drake State,105992,VERIZON WIRELESS,Sep,19,2012,Communications,UNRESTRICTED,$987.79
48,J.F. Drake State,105993,WASTE MANAGEMENT OF NORTH,Sep,19,2012,Other Contractual Services,UNRESTRICTED,$354.00
48,J.F. Drake State,105994,WITTICHEN SUPPLY COMPANY,Sep,19,2012,Maintenance and Repairs,UNRESTRICTED,$111.91
48,J.F. Drake State,208300,ALACRAO,Sep,19,2012,Memberships,TITLE III,$80.00
48,J.F. Drake State,208301,ALBERT'S FLOWERS,Sep,19,2012,Materials and Supplies,TITLE III,$128.00
48,J.F. Drake State,208302,BERNEY OFFICE SOLUTIONS,Sep,19,2012,Materials and Supplies,TITLE III,$15.06
48,J.F. Drake State,208303,BERNEY OFFICE SOLUTIONS,Sep,19,2012,Other Contractual Services,TITLE III,"$12,079.09"
48,J.F. Drake State,208304,BERNEY OFFICE SOLUTIONS,Sep,19,2012,Technology - Capitalized,TITLE III,"$8,562.55"
48,J.F. Drake State,208305,BEST BUY,Sep,19,2012,Materials and Supplies,TITLE III,$149.99
48,J.F. Drake State,208306,HUNTSVILLE MADISON COUNTY,Sep,19,2012,Materials and Supplies,ALLIED HEALTH,$425.00
48,J.F. Drake State,208307,DENISE GAYMON,Sep,19,2012,Memberships,TITLE III,$65.00
48,J.F. Drake State,208308,DIRECT TOOLS&FASTENERS,Sep,19,2012,Furniture and Equipment,PERKINS FUNDS,"$5,188.00"
48,J.F. Drake State,208309,GRAINGER,Sep,19,2012,Materials and Supplies,PERKINS FUNDS,"$2,731.41"
48,J.F. Drake State,208310,GRAYBAR,Sep,19,2012,Materials and Supplies,,$510.94
48,J.F. Drake State,208311,LYRASIS,Sep,19,2012,Books,TITLE III,$685.00
48,J.F. Drake State,208312,NISOD,Sep,19,2012,Memberships,TITLE III,$995.00
48,J.F. Drake State,208313,"OFFICE DEPOT, INC.",Sep,19,2012,Materials and Supplies,TITLE III,"$3,279.35"
48,J.F. Drake State,208313,"OFFICE DEPOT, INC.",Sep,19,2012,Materials and Supplies,ALLIED HEALTH,"$1,561.88"
48,J.F. Drake State,208314,ROGER CHEN,Sep,19,2012,Out-of-State Travel,TITLE III,$621.36
48,J.F. Drake State,208315,SCANTRON CORPORATION,Sep,19,2012,Materials and Supplies,ALLIED HEALTH,$38.34
48,J.F. Drake State,208316,STAPLES BUS ADVANTAGE,Sep,19,2012,Materials and Supplies,STUDENT SUPPORT SERVICES,"$3,171.76"
48,J.F. Drake State,208317,TEQUIPMENT.NET,Sep,19,2012,Materials and Supplies,PERKINS FUNDS,"$1,978.46"
48,J.F. Drake State,208318,WALT DISNEY SWAN & DOLPHI,Sep,19,2012,Materials and Supplies,ALLIED HEALTH,$697.52
48,J.F. Drake State,208319,WALT DISNEY WORLD DOLPHIN,Sep,19,2012,Out-of-State Travel,TITLE III,$600.00
48,J.F. Drake State,208320,"JOHN WILEY & SONS, INC",Sep,19,2012,Books,TITLE III,$189.59
48,J.F. Drake State,208321,"902 MEDICAL, INC",Sep,19,2012,Materials and Supplies,ALLIED HEALTH,"$13,500.00"
48,J.F. Drake State,208288,CDW-G,Sep,13,2012,Materials and Supplies,TITLE III,"$1,471.97"
48,J.F. Drake State,208289,JULIAN BUTLER,Sep,13,2012,Other Contractual Services,TITLE III,$250.00
48,J.F. Drake State,208290,WALT DISNEY WORLD DOLPHIN,Sep,13,2012,Out-of-State Travel,TITLE III,$600.00
48,J.F. Drake State,105966,SHERATON DENVER HOTEL,Sep,11,2012,Out-of-State Travel,,$958.02
48,J.F. Drake State,208235,RICHARD COLLIE,Sep,11,2012,Institutional Use,STUDENT SUPPORT SERVICES,$750.00
48,J.F. Drake State,105945,AL COMMUN COLLEGE SYS,Sep,10,2012,Advertising and Promotions,UNRESTRICTED,$400.00
48,J.F. Drake State,105946,BANKS INDUSTRIES INC.,Sep,10,2012,Materials and Supplies,UNRESTRICTED,$346.36
48,J.F. Drake State,105947,CDW-G,Sep,10,2012,Institutional Use,UNRESTRICTED,"$1,797.18"
48,J.F. Drake State,105947,CDW-G,Sep,10,2012,Technology - Capitalized,UNRESTRICTED,"$122,826.26"
48,J.F. Drake State,105948,CDW-G,Sep,10,2012,Technology - Capitalized,UNRESTRICTED,"$34,327.10"
48,J.F. Drake State,105949,CDW-G,Sep,10,2012,Technology - Capitalized,UNRESTRICTED,"$6,595.64"
48,J.F. Drake State,105950,CDW-G,Sep,10,2012,Technology - Capitalized,UNRESTRICTED,"$156,957.44"
48,J.F. Drake State,105951,CDW-G,Sep,10,2012,Technology - Capitalized,UNRESTRICTED,"$23,210.29"
48,J.F. Drake State,105952,CONDITIONED AIR SOLUTIONS,Sep,10,2012,Maintenance and Repairs,ARMY GRANT,$282.45
48,J.F. Drake State,105953,GIGAWATT/GOGREENSOLAR.COM,Sep,10,2012,Materials and Supplies,SESP,$429.00
48,J.F. Drake State,105954,CHAMBER OF COMMERCE,Sep,10,2012,Advertising and Promotions,UNRESTRICTED,$400.00
48,J.F. Drake State,105956,MCGRAW HILL EDUCATION,Sep,10,2012,Purchases for Resale,UNRESTRICTED,"$2,092.22"
48,J.F. Drake State,105957,"OFFICE DEPOT, INC.",Sep,10,2012,Materials and Supplies,UNRESTRICTED,$46.46
48,J.F. Drake State,105958,RANDALL A SCHRIMSHER,Sep,10,2012,Rent - Facilities,UNRESTRICTED,"$6,475.00"
48,J.F. Drake State,105959,SHORT STOP,Sep,10,2012,Purchases for Resale,UNRESTRICTED,"$1,222.00"
48,J.F. Drake State,105960,STANLEY STEEMER,Sep,10,2012,Other Contractual Services,UNRESTRICTED,$495.04
48,J.F. Drake State,105962,UPS,Sep,10,2012,Freight,UNRESTRICTED,$65.09
48,J.F. Drake State,105963,WASTE MANAGEMENT OF NORTH,Sep,10,2012,Other Contractual Services,UNRESTRICTED,$666.96
48,J.F. Drake State,105963,WASTE MANAGEMENT OF NORTH,Sep,10,2012,Other Contractual Services,ARMY GRANT,$274.78
48,J.F. Drake State,105964,WBCNA,Sep,10,2012,Advertising and Promotions,UNRESTRICTED,"$1,000.00"
48,J.F. Drake State,105965,"WOODY ANDERSON FORD, INC.",Sep,10,2012,Maintenance and Repairs,UNRESTRICTED,$139.26
48,J.F. Drake State,208214,"ELLUCIAN CO,LP",Sep,7,2012,Computer Software,,"$386,150.00"
48,J.F. Drake State,208215,ACADEMIC IMPRESSIONS,Sep,7,2012,Materials and Supplies,ALLIED HEALTH,$525.00
48,J.F. Drake State,208216,ADMINISTRATIVE PROFESS,Sep,7,2012,Out-of-State Travel,TITLE III,"$1,675.00"
48,J.F. Drake State,208217,ALEXANDREA FRYE,Sep,7,2012,Materials and Supplies,TITLE III,$71.66
48,J.F. Drake State,208218,BRAN-DEV COATINGS,Sep,7,2012,Materials and Supplies,PERKINS FUNDS,"$16,665.34"
48,J.F. Drake State,208219,BUSINESS COUNCIL OF AL,Sep,7,2012,Memberships,TITLE III,$550.00
48,J.F. Drake State,208220,FOLLET SOFTWARE COMPANY,Sep,7,2012,Materials and Supplies,TITLE III,$959.00
48,J.F. Drake State,208221,GRAND FLORIDIAN RESORT/SP,Sep,7,2012,Out-of-State Travel,TITLE III,$604.14
48,J.F. Drake State,208222,HUNTSVILLE MADISON CTY,Sep,7,2012,Memberships,TITLE III,$120.00
48,J.F. Drake State,208223,JOHNSTONE SUPPLY,Sep,7,2012,Furniture and Equipment,PERKINS FUNDS,"$4,999.99"
48,J.F. Drake State,208224,LOWE'S,Sep,7,2012,Materials and Supplies,PERKINS FUNDS,"$1,052.90"
48,J.F. Drake State,208225,NASPA,Sep,7,2012,Memberships,TITLE III,$242.00
48,J.F. Drake State,208226,NATIONAL LEAGUE FOR NURSI,Sep,7,2012,Materials and Supplies,ALLIED HEALTH,$555.00
48,J.F. Drake State,208227,"OFFICE DEPOT, INC.",Sep,7,2012,Materials and Supplies,TITLE III,$105.56
48,J.F. Drake State,208228,OVERHEAD DOOR,Sep,7,2012,Maintenance and Repairs,TITLE III,"$1,197.00"
48,J.F. Drake State,208229,PODS STORAGE,Sep,7,2012,Materials and Supplies,ALLIED HEALTH,$318.00
48,J.F. Drake State,208230,SAIR,Sep,7,2012,Out-of-State Travel,TITLE III,$200.00
48,J.F. Drake State,208231,SCRIPT SAFE SECURITY PROD,Sep,7,2012,Materials and Supplies,TITLE III,$149.00
48,J.F. Drake State,208232,TECHNICAL TRAINING AIDS,Sep,7,2012,Computer Software,TITLE III,"$5,250.00"
48,J.F. Drake State,208233,WALT DISNEY WORLD DOLPHIN,Sep,7,2012,Out-of-State Travel,TITLE III,$135.00
48,J.F. Drake State,208234,4IMPRINT,Sep,7,2012,Materials and Supplies,STUDENT SUPPORT SERVICES,"$3,069.47"
48,J.F. Drake State,208234,4IMPRINT,Sep,7,2012,Materials and Supplies,TITLE III,$203.88
48,J.F. Drake State,208203,A. GAIL WALKER,Sep,6,2012,In-State Travel,TITLE III,$369.08
48,J.F. Drake State,208204,"BATTLE, BEN (JR)",Sep,6,2012,Out-of-State Travel,TITLE III,$214.96
48,J.F. Drake State,208205,NICOLE BELL,Sep,6,2012,Out-of-State Travel,TITLE III,$257.95
48,J.F. Drake State,208206,BRUCE BULLUCK,Sep,6,2012,In-State Travel,TITLE III,$150.00
48,J.F. Drake State,208207,"ELLUCIAN CO,LP",Sep,6,2012,Other Contractual Services,,"$18,716.00"
48,J.F. Drake State,208208,SYMMETRIS GOHANNA,Sep,6,2012,Out-of-State Travel,TITLE III,$180.73
48,J.F. Drake State,208209,LORAINE RAGIN,Sep,6,2012,Out-of-State Travel,TITLE III,$274.76
48,J.F. Drake State,208210,"MCALPINE, HELEN",Sep,6,2012,In-State Travel,TITLE III,$225.00
48,J.F. Drake State,208211,"RENTZ, JOYCE L.",Sep,6,2012,Out-of-State Travel,TITLE III,$88.81
48,J.F. Drake State,208212,DR. JOHN REUTTER,Sep,6,2012,Out-of-State Travel,TITLE III,$365.34
48,J.F. Drake State,208213,"SMITH, RYAN",Sep,6,2012,Materials and Supplies,TITLE III,$443.59
48,J.F. Drake State,302621,JULIA A ARNETT,Aug,31,2012,Instructional Salaries - Tempo,UNRESTRICTED,$450.00
48,J.F. Drake State,302622,NINYANA N ASHBY,Aug,31,2012,Support Personnel Salaries - S,UNRESTRICTED,"$2,633.56"
48,J.F. Drake State,302623,STEPHANIE JONES BOUNDS,Aug,31,2012,Instructional Salaries - Tempo,UNRESTRICTED,"$1,500.00"
48,J.F. Drake State,302624,ROYCE DANTE CARVER,Aug,31,2012,Hourly Wages,STUDENT SUPPORT SERVICES,$325.00
48,J.F. Drake State,302626,TASKA S CLARK,Aug,31,2012,Support Personnel Salaries - S,UNRESTRICTED,"$1,566.15"
48,J.F. Drake State,302627,VICTORIA FARRAR LONG,Aug,31,2012,Support Personnel Salaries - S,UNRESTRICTED,"$2,470.90"
48,J.F. Drake State,302628,ARCHIE LEE HAMLET,Aug,31,2012,Hourly Wages,UNRESTRICTED,$948.00
48,J.F. Drake State,302629,GEORGE VICTOR HARLOW III,Aug,31,2012,Hourly Wages,NAT'L SCIENCE FOUNDATION,$300.00
48,J.F. Drake State,302630,JUSTIN M KELLY,Aug,31,2012,Instructional Salaries - Tempo,UNRESTRICTED,"$1,850.00"
48,J.F. Drake State,302631,PROMISE C OGWU,Aug,31,2012,Hourly Wages,UNRESTRICTED,$948.00
48,J.F. Drake State,302632,ELIZABETH A PITCHFORD,Aug,31,2012,Other Professional Salaries -,UNRESTRICTED,"$3,269.27"
48,J.F. Drake State,302633,WENDY L ROBERTS,Aug,31,2012,Support Personnel Salaries - S,UNRESTRICTED,"$2,533.34"
48,J.F. Drake State,302634,BHESHAM JERRY SINGH,Aug,31,2012,Hourly Wages,,$300.00
48,J.F. Drake State,302635,DEVONA WARNER,Aug,31,2012,Hourly Wages,,$570.00
48,J.F. Drake State,302636,MELINDA WEST,Aug,31,2012,Instructional Salaries - Tempo,UNRESTRICTED,$420.00
48,J.F. Drake State,302637,ALICIA LASEAN WILLIAMS,Aug,31,2012,Hourly Wages,,$380.00
48,J.F. Drake State,302638,ANDREA J YELDELL,Aug,31,2012,Hourly Wages,UNRESTRICTED,$380.00
48,J.F. Drake State,90003623,DEMICA SHERMIR ALLISON,Aug,31,2012,Hourly Wages,NAT'L SCIENCE FOUNDATION,$380.00
48,J.F. Drake State,90003624,LYSA AUGUSTIN,Aug,31,2012,Instructional Salaries - Tempo,ADULT ED,$473.00
48,J.F. Drake State,90003625,CAROLYN AVRITTE,Aug,31,2012,Instructional Salaries - Tempo,UNRESTRICTED,$390.00
48,J.F. Drake State,90003626,JUDY M BAKER,Aug,31,2012,Support Personnel Salaries - S,UNRESTRICTED,"$2,634.34"
48,J.F. Drake State,90003627,NELSON E BARNES,Aug,31,2012,Instructional Salaries - Tempo,UNRESTRICTED,"$1,350.00"
48,J.F. Drake State,90003628,RAQUEL L BARNES,Aug,31,2012,Instructional Salaries - Tempo,UNRESTRICTED,$450.00
48,J.F. Drake State,90003629,NICOLE CLARESE BARNETT,Aug,31,2012,Other Professional Salaries -,ADULT ED,"$4,166.00"
48,J.F. Drake State,90003629,NICOLE CLARESE BARNETT,Aug,31,2012,Employee Taxable Per Diem,TITLE III,$11.25
48,J.F. Drake State,90003630,BEN BATTLE,Aug,31,2012,Instructional Salaries - Regul,UNRESTRICTED,"$4,922.34"
48,J.F. Drake State,90003631,ANGELA NICOLE BELL,Aug,31,2012,Instructional Salaries - Regul,UNRESTRICTED,"$5,147.00"
48,J.F. Drake State,90003633,PATRICE BIVINS,Aug,31,2012,Support Personnel Salaries - S,STUDENT SUPPORT SERVICES,"$1,889.87"
48,J.F. Drake State,90003634,TRACY H BOND,Aug,31,2012,Instructional Salaries - Tempo,UNRESTRICTED,$450.00
48,J.F. Drake State,90003635,CHERYL BRAWLEY-KELLY,Aug,31,2012,Instructional Salaries - Tempo,UNRESTRICTED,$660.00
48,J.F. Drake State,90003636,LASHONDA D BROWN,Aug,31,2012,Instructional Salaries - Tempo,UNRESTRICTED,$450.00
48,J.F. Drake State,90003637,BRUCE A BULLUCK,Aug,31,2012,Other Professional Salaries -,UNRESTRICTED,"$5,833.37"
48,J.F. Drake State,90003638,KHALILAH BURTON,Aug,31,2012,Instructional Salaries - Tempo,UNRESTRICTED,"$1,500.00"
48,J.F. Drake State,90003639,LISA G BURTON,Aug,31,2012,Other Professional Salaries -,UNRESTRICTED,"$4,166.00"
48,J.F. Drake State,90003640,KEMBA CHAMBERS,Aug,31,2012,Other Professional Salaries -,UNRESTRICTED,"$7,360.38"
48,J.F. Drake State,90003641,KATIE E CHANCE,Aug,31,2012,Support Personnel Salaries - S,UNRESTRICTED,"$3,452.00"
48,J.F. Drake State,90003642,ROGER CHEN,Aug,31,2012,Hourly Wages,,"$2,100.00"
48,J.F. Drake State,90003643,ADAM CLARK,Aug,31,2012,Instructional Salaries - Regul,UNRESTRICTED,"$4,709.00"
48,J.F. Drake State,90003643,ADAM CLARK,Aug,31,2012,Instructional Salaries - Tempo,UNRESTRICTED,"$1,500.00"
48,J.F. Drake State,90003645,CARLA R CLIFT,Aug,31,2012,Other Professional Salaries -,UNRESTRICTED,"$5,609.75"
48,J.F. Drake State,90003646,RICHARD COLLIE,Aug,31,2012,Other Professional Salaries -,STUDENT SUPPORT SERVICES,"$3,750.00"
48,J.F. Drake State,90003647,TOMEKA CROSS,Aug,31,2012,Support Personnel Salaries - S,UNRESTRICTED,"$2,187.00"
48,J.F. Drake State,90003648,DEIONE L CRUTCHER,Aug,31,2012,Hourly Wages,ADULT ED,"$1,066.00"
48,J.F. Drake State,90003649,MATTIE D DAVIS,Aug,31,2012,Instructional Salaries - Regul,UNRESTRICTED,"$6,157.00"
48,J.F. Drake State,90003650,BRANDIE A DEL VALLE,Aug,31,2012,Instructional Salaries - Tempo,UNRESTRICTED,$240.00
48,J.F. Drake State,90003651,MARLO DRAKE,Aug,31,2012,Support Personnel Salaries - S,UNRESTRICTED,"$2,421.59"
48,J.F. Drake State,90003651,MARLO DRAKE,Aug,31,2012,Support Personnel Salaries - S,TITLE III,$807.16
48,J.F. Drake State,90003653,CHRISTIANA A OPARA EGBUJO,Aug,31,2012,Instructional Salaries - Tempo,UNRESTRICTED,"$1,110.00"
48,J.F. Drake State,90003654,RONALD E EGSON,Aug,31,2012,Instructional Salaries - Tempo,UNRESTRICTED,"$1,350.00"
48,J.F. Drake State,90003654,RONALD E EGSON,Aug,31,2012,Support Personnel Salaries - S,,"$2,336.00"
48,J.F. Drake State,90003655,ROSELINE C ELIKE,Aug,31,2012,Instructional Salaries - Tempo,UNRESTRICTED,"$1,770.00"
48,J.F. Drake State,90003656,LESLEY-ANNE TOYO ENG,Aug,31,2012,Hourly Wages,UNRESTRICTED,$760.00
48,J.F. Drake State,90003657,AVA D FARR,Aug,31,2012,Instructional Salaries - Regul,,"$4,508.34"
48,J.F. Drake State,90003658,GAIL E FISCH,Aug,31,2012,Instructional Salaries - Regul,ADULT ED,"$6,270.84"
48,J.F. Drake State,90003659,EDWIN T FORBES,Aug,31,2012,Instructional Salaries - Regul,UNRESTRICTED,"$9,085.58"
48,J.F. Drake State,90003660,HORACE L FRANKLIN JR,Aug,31,2012,Instructional Salaries - Regul,UNRESTRICTED,"$4,609.00"
48,J.F. Drake State,90003661,MATTIE B FREEMAN,Aug,31,2012,Instructional Salaries - Tempo,UNRESTRICTED,"$1,710.00"
48,J.F. Drake State,90003662,ALEXANDREA L FRYE,Aug,31,2012,Support Personnel Salaries - S,UNRESTRICTED,"$3,364.13"
48,J.F. Drake State,90003663,WENDY F GANNON,Aug,31,2012,Instructional Salaries - Tempo,,"$1,320.00"
48,J.F. Drake State,90003664,DENISE CLEOSHI GAYMON,Aug,31,2012,Support Personnel Salaries - S,,"$3,166.67"
48,J.F. Drake State,90003665,SYMMETRIS K GOHANNA,Aug,31,2012,Instructional Salaries - Regul,UNRESTRICTED,"$9,767.26"
48,J.F. Drake State,90003665,SYMMETRIS K GOHANNA,Aug,31,2012,Instructional Salaries - Tempo,UNRESTRICTED,$600.00
48,J.F. Drake State,90003666,LARDELL GOODLOE JR,Aug,31,2012,Instructional Salaries - Regul,UNRESTRICTED,"$4,042.31"
48,J.F. Drake State,90003666,LARDELL GOODLOE JR,Aug,31,2012,Instructional Salaries - Tempo,SESP,"$2,400.00"
48,J.F. Drake State,90003666,LARDELL GOODLOE JR,Aug,31,2012,Instructional Salaries - Regul,,$604.03
48,J.F. Drake State,90003667,TIMOTHY RYAN GREEN,Aug,31,2012,Instructional Salaries - Regul,UNRESTRICTED,"$3,680.00"
48,J.F. Drake State,90003667,TIMOTHY RYAN GREEN,Aug,31,2012,Instructional Salaries - Tempo,UNRESTRICTED,"$1,500.00"
48,J.F. Drake State,90003668,VICKIE E GREEN,Aug,31,2012,Instructional Salaries - Regul,,"$4,609.00"
48,J.F. Drake State,90003669,ROBERT N GRISSIM,Aug,31,2012,Instructional Salaries - Regul,UNRESTRICTED,"$8,154.51"
48,J.F. Drake State,90003670,CHARLES GROSS,Aug,31,2012,Instructional Salaries - Tempo,UNRESTRICTED,$450.00
48,J.F. Drake State,90003671,SAMUEL V GUISHARD,Aug,31,2012,Instructional Salaries - Tempo,UNRESTRICTED,"$1,500.00"
48,J.F. Drake State,90003672,MANELZA CRAWFORD HAMBRICK,Aug,31,2012,Support Personnel Salaries - S,UNRESTRICTED,"$2,485.38"
48,J.F. Drake State,90003673,AUNDREA D HANSON,Aug,31,2012,Instructional Salaries - Tempo,UNRESTRICTED,$450.00
48,J.F. Drake State,90003674,KATRINA J HARRIS,Aug,31,2012,Support Personnel Salaries - S,UNRESTRICTED,$955.85
48,J.F. Drake State,90003674,KATRINA J HARRIS,Aug,31,2012,Support Personnel Salaries - S,TITLE III,"$2,867.66"
48,J.F. Drake State,90003675,HENRY C HAWKINS,Aug,31,2012,Instructional Salaries - Tempo,SESP,$900.00
48,J.F. Drake State,90003676,CAROLYN HENDERSON,Aug,31,2012,Instructional Salaries - Regul,UNRESTRICTED,"$9,085.58"
48,J.F. Drake State,90003677,DEXTER R HENRY,Aug,31,2012,Instructional Salaries - Tempo,UNRESTRICTED,$450.00
48,J.F. Drake State,90003677,DEXTER R HENRY,Aug,31,2012,Instructional Salaries - Regul,UNRESTRICTED,"$5,951.34"
48,J.F. Drake State,90003677,DEXTER R HENRY,Aug,31,2012,Instructional Salaries - Tempo,SESP,$480.00
48,J.F. Drake State,90003678,KARL W HENRY SR,Aug,31,2012,Instructional Salaries - Regul,UNRESTRICTED,"$6,765.34"
48,J.F. Drake State,90003679,ELBREY WARREN HERRING,Aug,31,2012,Other Professional Salaries -,ADULT ED,$240.00
48,J.F. Drake State,90003680,ISSAC D HINES,Aug,31,2012,Instructional Salaries - Tempo,UNRESTRICTED,$900.00
48,J.F. Drake State,90003680,ISSAC D HINES,Aug,31,2012,Hourly Wages,NAT'L SCIENCE FOUNDATION,$400.00
48,J.F. Drake State,90003681,DORIS HINTON,Aug,31,2012,Instructional Salaries - Regul,UNRESTRICTED,"$5,023.00"
48,J.F. Drake State,90003682,KHALID HOLMES,Aug,31,2012,Instructional Salaries - Regul,UNRESTRICTED,"$3,918.66"
48,J.F. Drake State,90003682,KHALID HOLMES,Aug,31,2012,Instructional Salaries - Tempo,UNRESTRICTED,$900.00
48,J.F. Drake State,90003683,TERESA HOOPER,Aug,31,2012,Instructional Salaries - Tempo,UNRESTRICTED,$600.00
48,J.F. Drake State,90003684,CANDICE HOWELL,Aug,31,2012,Instructional Salaries - Tempo,UNRESTRICTED,$300.00
48,J.F. Drake State,90003685,JAN J HYMAN,Aug,31,2012,Support Personnel Salaries - S,,"$3,154.50"
48,J.F. Drake State,90003687,NEOKA JANE IVEY,Aug,31,2012,Support Personnel Salaries - S,UNRESTRICTED,"$1,889.87"
48,J.F. Drake State,90003687,NEOKA JANE IVEY,Aug,31,2012,Hourly Wages,NAT'L SCIENCE FOUNDATION,$570.00
48,J.F. Drake State,90003688,SARAH J JAMAR,Aug,31,2012,Instructional Salaries - Tempo,STUDENT SUPPORT SERVICES,$536.25
48,J.F. Drake State,90003689,DONYALE D JONES,Aug,31,2012,Support Personnel Salaries - S,UNRESTRICTED,"$1,651.69"
48,J.F. Drake State,90003689,DONYALE D JONES,Aug,31,2012,Support Personnel Salaries - S,TITLE III,"$1,651.69"
48,J.F. Drake State,90003690,PINEY L JORDAN,Aug,31,2012,Instructional Salaries - Tempo,UNRESTRICTED,"$1,860.00"
48,J.F. Drake State,90003691,NGOZI A KAMALU,Aug,31,2012,Instructional Salaries - Tempo,UNRESTRICTED,$240.00
48,J.F. Drake State,90003692,CHERYL P KEMP,Aug,31,2012,Instructional Salaries - Tempo,UNRESTRICTED,"$1,830.00"
48,J.F. Drake State,90003693,NICHOLAS PAUL KSEPKA,Aug,31,2012,Hourly Wages,UNRESTRICTED,"$2,898.00"
48,J.F. Drake State,90003694,HONG THUYDUC LAM,Aug,31,2012,Instructional Salaries - Regul,UNRESTRICTED,"$5,776.34"
48,J.F. Drake State,90003695,JOYCE P LAMAR,Aug,31,2012,Support Personnel Salaries - S,UNRESTRICTED,"$4,419.13"
48,J.F. Drake State,90003696,DIANNE T LANZA,Aug,31,2012,Instructional Salaries - Tempo,ADULT ED,$675.00
48,J.F. Drake State,90003697,SUSAN ELLA LEE,Aug,31,2012,Hourly Wages,TITLE III,$320.00
48,J.F. Drake State,90003698,DEBORAH WORLEY LEMIRE,Aug,31,2012,Instructional Salaries - Tempo,UNRESTRICTED,$540.00
48,J.F. Drake State,90003699,PAULA W LESKO,Aug,31,2012,Support Personnel Salaries - S,ADULT ED,"$1,359.00"
48,J.F. Drake State,90003700,ORENTHAL MARC LEWIS,Aug,31,2012,Support Personnel Salaries - S,NAT'L SCIENCE FOUNDATION,"$3,228.00"
48,J.F. Drake State,90003701,STEPHANY L STEINFAITH,Aug,31,2012,Instructional Salaries - Tempo,UNRESTRICTED,$450.00
48,J.F. Drake State,90003702,PAMELA LONG,Aug,31,2012,Hourly Wages,NAT'L SCIENCE FOUNDATION,"$1,140.00"
48,J.F. Drake State,90003703,JESSICA DANIELLE MALMBERG,Aug,31,2012,Hourly Wages,,$50.00
48,J.F. Drake State,90003704,MICHEAL V MAXTON,Aug,31,2012,Instructional Salaries - Tempo,UNRESTRICTED,$900.00
48,J.F. Drake State,90003705,HELEN T MCALPINE,Aug,31,2012,Administrative Salaries- Sched,UNRESTRICTED,"$14,266.45"
48,J.F. Drake State,90003705,HELEN T MCALPINE,Aug,31,2012,President's Expense Allowance,UNRESTRICTED,$200.00
48,J.F. Drake State,90003705,HELEN T MCALPINE,Aug,31,2012,Housing Allowance,UNRESTRICTED,"$1,000.00"
48,J.F. Drake State,90003706,DEMETIUS L MCCARTY,Aug,31,2012,Support Personnel Salaries - S,UNRESTRICTED,"$2,113.13"
48,J.F. Drake State,90003707,JERRY L MCCAULLEY,Aug,31,2012,Instructional Salaries - Tempo,UNRESTRICTED,$900.00
48,J.F. Drake State,90003708,MARCUS R MCINTYRE,Aug,31,2012,Hourly Wages,STUDENT SUPPORT SERVICES,$562.50
48,J.F. Drake State,90003709,MISHIKI A MCINTYRE,Aug,31,2012,Hourly Wages,TITLE III,$425.00
48,J.F. Drake State,90003710,SCOTTY MCLAUGHLIN,Aug,31,2012,Instructional Salaries - Tempo,UNRESTRICTED,$300.00
48,J.F. Drake State,90003710,SCOTTY MCLAUGHLIN,Aug,31,2012,Instructional Salaries - Regul,UNRESTRICTED,"$6,535.00"
48,J.F. Drake State,90003711,MARIA YVETTE MEADOR,Aug,31,2012,Employee Taxable Per Diem,TITLE III,$11.25
48,J.F. Drake State,90003711,MARIA YVETTE MEADOR,Aug,31,2012,Support Personnel Salaries - S,STUDENT SUPPORT SERVICES,"$2,559.00"
48,J.F. Drake State,90003712,DEBORAH A MILLING,Aug,31,2012,Instructional Salaries - Regul,UNRESTRICTED,"$11,097.33"
48,J.F. Drake State,90003712,DEBORAH A MILLING,Aug,31,2012,Instructional Salaries - Tempo,UNRESTRICTED,$400.00
48,J.F. Drake State,90003712,DEBORAH A MILLING,Aug,31,2012,Employee Taxable Per Diem,,$11.25
48,J.F. Drake State,90003713,SAMMY J MILTON,Aug,31,2012,Support Personnel Salaries - S,UNRESTRICTED,"$3,452.87"
48,J.F. Drake State,90003714,ACOLEA J MOORE,Aug,31,2012,Instructional Salaries - Tempo,UNRESTRICTED,$450.00
48,J.F. Drake State,90003715,BRUCE D MORRISON,Aug,31,2012,Support Personnel Salaries - S,UNRESTRICTED,"$4,196.13"
48,J.F. Drake State,90003716,KAREN NEIR,Aug,31,2012,Instructional Salaries - Tempo,UNRESTRICTED,"$1,365.00"
48,J.F. Drake State,90003717,JENNIFER O'LINGER,Aug,31,2012,Other Professional Salaries -,UNRESTRICTED,"$4,333.37"
48,J.F. Drake State,90003718,DONALD ORR,Aug,31,2012,Support Personnel Salaries - S,UNRESTRICTED,"$3,750.13"
48,J.F. Drake State,90003719,JENNIFER E PATTERSON,Aug,31,2012,Instructional Salaries - Regul,UNRESTRICTED,"$11,387.92"
48,J.F. Drake State,90003720,JERROLD DION PHIPPS,Aug,31,2012,Instructional Salaries - Tempo,UNRESTRICTED,"$1,350.00"
48,J.F. Drake State,90003721,MARK PAUL PILOTTE,Aug,31,2012,Instructional Salaries - Tempo,UNRESTRICTED,$750.00
48,J.F. Drake State,90003722,INODU TONY PIRI,Aug,31,2012,Instructional Salaries - Tempo,UNRESTRICTED,$450.00
48,J.F. Drake State,90003723,GWENDOLYN D POPE,Aug,31,2012,Instructional Salaries - Regul,UNRESTRICTED,"$12,642.75"
48,J.F. Drake State,90003724,BARBARA J PRIMEAUX,Aug,31,2012,Support Personnel Salaries - S,UNRESTRICTED,"$1,374.96"
48,J.F. Drake State,90003725,FREDRICK O PRUITT,Aug,31,2012,Instructional Salaries - Regul,UNRESTRICTED,"$10,049.75"
48,J.F. Drake State,90003726,MICHAEL RADDEN,Aug,31,2012,Instructional Salaries - Tempo,UNRESTRICTED,$450.00
48,J.F. Drake State,90003727,LORAINE RAGIN,Aug,31,2012,Instructional Salaries - Regul,UNRESTRICTED,"$6,659.08"
48,J.F. Drake State,90003728,ALICE G RAYMOND,Aug,31,2012,Other Professional Salaries -,UNRESTRICTED,"$8,233.00"
48,J.F. Drake State,90003729,JOYCE L RENTZ,Aug,31,2012,Instructional Salaries - Regul,UNRESTRICTED,"$6,251.00"
48,J.F. Drake State,90003729,JOYCE L RENTZ,Aug,31,2012,Instructional Salaries - Tempo,UNRESTRICTED,$900.00
48,J.F. Drake State,90003730,JOHN REUTTER III,Aug,31,2012,Other Professional Salaries -,TITLE III,"$7,053.25"
48,J.F. Drake State,90003731,LYSCELLE M REYES,Aug,31,2012,Instructional Salaries - Tempo,UNRESTRICTED,"$1,500.00"
48,J.F. Drake State,90003732,ROXANNE D RICHARDSON,Aug,31,2012,Support Personnel Salaries - S,UNRESTRICTED,"$3,364.13"
48,J.F. Drake State,90003733,MARTHA J ROBERTS,Aug,31,2012,Support Personnel Salaries - S,UNRESTRICTED,"$4,940.37"
48,J.F. Drake State,90003734,BARRY E SHELTON,Aug,31,2012,Instructional Salaries - Tempo,UNRESTRICTED,$300.00
48,J.F. Drake State,90003735,LESLEY SHOTTS,Aug,31,2012,Instructional Salaries - Regul,UNRESTRICTED,"$4,481.87"
48,J.F. Drake State,90003737,AMANDA R SIMPSON,Aug,31,2012,Support Personnel Salaries - S,UNRESTRICTED,"$2,016.00"
48,J.F. Drake State,90003738,PATRICIA GORDON SIMS,Aug,31,2012,Administrative Salaries- Sched,UNRESTRICTED,"$9,245.01"
48,J.F. Drake State,90003739,JASON MICHAEL SMITH,Aug,31,2012,Hourly Wages,NAT'L SCIENCE FOUNDATION,"$2,235.00"
48,J.F. Drake State,90003740,RYAN E SMITH,Aug,31,2012,Other Professional Salaries -,TITLE III,"$5,577.00"
48,J.F. Drake State,90003741,WANDA L SMITH,Aug,31,2012,Instructional Salaries - Tempo,UNRESTRICTED,$210.00
48,J.F. Drake State,90003742,DELORIS A SMOTHERS,Aug,31,2012,Instructional Salaries - Tempo,UNRESTRICTED,$450.00
48,J.F. Drake State,90003742,DELORIS A SMOTHERS,Aug,31,2012,Instructional Salaries - Regul,UNRESTRICTED,"$6,765.34"
48,J.F. Drake State,90003743,JULIE P SPURGEON,Aug,31,2012,Support Personnel Salaries - S,UNRESTRICTED,"$3,303.17"
48,J.F. Drake State,90003744,JASON M STEPHENS,Aug,31,2012,Hourly Wages,STUDENT SUPPORT SERVICES,$421.88
48,J.F. Drake State,90003745,VERLINDSEY B STEWART,Aug,31,2012,Instructional Salaries - Regul,UNRESTRICTED,"$6,135.00"
48,J.F. Drake State,90003746,MONICA SUDEALL-HAWKINS,Aug,31,2012,Other Professional Salaries -,UNRESTRICTED,$893.11
48,J.F. Drake State,90003747,CHARLES A SULLINS JR,Aug,31,2012,Instructional Salaries - Tempo,UNRESTRICTED,$450.00
48,J.F. Drake State,90003748,SHANNON SUMMERS,Aug,31,2012,Instructional Salaries - Tempo,ADULT ED,$418.00
48,J.F. Drake State,90003749,DOCQUINN N TAYLOR,Aug,31,2012,Instructional Salaries - Tempo,STUDENT SUPPORT SERVICES,$566.25
48,J.F. Drake State,90003750,MALCOLM G TAYLOR,Aug,31,2012,Instructional Salaries - Tempo,UNRESTRICTED,$900.00
48,J.F. Drake State,90003751,YOLANDA R TONEY,Aug,31,2012,Instructional Salaries - Tempo,UNRESTRICTED,$450.00
48,J.F. Drake State,90003752,JOY D TORNQUIST,Aug,31,2012,Instructional Salaries - Tempo,UNRESTRICTED,"$2,055.00"
48,J.F. Drake State,90003753,KRISTIN TREADWAY,Aug,31,2012,Support Personnel Salaries - S,,"$2,856.75"
48,J.F. Drake State,90003754,ELIZABETH A TUGGLE,Aug,31,2012,Instructional Salaries - Tempo,ADULT ED,$936.00
48,J.F. Drake State,90003755,GILBERT T TURLEY,Aug,31,2012,Other Professional Salaries -,UNRESTRICTED,"$6,886.62"
48,J.F. Drake State,90003756,LARRY CHARLES TURNER,Aug,31,2012,Hourly Wages,NAT'L SCIENCE FOUNDATION,$570.00
48,J.F. Drake State,90003757,KAROL C WADDELL,Aug,31,2012,Instructional Salaries - Tempo,NSF CARRYOVER,"$2,280.00"
48,J.F. Drake State,90003758,ANITA G WALKER,Aug,31,2012,Hourly Wages,,$940.00
48,J.F. Drake State,90003759,LETITIA E WALKER,Aug,31,2012,Support Personnel Salaries - S,UNRESTRICTED,"$3,229.38"
48,J.F. Drake State,90003760,KATINA L WALTON,Aug,31,2012,Instructional Salaries - Tempo,ADULT ED,$462.00
48,J.F. Drake State,90003761,DWAYNIA WILKERSON,Aug,31,2012,Instructional Salaries - Tempo,UNRESTRICTED,$150.00
48,J.F. Drake State,90003762,CALANDRA S WILLIAMS,Aug,31,2012,Instructional Salaries - Tempo,ADULT ED,$506.00
48,J.F. Drake State,90003763,KELLY L WILLIAMS,Aug,31,2012,Instructional Salaries - Tempo,UNRESTRICTED,$450.00
48,J.F. Drake State,90003764,RICKY WILLINGHAM,Aug,31,2012,Other Professional Salaries -,TITLE III,"$6,886.62"
48,J.F. Drake State,90003765,BRANDI G WINCHESTER,Aug,31,2012,Instructional Salaries - Regul,UNRESTRICTED,"$3,249.50"
48,J.F. Drake State,90003765,BRANDI G WINCHESTER,Aug,31,2012,Instructional Salaries - Regul,,"$1,083.16"
48,J.F. Drake State,90003766,GEORGE R WINN,Aug,31,2012,Instructional Salaries - Regul,UNRESTRICTED,"$5,261.34"
48,J.F. Drake State,90003766,GEORGE R WINN,Aug,31,2012,Instructional Salaries - Tempo,UNRESTRICTED,$900.00
48,J.F. Drake State,90003767,DELESHIA D YOUNG,Aug,31,2012,Support Personnel Salaries - S,UNRESTRICTED,$840.81
48,J.F. Drake State,302646,ROBBIE LEE AKINS,Aug,31,2012,Annual Leave - Retirement/Term,UNRESTRICTED,$561.20
48,J.F. Drake State,302647,BARBARA J PRIMEAUX,Aug,31,2012,Annual Leave - Retirement/Term,UNRESTRICTED,$155.02
48,J.F. Drake State,302648,MONICA SUDEALL-HAWKINS,Aug,31,2012,Annual Leave - Retirement/Term,UNRESTRICTED,"$2,967.43"
48,J.F. Drake State,105872,ACT,Aug,30,2012,Materials and Supplies,UNRESTRICTED,$990.00
48,J.F. Drake State,105873,ALABAM A&M UNIVERSITY,Aug,30,2012,Advertising and Promotions,UNRESTRICTED,$600.00
48,J.F. Drake State,105874,AMERICAN TECH. PUBLISHERS,Aug,30,2012,Purchases for Resale,UNRESTRICTED,"$2,795.14"
48,J.F. Drake State,105875,AT&T LONG DISTANCE SERV.,Aug,30,2012,Communications,UNRESTRICTED,$14.74
48,J.F. Drake State,105876,BANKS INDUSTRIES INC.,Aug,30,2012,Materials and Supplies,UNRESTRICTED,$148.20
48,J.F. Drake State,105877,BANKS INDUSTRIES INC.,Aug,30,2012,Materials and Supplies,UNRESTRICTED,$321.38
48,J.F. Drake State,105878,MPS,Aug,30,2012,Purchases for Resale,UNRESTRICTED,"$13,695.06"
48,J.F. Drake State,105879,BUBBA'S,Aug,30,2012,Materials and Supplies,UNRESTRICTED,$280.00
48,J.F. Drake State,105880,"BURMAX, INC.",Aug,30,2012,Purchases for Resale,UNRESTRICTED,"$11,341.20"
48,J.F. Drake State,105881,CENGAGE LEARNING,Aug,30,2012,Purchases for Resale,UNRESTRICTED,"$11,362.00"
48,J.F. Drake State,105882,COPELAND CLEANERS,Aug,30,2012,Materials and Supplies,UNRESTRICTED,$50.99
48,J.F. Drake State,105883,"DYNAMIC SECURITY, INC.",Aug,30,2012,Other Contractual Services,UNRESTRICTED,"$5,940.48"
48,J.F. Drake State,105884,"DYNAMIC SECURITY, INC.",Aug,30,2012,Other Contractual Services,UNRESTRICTED,"$5,940.48"
48,J.F. Drake State,105885,"DYNAMIC SECURITY, INC.",Aug,30,2012,Other Contractual Services,UNRESTRICTED,"$5,940.48"
48,J.F. Drake State,105886,"DYNAMIC SECURITY, INC.",Aug,30,2012,Other Contractual Services,UNRESTRICTED,"$5,940.48"
48,J.F. Drake State,105887,KOORSEN PROTECTION SERVIC,Aug,30,2012,Other Contractual Services,UNRESTRICTED,$325.00
48,J.F. Drake State,105888,NASH BAR B-Q,Aug,30,2012,Materials and Supplies,UNRESTRICTED,"$2,997.10"
48,J.F. Drake State,105889,NIGHTINGALE UNIFORM COMPA,Aug,30,2012,Purchases for Resale,UNRESTRICTED,$439.95
48,J.F. Drake State,105890,SAM'S CLUB/WALMART,Aug,30,2012,Materials and Supplies,UNRESTRICTED,$150.00
48,J.F. Drake State,105891,"SKILLPATH, INC.",Aug,30,2012,Advertising and Promotions,UNRESTRICTED,$199.00
48,J.F. Drake State,105892,SUCCESS MARKETING,Aug,30,2012,Advertising and Promotions,UNRESTRICTED,"$19,880.00"
48,J.F. Drake State,105893,"THE SOLUTIONS TEAM, INC",Aug,30,2012,Computer Software,UNRESTRICTED,$200.00
48,J.F. Drake State,105894,UAHUNTSVILLE OFFICE OF AD,Aug,30,2012,Advertising and Promotions,UNRESTRICTED,$150.00
48,J.F. Drake State,105895,UNION CHAPEL CHRISTIAN,Aug,30,2012,Advertising and Promotions,UNRESTRICTED,"$3,000.00"
48,J.F. Drake State,105896,UPS,Aug,30,2012,Freight,UNRESTRICTED,$26.36
48,J.F. Drake State,105897,ANN P. WARREN,Aug,30,2012,Materials and Supplies,UNRESTRICTED,$80.00
48,J.F. Drake State,105898,WHNT-TV,Aug,30,2012,Advertising and Promotions,UNRESTRICTED,$250.00
48,J.F. Drake State,208142,KEMBA CHAMBERS,Aug,30,2012,Out-of-State Travel,TITLE III,$64.05
48,J.F. Drake State,208143,"LAMAR, JOYCE",Aug,30,2012,In-State Travel,TITLE III,$415.14
48,J.F. Drake State,208144,LARDELL GOODLOE,Aug,30,2012,In-State Travel,TITLE III,$344.18
48,J.F. Drake State,208145,"SIMS, PATRICIA G.",Aug,30,2012,Out-of-State Travel,TITLE III,$69.37
48,J.F. Drake State,105871,NICOLE BARNETT,Aug,29,2012,In-State Travel,ADULT ED,$436.33
48,J.F. Drake State,207512,"APPLE COMPUTER, INC.",Aug,29,2012,Institutional Use,NAT'L SCIENCE FOUNDATION,"$1,232.00"
48,J.F. Drake State,207513,COPELAND CLEANERS,Aug,29,2012,Materials and Supplies,NAT'L SCIENCE FOUNDATION,$21.63
48,J.F. Drake State,207514,DEVINE PRODUCTIONS LLC,Aug,29,2012,Materials and Supplies,TITLE III,$400.00
48,J.F. Drake State,207515,JANPAK,Aug,29,2012,Materials and Supplies,TITLE III,"$4,924.78"
48,J.F. Drake State,207516,NICOLE BARNETT,Aug,29,2012,In-State Travel,TITLE III,$214.59
48,J.F. Drake State,207517,"OFFICE DEPOT, INC.",Aug,29,2012,Materials and Supplies,TITLE III,"$1,793.43"
48,J.F. Drake State,207518,SAM'S CLUB/WALMART,Aug,29,2012,Materials and Supplies,PERKINS FUNDS,$45.24
48,J.F. Drake State,105855,DR. BOYCE WILLIAMS,Aug,27,2012,Out-of-State Travel,,$850.98
48,J.F. Drake State,105856,RANDALL A SCHRIMSHER,Aug,27,2012,Materials and Supplies,UNRESTRICTED,"$6,475.00"
48,J.F. Drake State,207510,DR. JANETTE KOTEY,Aug,27,2012,Other Contractual Services,TITLE III,$150.00
48,J.F. Drake State,207511,NAFEO,Aug,27,2012,Memberships,TITLE III,"$2,000.00"
48,J.F. Drake State,105857,AMERICAN BOOK CO,Aug,27,2012,Materials and Supplies,ADULT ED,$335.72
48,J.F. Drake State,105858,MCGRAW HILL EDUCATION,Aug,27,2012,Materials and Supplies,ADULT ED,"$5,128.62"
48,J.F. Drake State,105859,MCGRAW-HILL BOOK COMPANY,Aug,27,2012,Materials and Supplies,ADULT ED,"$4,165.00"
48,J.F. Drake State,105860,"OFFICE DEPOT, INC.",Aug,27,2012,Materials and Supplies,ADULT ED,"$1,565.72"
48,J.F. Drake State,105861,SHERATON DENVER HOTEL,Aug,27,2012,Out-of-State Travel,,$958.02
48,J.F. Drake State,105862,STAPLES BUS ADVANTAGE,Aug,27,2012,Materials and Supplies,ADULT ED,"$1,593.24"
48,J.F. Drake State,105863,SUCCESS MARKETING,Aug,27,2012,Advertising and Promotions,ADULT ED,$560.00
48,J.F. Drake State,105864,ALABAMA CARD SYSTEMS,Aug,27,2012,Service Contracts on Equipment,UNRESTRICTED,"$1,803.00"
48,J.F. Drake State,105865,KUDZU PRODUCTION,Aug,27,2012,Advertising and Promotions,UNRESTRICTED,"$22,212.50"
48,J.F. Drake State,105866,LOU THIRY,Aug,27,2012,Other Contractual Services,UNRESTRICTED,$155.00
48,J.F. Drake State,105867,MID CITY SUPPLY CO,Aug,27,2012,Materials and Supplies,ARMY GRANT,$259.80
48,J.F. Drake State,105868,"OFFICE DEPOT, INC.",Aug,27,2012,Materials and Supplies,UNRESTRICTED,$295.00
48,J.F. Drake State,207494,ACCA,Aug,23,2012,Memberships,TITLE III,"$1,000.00"
48,J.F. Drake State,207495,NICOLE BELL,Aug,23,2012,Out-of-State Travel,TITLE III,$258.46
48,J.F. Drake State,207496,KEMBA CHAMBERS,Aug,23,2012,Out-of-State Travel,TITLE III,$108.69
48,J.F. Drake State,207497,CHRIS NORDMAN ASSOC,Aug,23,2012,Institutional Use,TITLE III,$695.00
48,J.F. Drake State,207498,CHRIS NORDMAN ASSOC,Aug,23,2012,Institutional Use,TITLE III,"$2,000.00"
48,J.F. Drake State,207499,SYMMETRIS GOHANNA,Aug,23,2012,In-State Travel,TITLE III,$67.72
48,J.F. Drake State,207500,LIBRARICA LLC,Aug,23,2012,Materials and Supplies,TITLE III,"$1,956.08"
48,J.F. Drake State,207501,MARIA MEADOR,Aug,23,2012,Out-of-State Travel,TITLE III,$286.95
48,J.F. Drake State,207502,"OFFICE DEPOT, INC.",Aug,23,2012,Materials and Supplies,TITLE III,"$1,794.03"
48,J.F. Drake State,207503,"OFFICE DEPOT, INC.",Aug,23,2012,Materials and Supplies,TITLE III,"$1,670.93"
48,J.F. Drake State,207504,DR. JOHN REUTTER,Aug,23,2012,Institutional Use,NAT'L SCIENCE FOUNDATION,$148.00
48,J.F. Drake State,207505,SACSCOC,Aug,23,2012,Other Contractual Services,TITLE III,$127.50
48,J.F. Drake State,207506,SAM'S CLUB/WALMART,Aug,23,2012,Institutional Use,TITLE III,$500.00
48,J.F. Drake State,207507,"SMITH, RYAN",Aug,23,2012,Out-of-State Travel,TITLE III,$786.23
48,J.F. Drake State,207508,TOLAR CONSTRUCTION CO,Aug,23,2012,Buildings and Fixed Equipment,TITLE III,"$30,712.38"
48,J.F. Drake State,105838,ACT,Aug,23,2012,Materials and Supplies,UNRESTRICTED,"$1,270.00"
48,J.F. Drake State,105839,ALABAMA CARD SYSTEMS,Aug,23,2012,Materials and Supplies,UNRESTRICTED,$108.27
48,J.F. Drake State,105840,ALABAMA TWO-YEAR LIB ASSO,Aug,23,2012,Memberships,UNRESTRICTED,$25.00
48,J.F. Drake State,105841,CENGAGE LEARNING,Aug,23,2012,Purchases for Resale,UNRESTRICTED,"$3,076.72"
48,J.F. Drake State,105842,COPELAND CLEANERS,Aug,23,2012,Materials and Supplies,UNRESTRICTED,$99.81
48,J.F. Drake State,105843,GOODHEART-WILCOX COMPANY,Aug,23,2012,Purchases for Resale,UNRESTRICTED,"$2,176.67"
48,J.F. Drake State,105844,MCGRAW HILL EDUCATION,Aug,23,2012,Purchases for Resale,UNRESTRICTED,"$10,879.77"
48,J.F. Drake State,105845,"OFFICE DEPOT, INC.",Aug,23,2012,Materials and Supplies,UNRESTRICTED,$422.33
48,J.F. Drake State,105847,STRICKLAND COMPANIES,Aug,23,2012,Materials and Supplies,UNRESTRICTED,$306.00
48,J.F. Drake State,105848,THE ALABAMA LAWNMASTERS,Aug,23,2012,Materials and Supplies,UNRESTRICTED,"$5,920.00"
48,J.F. Drake State,105849,"TRUESCREEN, INC",Aug,23,2012,Other Contractual Services,UNRESTRICTED,$26.00
48,J.F. Drake State,105869,GALLUP PRESS BOOK ORDERS,Aug,19,2012,Materials and Supplies,ADULT ED,"$2,163.00"
48,J.F. Drake State,105870,SUCCESS MARKETING,Aug,19,2012,Advertising and Promotions,ADULT ED,"$3,000.00"
48,J.F. Drake State,207460,ACAPNEP,Aug,14,2012,Materials and Supplies,ALLIED HEALTH,$50.00
48,J.F. Drake State,207461,ALBERT'S FLOWERS,Aug,14,2012,Other Contractual Services,TITLE III,$108.50
48,J.F. Drake State,207462,"ALLIANT DATA SYSTEM,INC",Aug,14,2012,Other Contractual Services,TITLE III,"$15,315.00"
48,J.F. Drake State,207463,BERNEY OFFICE SOLUTIONS,Aug,14,2012,Materials and Supplies,TITLE III,$596.19
48,J.F. Drake State,207464,BEST BOOKS,Aug,14,2012,Books,TITLE III,"$11,138.16"
48,J.F. Drake State,207465,BUSINESS SYSTEMS & CONSUL,Aug,14,2012,Other Contractual Services,TITLE III,"$5,887.00"
48,J.F. Drake State,207466,"CAMCAD TECHNOLOGIES, INC",Aug,14,2012,Furniture and Equipment,PERKINS FUNDS,"$1,200.00"
48,J.F. Drake State,207467,CAPITAL TRAILWAYS,Aug,14,2012,Institutional Use,STUDENT SUPPORT SERVICES,"$1,552.00"
48,J.F. Drake State,207468,CHEA,Aug,14,2012,Memberships,TITLE III,$550.00
48,J.F. Drake State,207469,COE,Aug,14,2012,Out-of-State Travel,STUDENT SUPPORT SERVICES,"$1,180.00"
48,J.F. Drake State,207470,ENTERPRISE RENT-A-CAR,Aug,14,2012,In-State Travel,PERKINS FUNDS,$205.20
48,J.F. Drake State,207471,"INNOVATIVE EDUCATORS, INC",Aug,14,2012,Institutional Use,STUDENT SUPPORT SERVICES,$345.00
48,J.F. Drake State,207472,KATIE CHANCE,Aug,14,2012,In-State Travel,TITLE III,$215.34
48,J.F. Drake State,207473,LEADERSHIP ALABAMA,Aug,14,2012,Memberships,TITLE III,$300.00
48,J.F. Drake State,207474,LEADERSHIP HUNTSVILLE,Aug,14,2012,Materials and Supplies,TITLE III,$125.00
48,J.F. Drake State,207475,LEARNING LABS INC.,Aug,14,2012,Furniture and Equipment,PERKINS FUNDS,"$1,440.00"
48,J.F. Drake State,207476,MAMA ANNIE'S,Aug,14,2012,Institutional Use,TITLE III,$120.00
48,J.F. Drake State,207477,MARIA MEADOR,Aug,14,2012,Other Contractual Services,TITLE III,$53.82
48,J.F. Drake State,207478,NEW YORK MARRIOTT MARQUIS,Aug,14,2012,Out-of-State Travel,STUDENT SUPPORT SERVICES,"$2,367.36"
48,J.F. Drake State,207479,"OFFICE DEPOT, INC.",Aug,14,2012,Materials and Supplies,TITLE III,"$3,045.24"
48,J.F. Drake State,207480,ORENTHAL LEWIS,Aug,14,2012,Materials and Supplies,NAT'L SCIENCE FOUNDATION,$129.21
48,J.F. Drake State,207481,PROFESSIONAL SALES CO,Aug,14,2012,Furniture and Equipment,PERKINS FUNDS,"$4,995.00"
48,J.F. Drake State,207482,RICHARD COLLIE,Aug,14,2012,Institutional Use,STUDENT SUPPORT SERVICES,$84.13
48,J.F. Drake State,207483,SAM'S CLUB/WALMART,Aug,14,2012,Materials and Supplies,PERKINS FUNDS,$64.54
48,J.F. Drake State,207484,SCRIP-SAFE SECURITY,Aug,14,2012,Materials and Supplies,TITLE III,$70.00
48,J.F. Drake State,207485,SEXTON WELDING SUPPLY,Aug,14,2012,Materials and Supplies,PERKINS FUNDS,"$4,811.55"
48,J.F. Drake State,207486,SNEAD STATE COMM COLLEGE,Aug,14,2012,Memberships,TITLE III,$100.00
48,J.F. Drake State,207487,STAPLES BUS ADVANTAGE,Aug,14,2012,Materials and Supplies,TITLE III,$157.10
48,J.F. Drake State,207488,STAPLES BUS ADVANTAGE,Aug,14,2012,Materials and Supplies,TITLE III,$135.69
48,J.F. Drake State,207489,STAPLES BUS ADVANTAGE,Aug,14,2012,Materials and Supplies,TITLE III,$409.80
48,J.F. Drake State,207490,SURVEYMONKEY.COM LLC,Aug,14,2012,Materials and Supplies,TITLE III,$300.00
48,J.F. Drake State,207491,TARCOG,Aug,14,2012,Other Contractual Services,TITLE III,$700.00
48,J.F. Drake State,207492,GIL TURLEY,Aug,14,2012,Out-of-State Travel,TITLE III,$930.00
48,J.F. Drake State,207493,4IMPRINT,Aug,14,2012,Materials and Supplies,NAT'L SCIENCE FOUNDATION,"$2,528.72"
48,J.F. Drake State,105792,ALABAMA INSTITUTE FOR DEA,Aug,10,2012,Other Contractual Services,UNRESTRICTED,$225.00
48,J.F. Drake State,105793,AT&T LONG DISTANCE SERV.,Aug,10,2012,Communications,UNRESTRICTED,$8.31
48,J.F. Drake State,105794,BARNES & NOBLE,Aug,10,2012,Purchases for Resale,UNRESTRICTED,$440.51
48,J.F. Drake State,105795,MPS,Aug,10,2012,Purchases for Resale,UNRESTRICTED,"$18,992.66"
48,J.F. Drake State,105797,CENGAGE LEARNING,Aug,10,2012,Purchases for Resale,UNRESTRICTED,"$53,481.79"
48,J.F. Drake State,105798,CHEVRON CARD SERVICES,Aug,10,2012,Gasoline and Oil - Motor Vehic,UNRESTRICTED,$511.76
48,J.F. Drake State,105799,CONDITIONED AIR SOLUTIONS,Aug,10,2012,Maintenance and Repairs,ARMY GRANT,$652.99
48,J.F. Drake State,105799,CONDITIONED AIR SOLUTIONS,Aug,10,2012,Materials and Supplies,ARMY GRANT,$140.00
48,J.F. Drake State,105802,DR. NEIL LAMB,Aug,10,2012,Honorariums,UNRESTRICTED,$250.00
48,J.F. Drake State,105803,"DYNAMIC SECURITY, INC.",Aug,10,2012,Other Contractual Services,UNRESTRICTED,"$5,940.48"
48,J.F. Drake State,105804,"DYNAMIC SECURITY, INC.",Aug,10,2012,Other Contractual Services,UNRESTRICTED,"$5,940.48"
48,J.F. Drake State,105805,ELECTRONIX EXPRESS,Aug,10,2012,Purchases for Resale,UNRESTRICTED,$612.70
48,J.F. Drake State,105806,GED TESTING PROGRAM,Aug,10,2012,Materials and Supplies,UNRESTRICTED,$78.00
48,J.F. Drake State,105807,GED TESTING PROGRAM,Aug,10,2012,Materials and Supplies,UNRESTRICTED,$52.00
48,J.F. Drake State,105808,HUNTSVILLE TIMES,Aug,10,2012,Advertising and Promotions,UNRESTRICTED,$613.20
48,J.F. Drake State,105810,J. A. MAJORS COMPANY,Aug,10,2012,Purchases for Resale,UNRESTRICTED,"$1,483.98"
48,J.F. Drake State,105812,KEYPLUS SCHOOL PRODUCTS,Aug,10,2012,Institutional Use,UNRESTRICTED,$30.10
48,J.F. Drake State,105813,LOWE'S,Aug,10,2012,Maintenance and Repairs,UNRESTRICTED,$75.02
48,J.F. Drake State,105814,"MOBILE MINI, INC",Aug,10,2012,Materials and Supplies,UNRESTRICTED,$322.50
48,J.F. Drake State,105815,MERCER N. AMERICAN,Aug,10,2012,Purchases for Resale,UNRESTRICTED,"$1,860.00"
48,J.F. Drake State,105816,MINUTEMAN PRESS,Aug,10,2012,Advertising and Promotions,UNRESTRICTED,$415.25
48,J.F. Drake State,105817,"OFFICE DEPOT, INC.",Aug,10,2012,Materials and Supplies,UNRESTRICTED,$254.70
48,J.F. Drake State,105818,PEARSON,Aug,10,2012,Purchases for Resale,UNRESTRICTED,"$52,518.77"
48,J.F. Drake State,105819,PROFESSIONAL SALES CO,Aug,10,2012,Purchases for Resale,UNRESTRICTED,"$1,589.96"
48,J.F. Drake State,105823,SAFETY KLEEN CORPORATION,Aug,10,2012,Other Contractual Services,UNRESTRICTED,$805.80
48,J.F. Drake State,105824,SCHROFF DEVELOPMENT CORP,Aug,10,2012,Purchases for Resale,UNRESTRICTED,"$1,739.00"
48,J.F. Drake State,105825,SEXTON WELDING SUPPLY,Aug,10,2012,Purchases for Resale,UNRESTRICTED,"$4,040.00"
48,J.F. Drake State,105826,SOUTHERNLINC WIRELESS,Aug,10,2012,Communications,UNRESTRICTED,$63.60
48,J.F. Drake State,105827,SPEAKIN OUT NEWS,Aug,10,2012,Advertising and Promotions,UNRESTRICTED,"$1,249.92"
48,J.F. Drake State,105828,SUCCESS MARKETING,Aug,10,2012,Advertising and Promotions,UNRESTRICTED,"$1,375.00"
48,J.F. Drake State,105829,SUCCESS MARKETING,Aug,10,2012,Advertising and Promotions,UNRESTRICTED,"$1,800.00"
48,J.F. Drake State,105830,SUCCESS MARKETING,Aug,10,2012,Advertising and Promotions,UNRESTRICTED,"$3,500.00"
48,J.F. Drake State,105831,THE ALABAMA LAWNMASTERS,Aug,10,2012,Other Contractual Services,UNRESTRICTED,"$3,045.00"
48,J.F. Drake State,105831,THE ALABAMA LAWNMASTERS,Aug,10,2012,Other Contractual Services,ARMY GRANT,$650.00
48,J.F. Drake State,105832,THE ALABAMA LAWNMASTERS,Aug,10,2012,Other Contractual Services,UNRESTRICTED,"$3,045.00"
48,J.F. Drake State,105833,UPS,Aug,10,2012,Freight,UNRESTRICTED,$452.34
48,J.F. Drake State,105834,VERIZON WIRELESS,Aug,10,2012,Communications,UNRESTRICTED,"$1,063.42"
48,J.F. Drake State,105835,VON BRAUN CENTER,Aug,10,2012,Institutional Use,UNRESTRICTED,"$10,515.50"
48,J.F. Drake State,105836,WASTE MANAGEMENT OF NORTH,Aug,10,2012,Other Contractual Services,ARMY GRANT,$270.13
48,J.F. Drake State,105836,WASTE MANAGEMENT OF NORTH,Aug,10,2012,Other Contractual Services,UNRESTRICTED,$927.91
48,J.F. Drake State,105837,"JOHN WILEY & SONS, INC.",Aug,10,2012,Purchases for Resale,UNRESTRICTED,"$1,780.16"
48,J.F. Drake State,105789,EDUCAUSE,Aug,6,2012,Computer Software,UNRESTRICTED,$40.00
48,J.F. Drake State,207457,"MCALPINE, HELEN",Aug,6,2012,In-State Travel,TITLE III,$213.12
48,J.F. Drake State,207458,"RAYMOND, ALICE",Aug,6,2012,Out-of-State Travel,TITLE III,"$1,153.73"
48,J.F. Drake State,207459,"SMITH, RYAN",Aug,6,2012,Out-of-State Travel,TITLE III,$150.00
48,J.F. Drake State,302620,NICHOLAS PAUL KSEPKA,Aug,3,2012,Hourly Wages,UNRESTRICTED,$498.00
48,J.F. Drake State,105768,STILL SERVING VETERANS,Aug,2,2012,Other Contractual Services,SESP,"$15,640.00"
48,J.F. Drake State,207456,CODE ELECTRICAL CLASSES I,Aug,2,2012,In-State Travel,TITLE III,$295.00
48,J.F. Drake State,302599,ROBBIE LEE AKINS,Jul,31,2012,Support Personnel Salaries - S,UNRESTRICTED,"$1,625.17"
48,J.F. Drake State,302600,JULIA A ARNETT,Jul,31,2012,Instructional Salaries - Tempo,UNRESTRICTED,$450.00
48,J.F. Drake State,302601,STEPHANIE JONES BOUNDS,Jul,31,2012,Instructional Salaries - Tempo,UNRESTRICTED,"$1,500.00"
48,J.F. Drake State,302602,ROYCE DANTE CARVER,Jul,31,2012,Hourly Wages,STUDENT SUPPORT SERVICES,"$1,034.38"
48,J.F. Drake State,302603,JANINE M CASTILLO,Jul,31,2012,Hourly Wages,NAT'L SCIENCE FOUNDATION,$685.00
48,J.F. Drake State,302604,LESLEY-ANNE TOYO ENG,Jul,31,2012,Hourly Wages,UNRESTRICTED,$870.00
48,J.F. Drake State,302605,ARCHIE LEE HAMLET,Jul,31,2012,Hourly Wages,UNRESTRICTED,$936.00
48,J.F. Drake State,302606,JUSTIN M KELLY,Jul,31,2012,Instructional Salaries - Tempo,UNRESTRICTED,"$1,850.00"
48,J.F. Drake State,302607,PAULA W LESKO,Jul,31,2012,Support Personnel Salaries - S,ADULT ED,$342.00
48,J.F. Drake State,302608,JESSICA DANIELLE MALMBERG,Jul,31,2012,Hourly Wages,,$192.50
48,J.F. Drake State,302609,PROMISE C OGWU,Jul,31,2012,Hourly Wages,UNRESTRICTED,$984.00
48,J.F. Drake State,302610,FORREST BRYANT TEAGUE,Jul,31,2012,Hourly Wages,TITLE III,$870.00
48,J.F. Drake State,302611,DEVONA WARNER,Jul,31,2012,Hourly Wages,,"$1,230.00"
48,J.F. Drake State,302612,MELINDA WEST,Jul,31,2012,Instructional Salaries - Tempo,UNRESTRICTED,$840.00
48,J.F. Drake State,302613,ALICIA LASEAN WILLIAMS,Jul,31,2012,Hourly Wages,,$820.00
48,J.F. Drake State,90003477,DEMICA SHERMIR ALLISON,Jul,31,2012,Hourly Wages,NAT'L SCIENCE FOUNDATION,$840.00
48,J.F. Drake State,90003478,LINDA L APPLEWHITE,Jul,31,2012,Instructional Salaries - Tempo,UNRESTRICTED,$885.00
48,J.F. Drake State,90003479,LYSA AUGUSTIN,Jul,31,2012,Instructional Salaries - Tempo,ADULT ED,$396.00
48,J.F. Drake State,90003480,CAROLYN AVRITTE,Jul,31,2012,Instructional Salaries - Tempo,UNRESTRICTED,"$1,395.00"
48,J.F. Drake State,90003481,NELSON E BARNES,Jul,31,2012,Instructional Salaries - Tempo,UNRESTRICTED,"$1,350.00"
48,J.F. Drake State,90003482,RAQUEL L BARNES,Jul,31,2012,Instructional Salaries - Tempo,UNRESTRICTED,$450.00
48,J.F. Drake State,90003482,RAQUEL L BARNES,Jul,31,2012,Hourly Wages,NAT'L SCIENCE FOUNDATION,$210.00
48,J.F. Drake State,90003483,NICOLE CLARESE BARNETT,Jul,31,2012,Other Professional Salaries -,ADULT ED,"$4,166.00"
48,J.F. Drake State,90003484,BEN BATTLE,Jul,31,2012,Instructional Salaries - Regul,UNRESTRICTED,"$4,922.33"
48,J.F. Drake State,90003485,ANGELA NICOLE BELL,Jul,31,2012,Instructional Salaries - Regul,UNRESTRICTED,"$5,147.00"
48,J.F. Drake State,90003487,PATRICE BIVINS,Jul,31,2012,Support Personnel Salaries - S,STUDENT SUPPORT SERVICES,"$1,889.83"
48,J.F. Drake State,90003488,TRACY H BOND,Jul,31,2012,Instructional Salaries - Tempo,UNRESTRICTED,$450.00
48,J.F. Drake State,90003489,CHERYL BRAWLEY-KELLY,Jul,31,2012,Instructional Salaries - Tempo,UNRESTRICTED,"$2,850.00"
48,J.F. Drake State,90003490,LASHONDA D BROWN,Jul,31,2012,Instructional Salaries - Tempo,UNRESTRICTED,$450.00
48,J.F. Drake State,90003491,BRUCE A BULLUCK,Jul,31,2012,Other Professional Salaries -,UNRESTRICTED,"$5,833.33"
48,J.F. Drake State,90003492,KHALILAH BURTON,Jul,31,2012,Instructional Salaries - Tempo,UNRESTRICTED,"$1,500.00"
48,J.F. Drake State,90003493,LISA G BURTON,Jul,31,2012,Other Professional Salaries -,UNRESTRICTED,"$4,166.00"
48,J.F. Drake State,90003494,KEMBA CHAMBERS,Jul,31,2012,Other Professional Salaries -,UNRESTRICTED,"$7,360.42"
48,J.F. Drake State,90003495,KATIE E CHANCE,Jul,31,2012,Support Personnel Salaries - S,UNRESTRICTED,"$3,452.00"
48,J.F. Drake State,90003496,ROGER CHEN,Jul,31,2012,Hourly Wages,,"$2,362.50"
48,J.F. Drake State,90003497,ADAM CLARK,Jul,31,2012,Instructional Salaries - Regul,UNRESTRICTED,"$4,709.00"
48,J.F. Drake State,90003497,ADAM CLARK,Jul,31,2012,Instructional Salaries - Tempo,UNRESTRICTED,"$1,500.00"
48,J.F. Drake State,90003499,CARLA R CLIFT,Jul,31,2012,Other Professional Salaries -,UNRESTRICTED,"$5,609.75"
48,J.F. Drake State,90003500,RICHARD COLLIE,Jul,31,2012,Other Professional Salaries -,STUDENT SUPPORT SERVICES,"$3,750.00"
48,J.F. Drake State,90003501,TOMEKA CROSS,Jul,31,2012,Support Personnel Salaries - S,UNRESTRICTED,"$2,187.00"
48,J.F. Drake State,90003502,DEIONE L CRUTCHER,Jul,31,2012,Hourly Wages,ADULT ED,"$1,072.50"
48,J.F. Drake State,90003503,MATTIE D DAVIS,Jul,31,2012,Instructional Salaries - Regul,UNRESTRICTED,"$6,157.00"
48,J.F. Drake State,90003504,BRANDIE A DEL VALLE,Jul,31,2012,Instructional Salaries - Tempo,UNRESTRICTED,"$1,200.00"
48,J.F. Drake State,90003505,MARLO DRAKE,Jul,31,2012,Support Personnel Salaries - S,UNRESTRICTED,"$2,421.56"
48,J.F. Drake State,90003505,MARLO DRAKE,Jul,31,2012,Support Personnel Salaries - S,TITLE III,$807.19
48,J.F. Drake State,90003507,CHRISTIANA A OPARA EGBUJO,Jul,31,2012,Instructional Salaries - Tempo,UNRESTRICTED,"$2,730.00"
48,J.F. Drake State,90003508,RONALD E EGSON,Jul,31,2012,Instructional Salaries - Tempo,UNRESTRICTED,"$1,350.00"
48,J.F. Drake State,90003508,RONALD E EGSON,Jul,31,2012,Support Personnel Salaries - S,,"$2,336.00"
48,J.F. Drake State,90003509,ROSELINE C ELIKE,Jul,31,2012,Instructional Salaries - Tempo,UNRESTRICTED,"$2,850.00"
48,J.F. Drake State,90003510,AVA D FARR,Jul,31,2012,Instructional Salaries - Regul,,"$4,508.33"
48,J.F. Drake State,90003511,GAIL E FISCH,Jul,31,2012,Instructional Salaries - Regul,ADULT ED,"$6,270.83"
48,J.F. Drake State,90003512,EDWIN T FORBES,Jul,31,2012,Instructional Salaries - Regul,UNRESTRICTED,"$9,085.58"
48,J.F. Drake State,90003513,HORACE L FRANKLIN JR,Jul,31,2012,Instructional Salaries - Regul,UNRESTRICTED,"$4,609.00"
48,J.F. Drake State,90003514,MATTIE B FREEMAN,Jul,31,2012,Instructional Salaries - Tempo,UNRESTRICTED,"$2,850.00"
48,J.F. Drake State,90003515,ALEXANDREA L FRYE,Jul,31,2012,Other Professional Salaries -,TITLE III,"$2,769.40"
48,J.F. Drake State,90003516,WENDY F GANNON,Jul,31,2012,Instructional Salaries - Tempo,,$735.00
48,J.F. Drake State,90003517,DENISE CLEOSHI GAYMON,Jul,31,2012,Support Personnel Salaries - S,,"$2,640.42"
48,J.F. Drake State,90003518,SYMMETRIS K GOHANNA,Jul,31,2012,Instructional Salaries - Regul,UNRESTRICTED,"$9,767.25"
48,J.F. Drake State,90003518,SYMMETRIS K GOHANNA,Jul,31,2012,Instructional Salaries - Tempo,UNRESTRICTED,$600.00
48,J.F. Drake State,90003519,LARDELL GOODLOE JR,Jul,31,2012,Instructional Salaries - Regul,UNRESTRICTED,"$4,042.31"
48,J.F. Drake State,90003519,LARDELL GOODLOE JR,Jul,31,2012,Instructional Salaries - Tempo,SESP,"$2,400.00"
48,J.F. Drake State,90003519,LARDELL GOODLOE JR,Jul,31,2012,Instructional Salaries - Regul,,$604.02
48,J.F. Drake State,90003520,TIMOTHY RYAN GREEN,Jul,31,2012,Instructional Salaries - Regul,UNRESTRICTED,"$3,680.00"
48,J.F. Drake State,90003520,TIMOTHY RYAN GREEN,Jul,31,2012,Instructional Salaries - Tempo,UNRESTRICTED,"$1,500.00"
48,J.F. Drake State,90003521,VICKIE E GREEN,Jul,31,2012,Instructional Salaries - Regul,,"$4,609.00"
48,J.F. Drake State,90003522,ROBERT N GRISSIM,Jul,31,2012,Instructional Salaries - Regul,UNRESTRICTED,"$8,154.50"
48,J.F. Drake State,90003523,CHARLES GROSS,Jul,31,2012,Instructional Salaries - Tempo,UNRESTRICTED,$450.00
48,J.F. Drake State,90003524,SAMUEL V GUISHARD,Jul,31,2012,Instructional Salaries - Tempo,UNRESTRICTED,"$1,500.00"
48,J.F. Drake State,90003525,MANELZA CRAWFORD HAMBRICK,Jul,31,2012,Support Personnel Salaries - S,UNRESTRICTED,"$2,485.42"
48,J.F. Drake State,90003526,AUNDREA D HANSON,Jul,31,2012,Instructional Salaries - Tempo,UNRESTRICTED,$450.00
48,J.F. Drake State,90003527,KATRINA J HARRIS,Jul,31,2012,Support Personnel Salaries - S,UNRESTRICTED,$955.90
48,J.F. Drake State,90003527,KATRINA J HARRIS,Jul,31,2012,Employee Taxable Per Diem,TITLE III,$11.25
48,J.F. Drake State,90003527,KATRINA J HARRIS,Jul,31,2012,Support Personnel Salaries - S,TITLE III,"$2,867.69"
48,J.F. Drake State,90003528,HENRY C HAWKINS,Jul,31,2012,Instructional Salaries - Tempo,SESP,"$1,200.00"
48,J.F. Drake State,90003529,CAROLYN HENDERSON,Jul,31,2012,Instructional Salaries - Regul,UNRESTRICTED,"$9,085.58"
48,J.F. Drake State,90003530,DEXTER R HENRY,Jul,31,2012,Instructional Salaries - Tempo,UNRESTRICTED,$450.00
48,J.F. Drake State,90003530,DEXTER R HENRY,Jul,31,2012,Instructional Salaries - Regul,UNRESTRICTED,"$5,951.33"
48,J.F. Drake State,90003530,DEXTER R HENRY,Jul,31,2012,Instructional Salaries - Tempo,SESP,$480.00
48,J.F. Drake State,90003531,KARL W HENRY SR,Jul,31,2012,Instructional Salaries - Regul,UNRESTRICTED,"$6,765.33"
48,J.F. Drake State,90003532,ISSAC D HINES,Jul,31,2012,Instructional Salaries - Tempo,UNRESTRICTED,$900.00
48,J.F. Drake State,90003532,ISSAC D HINES,Jul,31,2012,Hourly Wages,NAT'L SCIENCE FOUNDATION,$860.00
48,J.F. Drake State,90003533,DORIS HINTON,Jul,31,2012,Instructional Salaries - Regul,UNRESTRICTED,"$5,023.00"
48,J.F. Drake State,90003534,KHALID HOLMES,Jul,31,2012,Instructional Salaries - Regul,UNRESTRICTED,"$3,918.67"
48,J.F. Drake State,90003534,KHALID HOLMES,Jul,31,2012,Instructional Salaries - Tempo,UNRESTRICTED,$900.00
48,J.F. Drake State,90003535,TERESA HOOPER,Jul,31,2012,Instructional Salaries - Tempo,UNRESTRICTED,"$1,200.00"
48,J.F. Drake State,90003536,CANDICE HOWELL,Jul,31,2012,Instructional Salaries - Tempo,UNRESTRICTED,$300.00
48,J.F. Drake State,90003537,JAN J HYMAN,Jul,31,2012,Support Personnel Salaries - S,,"$3,154.50"
48,J.F. Drake State,90003539,NEOKA JANE IVEY,Jul,31,2012,Support Personnel Salaries - S,UNRESTRICTED,"$1,889.83"
48,J.F. Drake State,90003539,NEOKA JANE IVEY,Jul,31,2012,Hourly Wages,NAT'L SCIENCE FOUNDATION,"$1,215.00"
48,J.F. Drake State,90003540,SARAH J JAMAR,Jul,31,2012,Instructional Salaries - Tempo,STUDENT SUPPORT SERVICES,$667.50
48,J.F. Drake State,90003541,DONYALE D JONES,Jul,31,2012,Support Personnel Salaries - S,UNRESTRICTED,"$1,651.71"
48,J.F. Drake State,90003541,DONYALE D JONES,Jul,31,2012,Support Personnel Salaries - S,TITLE III,"$1,651.71"
48,J.F. Drake State,90003542,PINEY L JORDAN,Jul,31,2012,Instructional Salaries - Tempo,UNRESTRICTED,"$2,760.00"
48,J.F. Drake State,90003543,NGOZI A KAMALU,Jul,31,2012,Instructional Salaries - Tempo,UNRESTRICTED,$675.00
48,J.F. Drake State,90003544,CHERYL P KEMP,Jul,31,2012,Instructional Salaries - Tempo,UNRESTRICTED,"$2,640.00"
48,J.F. Drake State,90003545,NICHOLAS PAUL KSEPKA,Jul,31,2012,Hourly Wages,UNRESTRICTED,"$2,070.00"
48,J.F. Drake State,90003546,HONG THUYDUC LAM,Jul,31,2012,Instructional Salaries - Regul,UNRESTRICTED,"$5,776.33"
48,J.F. Drake State,90003547,JOYCE P LAMAR,Jul,31,2012,Support Personnel Salaries - S,UNRESTRICTED,"$4,419.17"
48,J.F. Drake State,90003548,DIANNE T LANZA,Jul,31,2012,Instructional Salaries - Tempo,ADULT ED,$918.00
48,J.F. Drake State,90003549,SUSAN ELLA LEE,Jul,31,2012,Hourly Wages,TITLE III,$505.00
48,J.F. Drake State,90003550,DEBORAH WORLEY LEMIRE,Jul,31,2012,Instructional Salaries - Tempo,UNRESTRICTED,"$1,080.00"
48,J.F. Drake State,90003551,ORENTHAL MARC LEWIS,Jul,31,2012,Support Personnel Salaries - S,NAT'L SCIENCE FOUNDATION,"$3,228.00"
48,J.F. Drake State,90003552,STEPHANY L STEINFAITH,Jul,31,2012,Instructional Salaries - Tempo,UNRESTRICTED,$450.00
48,J.F. Drake State,90003553,PAMELA LONG,Jul,31,2012,Hourly Wages,NAT'L SCIENCE FOUNDATION,"$1,820.00"
48,J.F. Drake State,90003554,MICHEAL V MAXTON,Jul,31,2012,Instructional Salaries - Tempo,UNRESTRICTED,$900.00
48,J.F. Drake State,90003555,HELEN T MCALPINE,Jul,31,2012,Administrative Salaries- Sched,UNRESTRICTED,"$14,266.45"
48,J.F. Drake State,90003555,HELEN T MCALPINE,Jul,31,2012,President's Expense Allowance,UNRESTRICTED,$200.00
48,J.F. Drake State,90003555,HELEN T MCALPINE,Jul,31,2012,Housing Allowance,UNRESTRICTED,"$1,000.00"
48,J.F. Drake State,90003555,HELEN T MCALPINE,Jul,31,2012,Employee Taxable Per Diem,TITLE III,$11.25
48,J.F. Drake State,90003556,DEMETIUS L MCCARTY,Jul,31,2012,Support Personnel Salaries - S,UNRESTRICTED,"$2,113.17"
48,J.F. Drake State,90003557,JERRY L MCCAULLEY,Jul,31,2012,Instructional Salaries - Tempo,UNRESTRICTED,$900.00
48,J.F. Drake State,90003558,MARCUS R MCINTYRE,Jul,31,2012,Hourly Wages,STUDENT SUPPORT SERVICES,"$1,175.00"
48,J.F. Drake State,90003559,MISHIKI A MCINTYRE,Jul,31,2012,Hourly Wages,TITLE III,$950.00
48,J.F. Drake State,90003560,SCOTTY MCLAUGHLIN,Jul,31,2012,Instructional Salaries - Tempo,UNRESTRICTED,$300.00
48,J.F. Drake State,90003560,SCOTTY MCLAUGHLIN,Jul,31,2012,Instructional Salaries - Regul,UNRESTRICTED,"$6,535.00"
48,J.F. Drake State,90003561,MARIA YVETTE MEADOR,Jul,31,2012,Support Personnel Salaries - S,STUDENT SUPPORT SERVICES,"$2,559.00"
48,J.F. Drake State,90003562,DEBORAH A MILLING,Jul,31,2012,Instructional Salaries - Regul,UNRESTRICTED,"$11,097.33"
48,J.F. Drake State,90003562,DEBORAH A MILLING,Jul,31,2012,Instructional Salaries - Tempo,UNRESTRICTED,$400.00
48,J.F. Drake State,90003563,SAMMY J MILTON,Jul,31,2012,Support Personnel Salaries - S,UNRESTRICTED,"$3,452.83"
48,J.F. Drake State,90003564,PREMA A MONTEIRO,Jul,31,2012,Instructional Salaries - Regul,UNRESTRICTED,"$4,609.00"
48,J.F. Drake State,90003565,ACOLEA J MOORE,Jul,31,2012,Instructional Salaries - Tempo,UNRESTRICTED,$450.00
48,J.F. Drake State,90003566,BRUCE D MORRISON,Jul,31,2012,Support Personnel Salaries - S,UNRESTRICTED,"$4,196.17"
48,J.F. Drake State,90003567,KAREN NEIR,Jul,31,2012,Instructional Salaries - Tempo,UNRESTRICTED,"$2,760.00"
48,J.F. Drake State,90003568,JENNIFER O'LINGER,Jul,31,2012,Other Professional Salaries -,UNRESTRICTED,"$4,333.33"
48,J.F. Drake State,90003569,DONALD ORR,Jul,31,2012,Support Personnel Salaries - S,UNRESTRICTED,"$3,750.17"
48,J.F. Drake State,90003570,JENNIFER E PATTERSON,Jul,31,2012,Instructional Salaries - Regul,UNRESTRICTED,"$11,387.91"
48,J.F. Drake State,90003571,JERROLD DION PHIPPS,Jul,31,2012,Instructional Salaries - Tempo,UNRESTRICTED,"$1,350.00"
48,J.F. Drake State,90003572,MARK PAUL PILOTTE,Jul,31,2012,Instructional Salaries - Tempo,UNRESTRICTED,$750.00
48,J.F. Drake State,90003573,INODU TONY PIRI,Jul,31,2012,Instructional Salaries - Tempo,UNRESTRICTED,$450.00
48,J.F. Drake State,90003574,GWENDOLYN D POPE,Jul,31,2012,Instructional Salaries - Regul,UNRESTRICTED,"$12,642.75"
48,J.F. Drake State,90003575,BARBARA J PRIMEAUX,Jul,31,2012,Support Personnel Salaries - S,UNRESTRICTED,"$2,255.12"
48,J.F. Drake State,90003576,FREDRICK O PRUITT,Jul,31,2012,Instructional Salaries - Regul,UNRESTRICTED,"$10,049.75"
48,J.F. Drake State,90003577,MICHAEL RADDEN,Jul,31,2012,Instructional Salaries - Tempo,UNRESTRICTED,$450.00
48,J.F. Drake State,90003578,LORAINE RAGIN,Jul,31,2012,Instructional Salaries - Regul,UNRESTRICTED,"$6,659.08"
48,J.F. Drake State,90003579,ALICE G RAYMOND,Jul,31,2012,Other Professional Salaries -,UNRESTRICTED,"$8,233.00"
48,J.F. Drake State,90003580,JOYCE L RENTZ,Jul,31,2012,Instructional Salaries - Regul,UNRESTRICTED,"$6,251.00"
48,J.F. Drake State,90003580,JOYCE L RENTZ,Jul,31,2012,Instructional Salaries - Tempo,UNRESTRICTED,$900.00
48,J.F. Drake State,90003581,JOHN REUTTER III,Jul,31,2012,Other Professional Salaries -,TITLE III,"$7,053.25"
48,J.F. Drake State,90003582,LYSCELLE M REYES,Jul,31,2012,Instructional Salaries - Tempo,UNRESTRICTED,"$1,300.00"
48,J.F. Drake State,90003582,LYSCELLE M REYES,Jul,31,2012,Hourly Wages,NAT'L SCIENCE FOUNDATION,$720.00
48,J.F. Drake State,90003583,MARTHA J ROBERTS,Jul,31,2012,Support Personnel Salaries - S,UNRESTRICTED,"$4,940.33"
48,J.F. Drake State,90003584,CHERILYN ROOKS,Jul,31,2012,Instructional Salaries - Tempo,UNRESTRICTED,$480.00
48,J.F. Drake State,90003585,BARRY E SHELTON,Jul,31,2012,Instructional Salaries - Tempo,UNRESTRICTED,$960.00
48,J.F. Drake State,90003586,JACQUELINE M SHIVERS,Jul,31,2012,Instructional Salaries - Tempo,ADULT ED,"$1,443.75"
48,J.F. Drake State,90003587,LESLEY SHOTTS,Jul,31,2012,Instructional Salaries - Regul,UNRESTRICTED,"$4,481.83"
48,J.F. Drake State,90003589,AMANDA R SIMPSON,Jul,31,2012,Support Personnel Salaries - S,UNRESTRICTED,"$2,208.00"
48,J.F. Drake State,90003590,PATRICIA GORDON SIMS,Jul,31,2012,Administrative Salaries- Sched,UNRESTRICTED,"$9,245.09"
48,J.F. Drake State,90003590,PATRICIA GORDON SIMS,Jul,31,2012,Employee Taxable Per Diem,TITLE III,$11.25
48,J.F. Drake State,90003591,CYDALE C SMITH,Jul,31,2012,Hourly Wages,NAT'L SCIENCE FOUNDATION,$600.00
48,J.F. Drake State,90003592,JASON MICHAEL SMITH,Jul,31,2012,Hourly Wages,NAT'L SCIENCE FOUNDATION,"$2,190.00"
48,J.F. Drake State,90003593,RYAN E SMITH,Jul,31,2012,Other Professional Salaries -,TITLE III,"$5,577.00"
48,J.F. Drake State,90003594,WANDA L SMITH,Jul,31,2012,Instructional Salaries - Tempo,UNRESTRICTED,"$1,050.00"
48,J.F. Drake State,90003595,DELORIS A SMOTHERS,Jul,31,2012,Instructional Salaries - Tempo,UNRESTRICTED,$450.00
48,J.F. Drake State,90003595,DELORIS A SMOTHERS,Jul,31,2012,Instructional Salaries - Regul,UNRESTRICTED,"$6,765.33"
48,J.F. Drake State,90003596,JULIE P SPURGEON,Jul,31,2012,Support Personnel Salaries - S,UNRESTRICTED,"$2,427.12"
48,J.F. Drake State,90003597,JASON M STEPHENS,Jul,31,2012,Hourly Wages,STUDENT SUPPORT SERVICES,$796.88
48,J.F. Drake State,90003598,VERLINDSEY B STEWART,Jul,31,2012,Instructional Salaries - Regul,UNRESTRICTED,"$6,135.00"
48,J.F. Drake State,90003599,MONICA SUDEALL-HAWKINS,Jul,31,2012,Other Professional Salaries -,UNRESTRICTED,"$4,993.33"
48,J.F. Drake State,90003600,CHARLES A SULLINS JR,Jul,31,2012,Instructional Salaries - Tempo,UNRESTRICTED,$450.00
48,J.F. Drake State,90003601,SHANNON SUMMERS,Jul,31,2012,Instructional Salaries - Tempo,ADULT ED,$594.00
48,J.F. Drake State,90003602,DOCQUINN N TAYLOR,Jul,31,2012,Instructional Salaries - Tempo,STUDENT SUPPORT SERVICES,$810.00
48,J.F. Drake State,90003603,MALCOLM G TAYLOR,Jul,31,2012,Instructional Salaries - Tempo,UNRESTRICTED,$900.00
48,J.F. Drake State,90003604,YOLANDA R TONEY,Jul,31,2012,Instructional Salaries - Tempo,UNRESTRICTED,$450.00
48,J.F. Drake State,90003605,JOY D TORNQUIST,Jul,31,2012,Instructional Salaries - Tempo,UNRESTRICTED,"$2,055.00"
48,J.F. Drake State,90003606,KRISTIN TREADWAY,Jul,31,2012,Support Personnel Salaries - S,,"$2,856.75"
48,J.F. Drake State,90003607,ELIZABETH A TUGGLE,Jul,31,2012,Instructional Salaries - Tempo,ADULT ED,"$1,248.00"
48,J.F. Drake State,90003608,GILBERT T TURLEY,Jul,31,2012,Other Professional Salaries -,UNRESTRICTED,"$6,886.58"
48,J.F. Drake State,90003609,LARRY CHARLES TURNER,Jul,31,2012,Hourly Wages,NAT'L SCIENCE FOUNDATION,"$1,200.00"
48,J.F. Drake State,90003610,KAROL C WADDELL,Jul,31,2012,Instructional Salaries - Tempo,NSF CARRYOVER,"$2,745.00"
48,J.F. Drake State,90003611,ANITA G WALKER,Jul,31,2012,Hourly Wages,NAT'L SCIENCE FOUNDATION,"$2,280.00"
48,J.F. Drake State,90003612,LETITIA E WALKER,Jul,31,2012,Support Personnel Salaries - S,UNRESTRICTED,"$3,229.42"
48,J.F. Drake State,90003613,KATINA L WALTON,Jul,31,2012,Instructional Salaries - Tempo,ADULT ED,"$1,071.00"
48,J.F. Drake State,90003614,DWAYNIA WILKERSON,Jul,31,2012,Instructional Salaries - Tempo,UNRESTRICTED,$150.00
48,J.F. Drake State,90003615,CALANDRA S WILLIAMS,Jul,31,2012,Instructional Salaries - Tempo,ADULT ED,$644.00
48,J.F. Drake State,90003616,KELLY L WILLIAMS,Jul,31,2012,Instructional Salaries - Tempo,UNRESTRICTED,$450.00
48,J.F. Drake State,90003617,RICKY WILLINGHAM,Jul,31,2012,Other Professional Salaries -,TITLE III,"$6,886.58"
48,J.F. Drake State,90003618,ANTIONETTE MARIE WILSON,Jul,31,2012,Hourly Wages,NAT'L SCIENCE FOUNDATION,$390.00
48,J.F. Drake State,90003619,BRANDI G WINCHESTER,Jul,31,2012,Instructional Salaries - Regul,UNRESTRICTED,"$3,249.50"
48,J.F. Drake State,90003619,BRANDI G WINCHESTER,Jul,31,2012,Instructional Salaries - Regul,,"$1,083.17"
48,J.F. Drake State,90003620,GEORGE R WINN,Jul,31,2012,Instructional Salaries - Regul,UNRESTRICTED,"$5,261.33"
48,J.F. Drake State,90003620,GEORGE R WINN,Jul,31,2012,Instructional Salaries - Tempo,UNRESTRICTED,$900.00
48,J.F. Drake State,90003621,JEANNIE WYNONA YORK,Jul,31,2012,Hourly Wages,NAT'L SCIENCE FOUNDATION,$605.00
48,J.F. Drake State,90003622,DELESHIA D YOUNG,Jul,31,2012,Support Personnel Salaries - S,UNRESTRICTED,"$2,049.17"
48,J.F. Drake State,207404,"CLIFT, CARLA",Jul,27,2012,In-State Travel,TITLE III,$335.43
48,J.F. Drake State,207405,KHALID HOLMES,Jul,27,2012,Out-of-State Travel,NAT'L SCIENCE FOUNDATION,$291.02
48,J.F. Drake State,207406,"MILLING, DEBORAH",Jul,27,2012,In-State Travel,,$215.34
48,J.F. Drake State,207407,PREMA A MONTEIRO,Jul,27,2012,Out-of-State Travel,TITLE III,$254.70
48,J.F. Drake State,207408,NEOKA IVEY,Jul,27,2012,Out-of-State Travel,TITLE III,$297.02
48,J.F. Drake State,207409,JENNIFER OLINGER,Jul,27,2012,Out-of-State Travel,TITLE III,$156.74
48,J.F. Drake State,207410,"POPE, GWENDOLYN M.",Jul,27,2012,Out-of-State Travel,TITLE III,$180.89
48,J.F. Drake State,207411,DR. JOHN REUTTER,Jul,27,2012,In-State Travel,TITLE III,$375.00
48,J.F. Drake State,207412,"SHOTTS, LESLEY",Jul,27,2012,Out-of-State Travel,TITLE III,$261.22
48,J.F. Drake State,105738,ALAPCAE,Jul,25,2012,In-State Travel,,$250.00
48,J.F. Drake State,105739,BALDWIN COOKE COMPANY,Jul,25,2012,Materials and Supplies,UNRESTRICTED,$495.33
48,J.F. Drake State,105740,BANKS INDUSTRIES INC.,Jul,25,2012,Materials and Supplies,PLANT FUNDS,$360.00
48,J.F. Drake State,105740,BANKS INDUSTRIES INC.,Jul,25,2012,Materials and Supplies,UNRESTRICTED,$530.90
48,J.F. Drake State,105741,NICOLE BELL,Jul,25,2012,Materials and Supplies,PLANT FUNDS,$149.89
48,J.F. Drake State,105742,CONDITIONED AIR SOLUTIONS,Jul,25,2012,Maintenance and Repairs,ARMY GRANT,$502.44
48,J.F. Drake State,105743,"DYNAMIC SECURITY, INC.",Jul,25,2012,Other Contractual Services,UNRESTRICTED,"$6,246.24"
48,J.F. Drake State,105744,"DYNAMIC SECURITY, INC.",Jul,25,2012,Other Contractual Services,UNRESTRICTED,"$5,940.48"
48,J.F. Drake State,105745,ELSEVIER/HESI,Jul,25,2012,Purchases for Resale,AUXILIARY,"$8,782.97"
48,J.F. Drake State,105746,GRIZZLY INDUSTRIAL,Jul,25,2012,Purchases for Resale,UNRESTRICTED,"$1,433.65"
48,J.F. Drake State,105747,HIGHLANDS OCCUPATIONAL ME,Jul,25,2012,Purchases for Resale,AUXILIARY,"$2,320.00"
48,J.F. Drake State,105748,INLINE ELECTRIC SUPPLY,Jul,25,2012,Materials and Supplies,UNRESTRICTED,$97.77
48,J.F. Drake State,105749,IN10SITY INTERACTIVE,Jul,25,2012,Advertising and Promotions,UNRESTRICTED,$250.00
48,J.F. Drake State,105750,KENCO TOYOTA LIFT,Jul,25,2012,Materials and Supplies,PLANT FUNDS,$21.11
48,J.F. Drake State,105751,KUDZU PRODUCTION,Jul,25,2012,Advertising and Promotions,UNRESTRICTED,"$2,035.00"
48,J.F. Drake State,105752,KUDZU PRODUCTION,Jul,25,2012,Advertising and Promotions,UNRESTRICTED,"$7,356.25"
48,J.F. Drake State,105753,"LANIER,FORD,SHAVER &",Jul,25,2012,Legal Services,UNRESTRICTED,$494.00
48,J.F. Drake State,105754,"MOBILE MINI, INC",Jul,25,2012,Materials and Supplies,UNRESTRICTED,$107.50
48,J.F. Drake State,105755,MINUTEMAN PRESS,Jul,25,2012,Advertising and Promotions,UNRESTRICTED,"$1,551.13"
48,J.F. Drake State,105756,SEXTON WELDING SUPPLY,Jul,25,2012,Computer Software,WELDING GRANT,"$7,440.00"
48,J.F. Drake State,105756,SEXTON WELDING SUPPLY,Jul,25,2012,Furniture and Equipment,WELDING GRANT,"$49,409.00"
48,J.F. Drake State,207400,NLNAC,Jul,25,2012,Out-of-State Travel,,$790.00
48,J.F. Drake State,207401,"OFFICE DEPOT, INC.",Jul,25,2012,Materials and Supplies,,"$1,511.46"
48,J.F. Drake State,207401,"OFFICE DEPOT, INC.",Jul,25,2012,Materials and Supplies,TITLE III,"$1,495.83"
48,J.F. Drake State,207402,"OFFICE DEPOT, INC.",Jul,25,2012,Materials and Supplies,TITLE III,"$5,497.59"
48,J.F. Drake State,207403,POCKET NURSE,Jul,25,2012,Materials and Supplies,,$678.50
48,J.F. Drake State,105757,MATT OLDACRE,Jul,25,2012,Materials and Supplies,SESP,$53.92
48,J.F. Drake State,105760,NICOLE BARNETT,Jul,25,2012,In-State Travel,ADULT ED,$120.70
48,J.F. Drake State,105761,"OFFICE DEPOT, INC.",Jul,25,2012,Advertising and Promotions,UNRESTRICTED,$97.37
48,J.F. Drake State,105762,RAGAN COMMUNICATIONS,Jul,25,2012,Advertising and Promotions,UNRESTRICTED,$295.00
48,J.F. Drake State,105763,RANDALL A SCHRIMSHER,Jul,25,2012,Materials and Supplies,UNRESTRICTED,"$6,475.00"
48,J.F. Drake State,105764,THE ALABAMA LAWNMASTERS,Jul,25,2012,Other Contractual Services,ARMY GRANT,$650.00
48,J.F. Drake State,105765,"THE SOLUTIONS TEAM, INC",Jul,25,2012,Computer Software,UNRESTRICTED,$200.00
48,J.F. Drake State,105766,RICKY WILLINGHAM,Jul,25,2012,Materials and Supplies,SESP,$294.93
48,J.F. Drake State,207294,BERNEY OFFICE SOLUTIONS,Jul,17,2012,Materials and Supplies,TITLE III,$122.26
48,J.F. Drake State,207295,BERNEY OFFICE SOLUTIONS,Jul,17,2012,Materials and Supplies,TITLE III,$50.10
48,J.F. Drake State,207296,BOB GRISSIM,Jul,17,2012,In-State Travel,TITLE III,$378.00
48,J.F. Drake State,207297,CANDRA JEMISON,Jul,17,2012,In-State Travel,PERKINS FUNDS,$50.00
48,J.F. Drake State,207298,CARRIE ATKINSON,Jul,17,2012,In-State Travel,PERKINS FUNDS,$50.00
48,J.F. Drake State,207299,CDW-G,Jul,17,2012,Materials and Supplies,TITLE III,"$1,471.97"
48,J.F. Drake State,207300,"DAVIS, MATTIE",Jul,17,2012,Out-of-State Travel,,$589.84
48,J.F. Drake State,207301,DEMICA ALLISON,Jul,17,2012,In-State Travel,PERKINS FUNDS,$50.00
48,J.F. Drake State,207302,JACQUELYN T MICHAEL,Jul,17,2012,In-State Travel,PERKINS FUNDS,$50.00
48,J.F. Drake State,207303,"MCALPINE, HELEN",Jul,17,2012,Out-of-State Travel,TITLE III,$290.00
48,J.F. Drake State,207303,"MCALPINE, HELEN",Jul,17,2012,In-State Travel,TITLE III,$318.02
48,J.F. Drake State,207304,ORENTHAL LEWIS,Jul,17,2012,Materials and Supplies,NAT'L SCIENCE FOUNDATION,$47.38
48,J.F. Drake State,207305,ORLANDO PETTY,Jul,17,2012,In-State Travel,PERKINS FUNDS,$50.00
48,J.F. Drake State,207306,DR. JOHN REUTTER,Jul,17,2012,Materials and Supplies,NAT'L SCIENCE FOUNDATION,$2.78
48,J.F. Drake State,207307,ROBERT SHARP,Jul,17,2012,In-State Travel,PERKINS FUNDS,$50.00
48,J.F. Drake State,207308,RONALD EGSON,Jul,17,2012,Out-of-State Travel,TITLE III,$178.29
48,J.F. Drake State,207309,RYAN GREEN,Jul,17,2012,Out-of-State Travel,TITLE III,$301.87
48,J.F. Drake State,207310,SACCR,Jul,17,2012,In-State Travel,TITLE III,"$1,075.00"
48,J.F. Drake State,207311,SENORA MACK,Jul,17,2012,In-State Travel,PERKINS FUNDS,$50.00
48,J.F. Drake State,207312,VICTORIA BOLES,Jul,17,2012,In-State Travel,PERKINS FUNDS,$50.00
48,J.F. Drake State,207286,BRUCE BULLUCK,Jul,12,2012,Out-of-State Travel,TITLE III,$113.29
48,J.F. Drake State,207287,LISA BURTON,Jul,12,2012,In-State Travel,TITLE III,$617.70
48,J.F. Drake State,207288,DR. JOHN REUTTER,Jul,12,2012,Out-of-State Travel,TITLE III,$120.07
48,J.F. Drake State,207289,RONALD EGSON,Jul,12,2012,Out-of-State Travel,,$177.93
48,J.F. Drake State,207290,DELORIS SMOTHERS,Jul,12,2012,Out-of-State Travel,NAT'L SCIENCE FOUNDATION,$536.53
48,J.F. Drake State,207291,ALABAMA MASTER TEACHER,Jul,12,2012,In-State Travel,TITLE III,$500.00
48,J.F. Drake State,207292,ALABAMA MASTER TEACHER,Jul,12,2012,In-State Travel,TITLE III,$500.00
48,J.F. Drake State,207293,UNIVERSITY OF ALABAMA,Jul,12,2012,In-State Travel,TITLE III,"$2,800.00"
48,J.F. Drake State,105702,ACT,Jul,10,2012,Materials and Supplies,UNRESTRICTED,$390.50
48,J.F. Drake State,105703,ALA. SUPERCOMPUTER FUND,Jul,10,2012,Service Contracts on Equipment,UNRESTRICTED,"$4,383.00"
48,J.F. Drake State,105704,AT&T,Jul,10,2012,Advertising and Promotions,UNRESTRICTED,"$1,431.62"
48,J.F. Drake State,105705,AT&T LONG DISTANCE SERV.,Jul,10,2012,Communications,UNRESTRICTED,$11.96
48,J.F. Drake State,105706,AVIZENT,Jul,10,2012,Insurance and Bonding,UNRESTRICTED,$58.33
48,J.F. Drake State,105707,BANKS INDUSTRIES INC.,Jul,10,2012,Materials and Supplies,PLANT FUNDS,"$4,017.64"
48,J.F. Drake State,105708,CDW-G,Jul,10,2012,Institutional Use,UNRESTRICTED,$18.00
48,J.F. Drake State,105709,SCOTTSBORO DAILY SENTINEL,Jul,10,2012,Advertising and Promotions,UNRESTRICTED,"$1,250.00"
48,J.F. Drake State,105710,"DYNAMIC SECURITY, INC.",Jul,10,2012,Other Contractual Services,UNRESTRICTED,"$5,940.48"
48,J.F. Drake State,105711,"DYNAMIC SECURITY, INC.",Jul,10,2012,Other Contractual Services,UNRESTRICTED,"$5,940.48"
48,J.F. Drake State,105712,ELSEVIER/HESI,Jul,10,2012,Purchases for Resale,AUXILIARY,"$1,035.00"
48,J.F. Drake State,105713,FEDEX,Jul,10,2012,Postage,UNRESTRICTED,$69.78
48,J.F. Drake State,105715,HUNTSVILLE TIMES,Jul,10,2012,Materials and Supplies,UNRESTRICTED,$273.80
48,J.F. Drake State,105716,IN10SITY INTERACTIVE,Jul,10,2012,Advertising and Promotions,UNRESTRICTED,$250.00
48,J.F. Drake State,105717,JAMES CLEMENS HIGH SCHOOL,Jul,10,2012,Advertising and Promotions,UNRESTRICTED,$500.00
48,J.F. Drake State,105719,MADISON COUNTY HEALTH DEP,Jul,10,2012,Purchases for Resale,UNRESTRICTED,$85.00
48,J.F. Drake State,105720,"MOBILE MINI, INC",Jul,10,2012,Materials and Supplies,UNRESTRICTED,$322.50
48,J.F. Drake State,105721,MCNEESE GLASS COMPANY,Jul,10,2012,Materials and Supplies,UNRESTRICTED,$257.83
48,J.F. Drake State,105723,SCHINDLER ELEVATOR CORP,Jul,10,2012,Other Contractual Services,UNRESTRICTED,"$1,072.56"
48,J.F. Drake State,105724,SOUTHERNLINC WIRELESS,Jul,10,2012,Communications,UNRESTRICTED,$63.60
48,J.F. Drake State,105725,STILL SERVING VETERANS,Jul,10,2012,Other Contractual Services,SESP,"$11,960.00"
48,J.F. Drake State,105726,SUCCESS MARKETING,Jul,10,2012,Advertising and Promotions,UNRESTRICTED,"$10,226.00"
48,J.F. Drake State,105727,"TRUESCREEN, INC",Jul,10,2012,Other Contractual Services,UNRESTRICTED,$65.00
48,J.F. Drake State,105728,U S SPACE & ROCKET CENTER,Jul,10,2012,Advertising and Promotions,UNRESTRICTED,"$1,000.00"
48,J.F. Drake State,105729,UPS,Jul,10,2012,Freight,UNRESTRICTED,$217.44
48,J.F. Drake State,105730,VERIZON WIRELESS,Jul,10,2012,Communications,UNRESTRICTED,$987.10
48,J.F. Drake State,105731,WASTE MANAGEMENT OF NORTH,Jul,10,2012,Other Contractual Services,UNRESTRICTED,"$1,019.24"
48,J.F. Drake State,105731,WASTE MANAGEMENT OF NORTH,Jul,10,2012,Other Contractual Services,ARMY GRANT,$269.87
48,J.F. Drake State,105732,WEATHERTECH DIST,Jul,10,2012,Materials and Supplies,UNRESTRICTED,$220.20
48,J.F. Drake State,105733,WHNT-TV,Jul,10,2012,Advertising and Promotions,UNRESTRICTED,$250.00
48,J.F. Drake State,207272,CDW-G,Jul,9,2012,Materials and Supplies,TITLE III,"$30,521.30"
48,J.F. Drake State,207273,CDW-G,Jul,9,2012,Materials and Supplies,TITLE III,"$17,042.40"
48,J.F. Drake State,207274,"CERTIPORT, INC",Jul,9,2012,Materials and Supplies,TITLE III,"$4,250.00"
48,J.F. Drake State,207275,COMPANSOL,Jul,9,2012,Institutional Use,STUDENT SUPPORT SERVICES,"$4,995.00"
48,J.F. Drake State,207276,DENISE GAYMON,Jul,9,2012,In-State Travel,NAT'L SCIENCE FOUNDATION,$175.00
48,J.F. Drake State,207277,EBSCO PUBLISHING,Jul,9,2012,Materials and Supplies,ALLIED HEALTH,"$7,135.42"
48,J.F. Drake State,207277,EBSCO PUBLISHING,Jul,9,2012,Subscriptions,TITLE III,"$7,300.00"
48,J.F. Drake State,207278,NOEL-LEVITZ,Jul,9,2012,Out-of-State Travel,TITLE III,$625.00
48,J.F. Drake State,207279,NURSE TIM INC,Jul,9,2012,Materials and Supplies,,$499.00
48,J.F. Drake State,207280,"OFFICE DEPOT, INC.",Jul,9,2012,Materials and Supplies,NAT'L SCIENCE FOUNDATION,"$1,816.05"
48,J.F. Drake State,207281,"OFFICE DEPOT, INC.",Jul,9,2012,Materials and Supplies,TITLE III,$199.98
48,J.F. Drake State,207282,"OFFICE DEPOT, INC.",Jul,9,2012,Materials and Supplies,NAT'L SCIENCE FOUNDATION,$769.93
48,J.F. Drake State,207283,ORLANDO WORLD CTR RESORT,Jul,9,2012,Out-of-State Travel,TITLE III,$911.25
48,J.F. Drake State,207284,STRICKLAND COMPANIES,Jul,9,2012,Materials and Supplies,TITLE III,"$4,006.80"
48,J.F. Drake State,207285,THE PEABODY MEMPHIS,Jul,9,2012,Out-of-State Travel,TITLE III,$993.18
48,J.F. Drake State,207285,THE PEABODY MEMPHIS,Jul,9,2012,Out-of-State Travel,PERKINS FUNDS,$939.18
48,J.F. Drake State,207265,AACUBO,Jul,3,2012,In-State Travel,TITLE III,$450.00
48,J.F. Drake State,207266,BERNEY OFFICE SOLUTIONS,Jul,3,2012,Materials and Supplies,TITLE III,$212.81
48,J.F. Drake State,207267,LEADERSHIP FOR QUEENS,Jul,3,2012,Out-of-State Travel,TITLE III,$600.00
48,J.F. Drake State,207267,LEADERSHIP FOR QUEENS,Jul,3,2012,Out-of-State Travel,PERKINS FUNDS,$750.00
48,J.F. Drake State,207268,MARIA MEADOR,Jul,3,2012,Out-of-State Travel,PERKINS FUNDS,$200.00
48,J.F. Drake State,207268,MARIA MEADOR,Jul,3,2012,Out-of-State Travel,TITLE III,$300.00
48,J.F. Drake State,207269,PODS STORAGE,Jul,3,2012,Materials and Supplies,,$159.00
48,J.F. Drake State,207270,"RAYMOND, ALICE",Jul,3,2012,Out-of-State Travel,TITLE III,"$2,283.22"
48,J.F. Drake State,207271,"SACJTC, DR. GEORGE EDWARD",Jul,3,2012,Memberships,TITLE III,$100.00
48,J.F. Drake State,207251,SHERATON OKLAHOMA HOTEL,Jul,2,2012,Out-of-State Travel,TITLE III,"$1,585.08"
48,J.F. Drake State,207252,WAVES,Jul,2,2012,Out-of-State Travel,TITLE III,$675.00
48,J.F. Drake State,302596,ROBERT N GRISSIM,Jul,2,2012,Instructional Salaries - Regul,UNRESTRICTED,"$3,646.17"
48,J.F. Drake State,302597,MONIQUE C COSBY,Jul,2,2012,Annual Leave - Retirement/Term,UNRESTRICTED,"$1,601.04"
48,J.F. Drake State,302598,REGINA LYNNE CRAWFORD,Jul,2,2012,Annual Leave - Retirement/Term,UNRESTRICTED,$799.65
48,J.F. Drake State,302548,ROBBIE LEE AKINS,Jun,29,2012,Support Personnel Salaries - S,UNRESTRICTED,"$2,113.17"
48,J.F. Drake State,302549,JULIA A ARNETT,Jun,29,2012,Instructional Salaries - Tempo,UNRESTRICTED,$450.00
48,J.F. Drake State,302550,RAQUEL L BARNES,Jun,29,2012,Instructional Salaries - Tempo,UNRESTRICTED,$450.00
48,J.F. Drake State,302550,RAQUEL L BARNES,Jun,29,2012,Hourly Wages,NAT'L SCIENCE FOUNDATION,$290.00
48,J.F. Drake State,302551,TRACY H BOND,Jun,29,2012,Instructional Salaries - Tempo,UNRESTRICTED,$450.00
48,J.F. Drake State,302552,STEPHANIE JONES BOUNDS,Jun,29,2012,Instructional Salaries - Tempo,UNRESTRICTED,"$1,500.00"
48,J.F. Drake State,302553,ROYCE DANTE CARVER,Jun,29,2012,Hourly Wages,STUDENT SUPPORT SERVICES,$337.50
48,J.F. Drake State,302554,JANINE M CASTILLO,Jun,29,2012,Hourly Wages,NAT'L SCIENCE FOUNDATION,$175.00
48,J.F. Drake State,302555,TOMEKA CROSS,Jun,29,2012,Support Personnel Salaries - S,UNRESTRICTED,"$2,187.00"
48,J.F. Drake State,302556,LESLEY-ANNE TOYO ENG,Jun,29,2012,Hourly Wages,UNRESTRICTED,$455.00
48,J.F. Drake State,302557,ARCHIE LEE HAMLET,Jun,29,2012,Hourly Wages,UNRESTRICTED,$132.00
48,J.F. Drake State,302558,GEORGE VICTOR HARLOW III,Jun,29,2012,Hourly Wages,NAT'L SCIENCE FOUNDATION,$180.00
48,J.F. Drake State,302559,JUSTIN M KELLY,Jun,29,2012,Instructional Salaries - Tempo,UNRESTRICTED,"$1,850.00"
48,J.F. Drake State,302560,DEBORAH WORLEY LEMIRE,Jun,29,2012,Instructional Salaries - Tempo,UNRESTRICTED,$810.00
48,J.F. Drake State,302561,LARICCA Y LONDON,Jun,29,2012,Hourly Wages,NAT'L SCIENCE FOUNDATION,"$1,920.00"
48,J.F. Drake State,302562,PROMISE C OGWU,Jun,29,2012,Hourly Wages,UNRESTRICTED,$282.00
48,J.F. Drake State,302563,MATTHEW JOSEPH OLDACRE,Jun,29,2012,Instructional Salaries - Tempo,UNRESTRICTED,"$2,100.00"
48,J.F. Drake State,302564,MARK PAUL PILOTTE,Jun,29,2012,Instructional Salaries - Tempo,UNRESTRICTED,$750.00
48,J.F. Drake State,302565,TONYA R SHEPEARD,Jun,29,2012,Hourly Wages,NAT'L SCIENCE FOUNDATION,"$1,920.00"
48,J.F. Drake State,302566,GUY ARTHUR SIEGELE,Jun,29,2012,Support Personnel Salaries - S,UNRESTRICTED,"$1,110.65"
48,J.F. Drake State,302567,CYDALE C SMITH,Jun,29,2012,Hourly Wages,NAT'L SCIENCE FOUNDATION,"$2,280.00"
48,J.F. Drake State,302568,JASON MICHAEL SMITH,Jun,29,2012,Hourly Wages,NAT'L SCIENCE FOUNDATION,"$2,475.00"
48,J.F. Drake State,302569,JASON M STEPHENS,Jun,29,2012,Hourly Wages,STUDENT SUPPORT SERVICES,$393.75
48,J.F. Drake State,302570,FORREST BRYANT TEAGUE,Jun,29,2012,Hourly Wages,TITLE III,$800.00
48,J.F. Drake State,302571,LARRY CHARLES TURNER,Jun,29,2012,Hourly Wages,NAT'L SCIENCE FOUNDATION,$750.00
48,J.F. Drake State,302572,DEVONA WARNER,Jun,29,2012,Hourly Wages,,$712.50
48,J.F. Drake State,302573,MICHELLE L WATKINS,Jun,29,2012,Hourly Wages,NAT'L SCIENCE FOUNDATION,$960.00
48,J.F. Drake State,302574,MELINDA WEST,Jun,29,2012,Instructional Salaries - Tempo,UNRESTRICTED,$480.00
48,J.F. Drake State,302575,ALICIA LASEAN WILLIAMS,Jun,29,2012,Hourly Wages,,$880.00
48,J.F. Drake State,302576,KELLY L WILLIAMS,Jun,29,2012,Instructional Salaries - Tempo,UNRESTRICTED,$450.00
48,J.F. Drake State,302577,ANTIONETTE MARIE WILSON,Jun,29,2012,Hourly Wages,NAT'L SCIENCE FOUNDATION,$480.00
48,J.F. Drake State,302578,DEBORA P WINTERS,Jun,29,2012,Hourly Wages,NAT'L SCIENCE FOUNDATION,"$1,920.00"
48,J.F. Drake State,90003338,DEMICA SHERMIR ALLISON,Jun,29,2012,Hourly Wages,NAT'L SCIENCE FOUNDATION,$870.00
48,J.F. Drake State,90003339,LINDA L APPLEWHITE,Jun,29,2012,Instructional Salaries - Tempo,UNRESTRICTED,$660.00
48,J.F. Drake State,90003340,LYSA AUGUSTIN,Jun,29,2012,Instructional Salaries - Tempo,ADULT ED,$572.00
48,J.F. Drake State,90003341,CAROLYN AVRITTE,Jun,29,2012,Instructional Salaries - Tempo,UNRESTRICTED,"$1,200.00"
48,J.F. Drake State,90003342,NELSON E BARNES,Jun,29,2012,Instructional Salaries - Tempo,UNRESTRICTED,"$1,350.00"
48,J.F. Drake State,90003343,NICOLE CLARESE BARNETT,Jun,29,2012,Other Professional Salaries -,ADULT ED,"$4,166.00"
48,J.F. Drake State,90003344,BEN BATTLE,Jun,29,2012,Instructional Salaries - Regul,UNRESTRICTED,"$4,922.33"
48,J.F. Drake State,90003345,ANGELA NICOLE BELL,Jun,29,2012,Instructional Salaries - Regul,UNRESTRICTED,"$5,147.00"
48,J.F. Drake State,90003347,PATRICE BIVINS,Jun,29,2012,Support Personnel Salaries - S,STUDENT SUPPORT SERVICES,"$1,889.83"
48,J.F. Drake State,90003348,CHERYL BRAWLEY-KELLY,Jun,29,2012,Instructional Salaries - Tempo,UNRESTRICTED,"$1,530.00"
48,J.F. Drake State,90003349,LASHONDA D BROWN,Jun,29,2012,Instructional Salaries - Tempo,UNRESTRICTED,$450.00
48,J.F. Drake State,90003350,BRUCE A BULLUCK,Jun,29,2012,Other Professional Salaries -,UNRESTRICTED,"$5,833.33"
48,J.F. Drake State,90003351,KHALILAH BURTON,Jun,29,2012,Instructional Salaries - Tempo,UNRESTRICTED,"$1,500.00"
48,J.F. Drake State,90003352,LISA G BURTON,Jun,29,2012,Other Professional Salaries -,UNRESTRICTED,"$3,997.72"
48,J.F. Drake State,90003353,DONALD LEE CADWALADER,Jun,29,2012,Hourly Wages,NAT'L SCIENCE FOUNDATION,"$1,470.00"
48,J.F. Drake State,90003354,KEMBA CHAMBERS,Jun,29,2012,Other Professional Salaries -,UNRESTRICTED,"$7,360.42"
48,J.F. Drake State,90003355,KATIE E CHANCE,Jun,29,2012,Support Personnel Salaries - S,UNRESTRICTED,"$3,078.27"
48,J.F. Drake State,90003356,ROGER CHEN,Jun,29,2012,Hourly Wages,,"$2,362.50"
48,J.F. Drake State,90003357,ADAM CLARK,Jun,29,2012,Instructional Salaries - Regul,UNRESTRICTED,"$4,709.00"
48,J.F. Drake State,90003357,ADAM CLARK,Jun,29,2012,Instructional Salaries - Tempo,UNRESTRICTED,"$1,500.00"
48,J.F. Drake State,90003359,CARLA R CLIFT,Jun,29,2012,Other Professional Salaries -,UNRESTRICTED,"$5,609.75"
48,J.F. Drake State,90003360,RICHARD COLLIE,Jun,29,2012,Other Professional Salaries -,STUDENT SUPPORT SERVICES,"$3,750.00"
48,J.F. Drake State,90003361,MONIQUE C COSBY,Jun,29,2012,Support Personnel Salaries - S,UNRESTRICTED,"$2,439.36"
48,J.F. Drake State,90003362,REGINA LYNNE CRAWFORD,Jun,29,2012,Support Personnel Salaries - S,UNRESTRICTED,$852.90
48,J.F. Drake State,90003363,DEIONE L CRUTCHER,Jun,29,2012,Hourly Wages,ADULT ED,"$1,072.50"
48,J.F. Drake State,90003364,MATTIE D DAVIS,Jun,29,2012,Instructional Salaries - Regul,UNRESTRICTED,"$6,157.00"
48,J.F. Drake State,90003365,BRANDIE A DEL VALLE,Jun,29,2012,Instructional Salaries - Tempo,UNRESTRICTED,$330.00
48,J.F. Drake State,90003366,MARLO DRAKE,Jun,29,2012,Support Personnel Salaries - S,UNRESTRICTED,"$2,421.56"
48,J.F. Drake State,90003366,MARLO DRAKE,Jun,29,2012,Support Personnel Salaries - S,TITLE III,$807.19
48,J.F. Drake State,90003368,CHRISTIANA A OPARA EGBUJO,Jun,29,2012,Instructional Salaries - Tempo,UNRESTRICTED,"$1,890.00"
48,J.F. Drake State,90003369,RONALD E EGSON,Jun,29,2012,Instructional Salaries - Tempo,UNRESTRICTED,"$1,350.00"
48,J.F. Drake State,90003369,RONALD E EGSON,Jun,29,2012,Support Personnel Salaries - S,CAREER COACHES,"$2,336.00"
48,J.F. Drake State,90003370,ROSELINE C ELIKE,Jun,29,2012,Instructional Salaries - Tempo,UNRESTRICTED,"$2,400.00"
48,J.F. Drake State,90003371,AVA D FARR,Jun,29,2012,Instructional Salaries - Regul,,"$4,508.33"
48,J.F. Drake State,90003372,GAIL E FISCH,Jun,29,2012,Instructional Salaries - Regul,ADULT ED,"$3,583.33"
48,J.F. Drake State,90003373,EDWIN T FORBES,Jun,29,2012,Instructional Salaries - Regul,UNRESTRICTED,"$5,023.00"
48,J.F. Drake State,90003374,HORACE L FRANKLIN JR,Jun,29,2012,Instructional Salaries - Regul,UNRESTRICTED,"$4,609.00"
48,J.F. Drake State,90003375,MATTIE B FREEMAN,Jun,29,2012,Instructional Salaries - Tempo,UNRESTRICTED,"$2,760.00"
48,J.F. Drake State,90003376,ALEXANDREA L FRYE,Jun,29,2012,Other Professional Salaries -,TITLE III,"$3,000.00"
48,J.F. Drake State,90003377,WENDY F GANNON,Jun,29,2012,Instructional Salaries - Tempo,,"$1,290.00"
48,J.F. Drake State,90003378,DENISE CLEOSHI GAYMON,Jun,29,2012,Support Personnel Salaries - S,CAREER COACHES,"$2,336.00"
48,J.F. Drake State,90003379,SYMMETRIS K GOHANNA,Jun,29,2012,Instructional Salaries - Regul,UNRESTRICTED,"$5,399.33"
48,J.F. Drake State,90003379,SYMMETRIS K GOHANNA,Jun,29,2012,Instructional Salaries - Tempo,UNRESTRICTED,$600.00
48,J.F. Drake State,90003380,LARDELL GOODLOE JR,Jun,29,2012,Instructional Salaries - Regul,UNRESTRICTED,"$4,042.31"
48,J.F. Drake State,90003380,LARDELL GOODLOE JR,Jun,29,2012,Instructional Salaries - Tempo,SESP,"$1,140.00"
48,J.F. Drake State,90003380,LARDELL GOODLOE JR,Jun,29,2012,Instructional Salaries - Regul,,$604.02
48,J.F. Drake State,90003381,TIMOTHY RYAN GREEN,Jun,29,2012,Instructional Salaries - Regul,UNRESTRICTED,"$3,680.00"
48,J.F. Drake State,90003381,TIMOTHY RYAN GREEN,Jun,29,2012,Instructional Salaries - Tempo,UNRESTRICTED,"$1,500.00"
48,J.F. Drake State,90003382,VICKIE E GREEN,Jun,29,2012,Instructional Salaries - Regul,,"$4,609.00"
48,J.F. Drake State,90003383,ROBERT N GRISSIM,Jun,29,2012,Instructional Salaries - Regul,UNRESTRICTED,"$4,508.33"
48,J.F. Drake State,90003384,CHARLES GROSS,Jun,29,2012,Instructional Salaries - Tempo,UNRESTRICTED,$450.00
48,J.F. Drake State,90003385,SAMUEL V GUISHARD,Jun,29,2012,Instructional Salaries - Tempo,UNRESTRICTED,"$1,500.00"
48,J.F. Drake State,90003386,MANELZA CRAWFORD HAMBRICK,Jun,29,2012,Support Personnel Salaries - S,UNRESTRICTED,"$2,485.42"
48,J.F. Drake State,90003387,AUNDREA D HANSON,Jun,29,2012,Instructional Salaries - Tempo,UNRESTRICTED,$450.00
48,J.F. Drake State,90003388,KATRINA J HARRIS,Jun,29,2012,Support Personnel Salaries - S,UNRESTRICTED,$955.90
48,J.F. Drake State,90003388,KATRINA J HARRIS,Jun,29,2012,Support Personnel Salaries - S,TITLE III,"$2,867.69"
48,J.F. Drake State,90003389,HENRY C HAWKINS,Jun,29,2012,Instructional Salaries - Tempo,SESP,$900.00
48,J.F. Drake State,90003390,CAROLYN HENDERSON,Jun,29,2012,Instructional Salaries - Regul,UNRESTRICTED,"$5,023.00"
48,J.F. Drake State,90003391,DEXTER R HENRY,Jun,29,2012,Instructional Salaries - Tempo,UNRESTRICTED,$450.00
48,J.F. Drake State,90003391,DEXTER R HENRY,Jun,29,2012,Instructional Salaries - Regul,UNRESTRICTED,"$5,951.33"
48,J.F. Drake State,90003391,DEXTER R HENRY,Jun,29,2012,Instructional Salaries - Tempo,SESP,$480.00
48,J.F. Drake State,90003392,KARL W HENRY SR,Jun,29,2012,Instructional Salaries - Regul,UNRESTRICTED,"$6,765.33"
48,J.F. Drake State,90003393,ISSAC D HINES,Jun,29,2012,Instructional Salaries - Tempo,UNRESTRICTED,$900.00
48,J.F. Drake State,90003393,ISSAC D HINES,Jun,29,2012,Hourly Wages,NAT'L SCIENCE FOUNDATION,$820.00
48,J.F. Drake State,90003394,DORIS HINTON,Jun,29,2012,Instructional Salaries - Regul,UNRESTRICTED,"$5,023.00"
48,J.F. Drake State,90003395,MERRIL EDWARD HOLLOWAY II,Jun,29,2012,Instructional Salaries - Tempo,ADULT ED,$396.00
48,J.F. Drake State,90003396,KHALID HOLMES,Jun,29,2012,Instructional Salaries - Regul,UNRESTRICTED,"$3,918.67"
48,J.F. Drake State,90003396,KHALID HOLMES,Jun,29,2012,Instructional Salaries - Tempo,UNRESTRICTED,$900.00
48,J.F. Drake State,90003397,TERESA HOOPER,Jun,29,2012,Instructional Salaries - Tempo,UNRESTRICTED,$300.00
48,J.F. Drake State,90003398,CANDICE HOWELL,Jun,29,2012,Instructional Salaries - Tempo,UNRESTRICTED,$300.00
48,J.F. Drake State,90003399,NIKKI LACHERYLA HUGGINS,Jun,29,2012,Hourly Wages,TITLE III,$175.00
48,J.F. Drake State,90003400,JAN J HYMAN,Jun,29,2012,Support Personnel Salaries - S,,"$3,154.50"
48,J.F. Drake State,90003402,NEOKA JANE IVEY,Jun,29,2012,Support Personnel Salaries - S,UNRESTRICTED,"$1,889.83"
48,J.F. Drake State,90003402,NEOKA JANE IVEY,Jun,29,2012,Hourly Wages,NAT'L SCIENCE FOUNDATION,$772.50
48,J.F. Drake State,90003403,SARAH J JAMAR,Jun,29,2012,Instructional Salaries - Tempo,STUDENT SUPPORT SERVICES,$525.00
48,J.F. Drake State,90003404,DONYALE D JONES,Jun,29,2012,Support Personnel Salaries - S,UNRESTRICTED,"$1,651.71"
48,J.F. Drake State,90003404,DONYALE D JONES,Jun,29,2012,Support Personnel Salaries - S,TITLE III,"$1,651.71"
48,J.F. Drake State,90003405,PINEY L JORDAN,Jun,29,2012,Instructional Salaries - Tempo,UNRESTRICTED,"$2,790.00"
48,J.F. Drake State,90003406,NGOZI A KAMALU,Jun,29,2012,Instructional Salaries - Tempo,UNRESTRICTED,$435.00
48,J.F. Drake State,90003407,CHERYL P KEMP,Jun,29,2012,Instructional Salaries - Tempo,UNRESTRICTED,"$1,830.00"
48,J.F. Drake State,90003408,NICHOLAS PAUL KSEPKA,Jun,29,2012,Hourly Wages,UNRESTRICTED,"$2,287.50"
48,J.F. Drake State,90003409,HONG THUYDUC LAM,Jun,29,2012,Instructional Salaries - Regul,UNRESTRICTED,"$5,776.33"
48,J.F. Drake State,90003410,JOYCE P LAMAR,Jun,29,2012,Support Personnel Salaries - S,UNRESTRICTED,"$4,419.17"
48,J.F. Drake State,90003411,DIANNE T LANZA,Jun,29,2012,Instructional Salaries - Tempo,ADULT ED,$738.00
48,J.F. Drake State,90003412,SUSAN ELLA LEE,Jun,29,2012,Hourly Wages,TITLE III,$435.00
48,J.F. Drake State,90003413,ORENTHAL MARC LEWIS,Jun,29,2012,Support Personnel Salaries - S,NAT'L SCIENCE FOUNDATION,"$3,228.00"
48,J.F. Drake State,90003414,STEPHANY L STEINFAITH,Jun,29,2012,Instructional Salaries - Tempo,UNRESTRICTED,$450.00
48,J.F. Drake State,90003415,MICHEAL V MAXTON,Jun,29,2012,Instructional Salaries - Tempo,UNRESTRICTED,$900.00
48,J.F. Drake State,90003416,HELEN T MCALPINE,Jun,29,2012,Administrative Salaries- Sched,UNRESTRICTED,"$14,266.45"
48,J.F. Drake State,90003416,HELEN T MCALPINE,Jun,29,2012,President's Expense Allowance,UNRESTRICTED,$200.00
48,J.F. Drake State,90003416,HELEN T MCALPINE,Jun,29,2012,Housing Allowance,UNRESTRICTED,"$1,000.00"
48,J.F. Drake State,90003417,DEMETIUS L MCCARTY,Jun,29,2012,Support Personnel Salaries - S,UNRESTRICTED,"$2,113.17"
48,J.F. Drake State,90003418,JERRY L MCCAULLEY,Jun,29,2012,Instructional Salaries - Tempo,UNRESTRICTED,$900.00
48,J.F. Drake State,90003419,MARCUS R MCINTYRE,Jun,29,2012,Hourly Wages,STUDENT SUPPORT SERVICES,$156.25
48,J.F. Drake State,90003420,MISHIKI A MCINTYRE,Jun,29,2012,Hourly Wages,TITLE III,$835.00
48,J.F. Drake State,90003421,SCOTTY MCLAUGHLIN,Jun,29,2012,Instructional Salaries - Tempo,UNRESTRICTED,$300.00
48,J.F. Drake State,90003421,SCOTTY MCLAUGHLIN,Jun,29,2012,Instructional Salaries - Regul,UNRESTRICTED,"$6,535.00"
48,J.F. Drake State,90003422,MARIA YVETTE MEADOR,Jun,29,2012,Support Personnel Salaries - S,STUDENT SUPPORT SERVICES,"$2,559.00"
48,J.F. Drake State,90003423,DEBORAH A MILLING,Jun,29,2012,Instructional Salaries - Regul,UNRESTRICTED,"$6,135.00"
48,J.F. Drake State,90003423,DEBORAH A MILLING,Jun,29,2012,Instructional Salaries - Tempo,UNRESTRICTED,$400.00
48,J.F. Drake State,90003424,SAMMY J MILTON,Jun,29,2012,Support Personnel Salaries - S,UNRESTRICTED,"$3,452.83"
48,J.F. Drake State,90003425,PREMA A MONTEIRO,Jun,29,2012,Instructional Salaries - Regul,UNRESTRICTED,"$4,609.00"
48,J.F. Drake State,90003426,ACOLEA J MOORE,Jun,29,2012,Instructional Salaries - Tempo,UNRESTRICTED,$450.00
48,J.F. Drake State,90003427,ALFRED CROSHAN MOORE,Jun,29,2012,Instructional Salaries - Tempo,UNRESTRICTED,$240.00
48,J.F. Drake State,90003428,BRUCE D MORRISON,Jun,29,2012,Support Personnel Salaries - S,UNRESTRICTED,"$4,196.17"
48,J.F. Drake State,90003429,KAREN NEIR,Jun,29,2012,Instructional Salaries - Tempo,UNRESTRICTED,"$2,430.00"
48,J.F. Drake State,90003430,JENNIFER O'LINGER,Jun,29,2012,Other Professional Salaries -,UNRESTRICTED,"$4,333.33"
48,J.F. Drake State,90003431,DONALD ORR,Jun,29,2012,Support Personnel Salaries - S,UNRESTRICTED,"$3,750.17"
48,J.F. Drake State,90003432,JENNIFER E PATTERSON,Jun,29,2012,Instructional Salaries - Regul,UNRESTRICTED,"$6,295.33"
48,J.F. Drake State,90003433,JERROLD DION PHIPPS,Jun,29,2012,Instructional Salaries - Tempo,UNRESTRICTED,"$1,350.00"
48,J.F. Drake State,90003434,INODU TONY PIRI,Jun,29,2012,Instructional Salaries - Tempo,UNRESTRICTED,$450.00
48,J.F. Drake State,90003435,GWENDOLYN D POPE,Jun,29,2012,Instructional Salaries - Regul,UNRESTRICTED,"$6,991.00"
48,J.F. Drake State,90003436,BARBARA J PRIMEAUX,Jun,29,2012,Support Personnel Salaries - S,UNRESTRICTED,"$2,336.00"
48,J.F. Drake State,90003437,FREDRICK O PRUITT,Jun,29,2012,Instructional Salaries - Regul,UNRESTRICTED,"$4,747.00"
48,J.F. Drake State,90003437,FREDRICK O PRUITT,Jun,29,2012,Instructional Salaries - Tempo,UNRESTRICTED,"$1,050.00"
48,J.F. Drake State,90003438,MICHAEL RADDEN,Jun,29,2012,Instructional Salaries - Tempo,UNRESTRICTED,$450.00
48,J.F. Drake State,90003439,LORAINE RAGIN,Jun,29,2012,Instructional Salaries - Regul,UNRESTRICTED,"$3,680.00"
48,J.F. Drake State,90003440,ALICE G RAYMOND,Jun,29,2012,Other Professional Salaries -,UNRESTRICTED,"$8,233.00"
48,J.F. Drake State,90003441,JOYCE L RENTZ,Jun,29,2012,Instructional Salaries - Regul,UNRESTRICTED,"$6,251.00"
48,J.F. Drake State,90003441,JOYCE L RENTZ,Jun,29,2012,Instructional Salaries - Tempo,UNRESTRICTED,$900.00
48,J.F. Drake State,90003442,JOHN REUTTER III,Jun,29,2012,Other Professional Salaries -,TITLE III,"$7,053.25"
48,J.F. Drake State,90003442,JOHN REUTTER III,Jun,29,2012,Employee Taxable Per Diem,TITLE III,$22.50
48,J.F. Drake State,90003443,LYSCELLE M REYES,Jun,29,2012,Instructional Salaries - Tempo,UNRESTRICTED,"$1,700.00"
48,J.F. Drake State,90003443,LYSCELLE M REYES,Jun,29,2012,Hourly Wages,NAT'L SCIENCE FOUNDATION,$240.00
48,J.F. Drake State,90003444,MARTHA J ROBERTS,Jun,29,2012,Support Personnel Salaries - S,UNRESTRICTED,"$4,940.33"
48,J.F. Drake State,90003445,CHERILYN ROOKS,Jun,29,2012,Instructional Salaries - Tempo,UNRESTRICTED,$720.00
48,J.F. Drake State,90003446,JACQUELINE M SHIVERS,Jun,29,2012,Instructional Salaries - Tempo,ADULT ED,"$2,137.50"
48,J.F. Drake State,90003447,LESLEY SHOTTS,Jun,29,2012,Instructional Salaries - Regul,UNRESTRICTED,"$4,481.83"
48,J.F. Drake State,90003449,AMANDA R SIMPSON,Jun,29,2012,Support Personnel Salaries - S,UNRESTRICTED,"$2,112.00"
48,J.F. Drake State,90003450,PATRICIA GORDON SIMS,Jun,29,2012,Administrative Salaries- Sched,UNRESTRICTED,"$9,245.09"
48,J.F. Drake State,90003451,RYAN E SMITH,Jun,29,2012,Other Professional Salaries -,TITLE III,"$5,577.00"
48,J.F. Drake State,90003452,WANDA L SMITH,Jun,29,2012,Instructional Salaries - Tempo,UNRESTRICTED,$510.00
48,J.F. Drake State,90003453,DELORIS A SMOTHERS,Jun,29,2012,Instructional Salaries - Tempo,UNRESTRICTED,$450.00
48,J.F. Drake State,90003453,DELORIS A SMOTHERS,Jun,29,2012,Instructional Salaries - Regul,UNRESTRICTED,"$6,765.33"
48,J.F. Drake State,90003454,JULIE P SPURGEON,Jun,29,2012,Support Personnel Salaries - S,UNRESTRICTED,"$2,038.67"
48,J.F. Drake State,90003455,VERLINDSEY B STEWART,Jun,29,2012,Instructional Salaries - Regul,UNRESTRICTED,"$6,135.00"
48,J.F. Drake State,90003456,MONICA SUDEALL-HAWKINS,Jun,29,2012,Other Professional Salaries -,UNRESTRICTED,"$4,993.33"
48,J.F. Drake State,90003457,CHARLES A SULLINS JR,Jun,29,2012,Instructional Salaries - Tempo,UNRESTRICTED,$450.00
48,J.F. Drake State,90003458,SHANNON SUMMERS,Jun,29,2012,Instructional Salaries - Tempo,ADULT ED,$594.00
48,J.F. Drake State,90003459,DOCQUINN N TAYLOR,Jun,29,2012,Instructional Salaries - Tempo,STUDENT SUPPORT SERVICES,$641.25
48,J.F. Drake State,90003460,MALCOLM G TAYLOR,Jun,29,2012,Instructional Salaries - Tempo,UNRESTRICTED,$900.00
48,J.F. Drake State,90003461,YOLANDA R TONEY,Jun,29,2012,Instructional Salaries - Tempo,UNRESTRICTED,$450.00
48,J.F. Drake State,90003462,JOY D TORNQUIST,Jun,29,2012,Instructional Salaries - Tempo,UNRESTRICTED,"$2,055.00"
48,J.F. Drake State,90003463,KRISTIN TREADWAY,Jun,29,2012,Support Personnel Salaries - S,,"$2,856.75"
48,J.F. Drake State,90003464,ELIZABETH A TUGGLE,Jun,29,2012,Instructional Salaries - Tempo,ADULT ED,"$1,560.00"
48,J.F. Drake State,90003465,GILBERT T TURLEY,Jun,29,2012,Other Professional Salaries -,UNRESTRICTED,"$6,886.58"
48,J.F. Drake State,90003466,KAROL C WADDELL,Jun,29,2012,Hourly Wages,READY TO WORK,"$2,850.00"
48,J.F. Drake State,90003467,ANITA G WALKER,Jun,29,2012,Hourly Wages,NAT'L SCIENCE FOUNDATION,"$2,280.00"
48,J.F. Drake State,90003468,LETITIA E WALKER,Jun,29,2012,Support Personnel Salaries - S,UNRESTRICTED,"$3,229.42"
48,J.F. Drake State,90003469,KATINA L WALTON,Jun,29,2012,Instructional Salaries - Tempo,ADULT ED,$525.00
48,J.F. Drake State,90003469,KATINA L WALTON,Jun,29,2012,Employee Taxable Per Diem,ADULT ED,$11.25
48,J.F. Drake State,90003470,DWAYNIA WILKERSON,Jun,29,2012,Instructional Salaries - Tempo,UNRESTRICTED,$150.00
48,J.F. Drake State,90003471,CALANDRA S WILLIAMS,Jun,29,2012,Instructional Salaries - Tempo,ADULT ED,$690.00
48,J.F. Drake State,90003472,RICKY WILLINGHAM,Jun,29,2012,Other Professional Salaries -,TITLE III,"$6,886.58"
48,J.F. Drake State,90003473,BRANDI G WINCHESTER,Jun,29,2012,Instructional Salaries - Regul,UNRESTRICTED,"$3,249.50"
48,J.F. Drake State,90003473,BRANDI G WINCHESTER,Jun,29,2012,Instructional Salaries - Regul,,"$1,083.17"
48,J.F. Drake State,90003473,BRANDI G WINCHESTER,Jun,29,2012,Hourly Wages,NAT'L SCIENCE FOUNDATION,$960.00
48,J.F. Drake State,90003474,GEORGE R WINN,Jun,29,2012,Instructional Salaries - Regul,UNRESTRICTED,"$5,261.33"
48,J.F. Drake State,90003474,GEORGE R WINN,Jun,29,2012,Instructional Salaries - Tempo,UNRESTRICTED,$900.00
48,J.F. Drake State,90003475,JEANNIE WYNONA YORK,Jun,29,2012,Hourly Wages,NAT'L SCIENCE FOUNDATION,$320.00
48,J.F. Drake State,90003476,DELESHIA D YOUNG,Jun,29,2012,Support Personnel Salaries - S,UNRESTRICTED,"$3,079.83"
48,J.F. Drake State,302587,GAIL E FISCH,Jun,29,2012,Instructional Salaries - Regul,ADULT ED,"$2,687.50"
48,J.F. Drake State,302588,EDWIN T FORBES,Jun,29,2012,Instructional Salaries - Regul,UNRESTRICTED,"$4,062.58"
48,J.F. Drake State,302589,SYMMETRIS K GOHANNA,Jun,29,2012,Instructional Salaries - Regul,UNRESTRICTED,"$4,367.92"
48,J.F. Drake State,302590,CAROLYN HENDERSON,Jun,29,2012,Instructional Salaries - Regul,UNRESTRICTED,"$4,062.58"
48,J.F. Drake State,302591,DEBORAH A MILLING,Jun,29,2012,Instructional Salaries - Regul,UNRESTRICTED,"$4,962.33"
48,J.F. Drake State,302592,JENNIFER E PATTERSON,Jun,29,2012,Instructional Salaries - Regul,UNRESTRICTED,"$5,092.58"
48,J.F. Drake State,302593,GWENDOLYN D POPE,Jun,29,2012,Instructional Salaries - Regul,UNRESTRICTED,"$5,651.75"
48,J.F. Drake State,302594,FREDRICK O PRUITT,Jun,29,2012,Instructional Salaries - Regul,UNRESTRICTED,"$3,840.25"
48,J.F. Drake State,302595,LORAINE RAGIN,Jun,29,2012,Instructional Salaries - Regul,UNRESTRICTED,"$2,979.08"
48,J.F. Drake State,105675,CHEVRON CARD SERVICES,Jun,28,2012,Gasoline and Oil - Motor Vehic,UNRESTRICTED,$683.84
48,J.F. Drake State,105677,PETTY CASH,Jun,28,2012,Books,UNRESTRICTED,$14.95
48,J.F. Drake State,105677,PETTY CASH,Jun,28,2012,Materials and Supplies,UNRESTRICTED,$141.38
48,J.F. Drake State,105677,PETTY CASH,Jun,28,2012,Institutional Use,UNRESTRICTED,$27.20
48,J.F. Drake State,105677,PETTY CASH,Jun,28,2012,Advertising and Promotions,UNRESTRICTED,$154.83
48,J.F. Drake State,105678,RYDIN SIGN AND DECAL,Jun,28,2012,Materials and Supplies,UNRESTRICTED,$675.54
48,J.F. Drake State,105679,STARFISH RETENTION SOLUTI,Jun,28,2012,Materials and Supplies,,"$43,500.00"
48,J.F. Drake State,105680,SUCCESS MARKETING,Jun,28,2012,Advertising and Promotions,UNRESTRICTED,"$1,800.00"
48,J.F. Drake State,105681,THE ALABAMA LAWNMASTERS,Jun,28,2012,Other Contractual Services,UNRESTRICTED,"$2,850.00"
48,J.F. Drake State,51252,AT&T,Jun,27,2012,Communications,UNRESTRICTED,$429.06
48,J.F. Drake State,51254,COMCAST,Jun,27,2012,Communications,UNRESTRICTED,$95.05
48,J.F. Drake State,51255,COOK'S PEST CONTROL,Jun,27,2012,Other Contractual Services,UNRESTRICTED,$386.00
48,J.F. Drake State,51256,EARTHLINK/DELTACOM,Jun,27,2012,Communications,UNRESTRICTED,"$5,260.71"
48,J.F. Drake State,51257,HUNTSVILLE UTILITIES,Jun,27,2012,Water and Sewer,UNRESTRICTED,$761.10
48,J.F. Drake State,51257,HUNTSVILLE UTILITIES,Jun,27,2012,Electricity,ARMY GRANT,"$3,372.03"
48,J.F. Drake State,51257,HUNTSVILLE UTILITIES,Jun,27,2012,Gas and Heating Fuel,ARMY GRANT,$7.00
48,J.F. Drake State,51257,HUNTSVILLE UTILITIES,Jun,27,2012,Electricity,UNRESTRICTED,"$18,929.28"
48,J.F. Drake State,51257,HUNTSVILLE UTILITIES,Jun,27,2012,Gas and Heating Fuel,UNRESTRICTED,$522.10
48,J.F. Drake State,51258,WOW! BUSINESS,Jun,27,2012,Communications,UNRESTRICTED,"$1,107.62"
48,J.F. Drake State,51259,PITNEY BOWES,Jun,27,2012,Postage,UNRESTRICTED,"$1,200.00"
48,J.F. Drake State,4124800,PITNEY BOWES,Jun,27,2012,Postage,UNRESTRICTED,"$1,200.00"
48,J.F. Drake State,4124900,COOK'S PEST CONTROL,Jun,27,2012,Other Contractual Services,UNRESTRICTED,$70.00
48,J.F. Drake State,61262,AT&T,Jun,27,2012,Communications,UNRESTRICTED,$422.19
48,J.F. Drake State,61264,COMCAST,Jun,27,2012,Communications,UNRESTRICTED,$95.05
48,J.F. Drake State,61265,COOK'S PEST CONTROL,Jun,27,2012,Other Contractual Services,UNRESTRICTED,$386.00
48,J.F. Drake State,61266,EARTHLINK/DELTACOM,Jun,27,2012,Communications,UNRESTRICTED,"$5,291.89"
48,J.F. Drake State,61267,HUNTSVILLE UTILITIES,Jun,27,2012,Water and Sewer,UNRESTRICTED,$751.64
48,J.F. Drake State,61267,HUNTSVILLE UTILITIES,Jun,27,2012,Electricity,ARMY GRANT,"$3,437.98"
48,J.F. Drake State,61267,HUNTSVILLE UTILITIES,Jun,27,2012,Gas and Heating Fuel,ARMY GRANT,$8.01
48,J.F. Drake State,61267,HUNTSVILLE UTILITIES,Jun,27,2012,Electricity,UNRESTRICTED,"$19,879.80"
48,J.F. Drake State,61267,HUNTSVILLE UTILITIES,Jun,27,2012,Gas and Heating Fuel,UNRESTRICTED,$450.50
48,J.F. Drake State,61268,PITNEY BOWES,Jun,27,2012,Postage,UNRESTRICTED,"$1,200.00"
48,J.F. Drake State,61269,WOW! BUSINESS,Jun,27,2012,Communications,UNRESTRICTED,"$1,108.42"
48,J.F. Drake State,207239,BEST BUY,Jun,27,2012,Materials and Supplies,TITLE III,"$4,233.48"
48,J.F. Drake State,207240,DOMINO'S PIZZA,Jun,27,2012,Materials and Supplies,NAT'L SCIENCE FOUNDATION,$347.00
48,J.F. Drake State,207241,MULLINS FIVE POINTS RENTA,Jun,27,2012,Materials and Supplies,TITLE III,"$1,155.00"
48,J.F. Drake State,207242,POCKET NURSE,Jun,27,2012,Materials and Supplies,ALLIED HEALTH,"$2,995.00"
48,J.F. Drake State,207243,POCKET NURSE,Jun,27,2012,Materials and Supplies,ALLIED HEALTH,"$2,542.52"
48,J.F. Drake State,207244,TECHNICAL TRAINING AIDS,Jun,27,2012,Materials and Supplies,PERKINS FUNDS,"$3,152.25"
48,J.F. Drake State,207235,"BURMAX, INC.",Jun,26,2012,Materials and Supplies,PERKINS FUNDS,"$6,052.44"
48,J.F. Drake State,207236,DOUBLETREE HOTEL,Jun,26,2012,Out-of-State Travel,,$695.54
48,J.F. Drake State,207237,HORACE FRANKLIN,Jun,26,2012,In-State Travel,TITLE III,$726.68
48,J.F. Drake State,207238,MINUTEMAN PRESS,Jun,26,2012,Materials and Supplies,TITLE III,$508.27
48,J.F. Drake State,105635,ACCSPRA,Jun,21,2012,Memberships,UNRESTRICTED,$50.00
48,J.F. Drake State,105637,KEMBA CHAMBERS,Jun,21,2012,Out-of-State Travel,,$38.72
48,J.F. Drake State,105638,CONDITIONED AIR SOLUTIONS,Jun,21,2012,Maintenance and Repairs,ARMY GRANT,"$2,792.67"
48,J.F. Drake State,105639,CONDITIONED AIR SOLUTIONS,Jun,21,2012,Maintenance and Repairs,ARMY GRANT,$160.00
48,J.F. Drake State,105640,COPELAND CLEANERS,Jun,21,2012,Materials and Supplies,UNRESTRICTED,$39.66
48,J.F. Drake State,105641,MARLO M. DRAKE,Jun,21,2012,Materials and Supplies,UNRESTRICTED,$104.85
48,J.F. Drake State,105642,"DYNAMIC SECURITY, INC.",Jun,21,2012,Other Contractual Services,UNRESTRICTED,"$5,940.48"
48,J.F. Drake State,105643,"DYNAMIC SECURITY, INC.",Jun,21,2012,Other Contractual Services,UNRESTRICTED,"$5,940.48"
48,J.F. Drake State,105644,"GIGAPARTS, INC",Jun,21,2012,Purchases for Resale,UNRESTRICTED,$83.85
48,J.F. Drake State,105645,GLIDDEN PROFESSIONAL PAI,Jun,21,2012,Materials and Supplies,UNRESTRICTED,$898.37
48,J.F. Drake State,105646,GRAYBAR,Jun,21,2012,Materials and Supplies,UNRESTRICTED,$17.96
48,J.F. Drake State,105647,HUNTSVILLE TIMES,Jun,21,2012,Materials and Supplies,UNRESTRICTED,$485.20
48,J.F. Drake State,105648,INLINE ELECTRIC SUPPLY,Jun,21,2012,Materials and Supplies,UNRESTRICTED,$25.37
48,J.F. Drake State,105649,KENCO TOYOTA LIFT,Jun,21,2012,Maintenance and Repairs,UNRESTRICTED,$118.51
48,J.F. Drake State,105650,"LANIER,FORD,SHAVER &",Jun,21,2012,Legal Services,UNRESTRICTED,$570.00
48,J.F. Drake State,105651,LOWE'S,Jun,21,2012,Materials and Supplies,UNRESTRICTED,$410.69
48,J.F. Drake State,105651,LOWE'S,Jun,21,2012,Materials and Supplies,ARMY GRANT,$69.09
48,J.F. Drake State,105652,MCCRARYS SUPPLY CORP,Jun,21,2012,Materials and Supplies,PLANT FUNDS,$205.41
48,J.F. Drake State,105653,NEXUS ENERGY CENTER,Jun,21,2012,Other Contractual Services,SESP,"$14,360.00"
48,J.F. Drake State,105654,"OFFICE DEPOT, INC.",Jun,21,2012,Materials and Supplies,UNRESTRICTED,$104.10
48,J.F. Drake State,105654,"OFFICE DEPOT, INC.",Jun,21,2012,Advertising and Promotions,UNRESTRICTED,$744.19
48,J.F. Drake State,105655,PARTON CONSTRUCTION,Jun,21,2012,Materials and Supplies,UNRESTRICTED,$770.00
48,J.F. Drake State,105656,PITNEY BOWES,Jun,21,2012,Other Contractual Services,UNRESTRICTED,$630.00
48,J.F. Drake State,105657,QUALITY TESTING SERVICE,Jun,21,2012,Materials and Supplies,UNRESTRICTED,$225.00
48,J.F. Drake State,105658,RANDALL A SCHRIMSHER,Jun,21,2012,Materials and Supplies,UNRESTRICTED,"$6,475.00"
48,J.F. Drake State,105659,RSC EQUIPMENT RENTAL,Jun,21,2012,Materials and Supplies,UNRESTRICTED,$837.48
48,J.F. Drake State,105660,SIGNS BY TOMORROW,Jun,21,2012,Materials and Supplies,UNRESTRICTED,$740.00
48,J.F. Drake State,105661,STAPLES BUS ADVANTAGE,Jun,21,2012,Purchases for Resale,UNRESTRICTED,$69.36
48,J.F. Drake State,105662,SUCCESS MARKETING,Jun,21,2012,Advertising and Promotions,UNRESTRICTED,"$6,025.00"
48,J.F. Drake State,105662,SUCCESS MARKETING,Jun,21,2012,Advertising and Promotions,READY TO WORK,$900.00
48,J.F. Drake State,105663,SUCCESS MARKETING,Jun,21,2012,Advertising and Promotions,UNRESTRICTED,"$11,088.00"
48,J.F. Drake State,105664,THE ALABAMA LAWNMASTERS,Jun,21,2012,Materials and Supplies,UNRESTRICTED,$197.50
48,J.F. Drake State,105664,THE ALABAMA LAWNMASTERS,Jun,21,2012,Other Contractual Services,UNRESTRICTED,"$3,045.00"
48,J.F. Drake State,105664,THE ALABAMA LAWNMASTERS,Jun,21,2012,Other Contractual Services,ARMY GRANT,$650.00
48,J.F. Drake State,105665,THE ALABAMA LAWNMASTERS,Jun,21,2012,Other Contractual Services,UNRESTRICTED,"$3,995.00"
48,J.F. Drake State,105666,"TRUESCREEN, INC",Jun,21,2012,Other Contractual Services,UNRESTRICTED,$117.00
48,J.F. Drake State,105667,UPS,Jun,21,2012,Freight,UNRESTRICTED,$30.66
48,J.F. Drake State,105668,4IMPRINT,Jun,21,2012,Advertising and Promotions,UNRESTRICTED,"$1,896.35"
48,J.F. Drake State,207211,ATLANTIC INFORMATION SERV,Jun,21,2012,Institutional Use,TITLE III,$249.00
48,J.F. Drake State,207212,BARKLEY & ASSOCIATES,Jun,21,2012,Out-of-State Travel,,$479.00
48,J.F. Drake State,207213,CYN SHEA'S CATERING,Jun,21,2012,Other Contractual Services,TITLE III,"$3,028.80"
48,J.F. Drake State,207214,RONALD EGSON,Jun,21,2012,Out-of-State Travel,,$90.00
48,J.F. Drake State,207215,SAM'S CLUB/WALMART,Jun,21,2012,Materials and Supplies,PERKINS FUNDS,$245.19
48,J.F. Drake State,207216,"THE CLEMENTS GROUP, LC",Jun,21,2012,Materials and Supplies,TITLE III,$75.00
48,J.F. Drake State,207183,AACS,Jun,20,2012,Out-of-State Travel,TITLE III,$885.00
48,J.F. Drake State,207184,ACCSPRA,Jun,20,2012,In-State Travel,TITLE III,$200.00
48,J.F. Drake State,207185,AMERICAN CULINARY FED,Jun,20,2012,Out-of-State Travel,TITLE III,$950.00
48,J.F. Drake State,207186,BERNEY OFFICE SOLUTIONS,Jun,20,2012,Furniture and Equipment,TITLE III,"$12,079.09"
48,J.F. Drake State,207187,BOB GRISSIM,Jun,20,2012,Materials and Supplies,NAT'L SCIENCE FOUNDATION,$365.42
48,J.F. Drake State,207188,BUBBA'S,Jun,20,2012,Materials and Supplies,NAT'L SCIENCE FOUNDATION,$313.75
48,J.F. Drake State,207189,COPELAND CLEANERS,Jun,20,2012,Materials and Supplies,PERKINS FUNDS,$140.66
48,J.F. Drake State,207190,COUNCIL ON OCCUPATIONAL E,Jun,20,2012,Memberships,TITLE III,"$4,160.00"
48,J.F. Drake State,207191,HORACE FRANKLIN,Jun,20,2012,In-State Travel,TITLE III,"$1,176.68"
48,J.F. Drake State,207192,LEADERSHIP HUNTSVILLE,Jun,20,2012,In-State Travel,TITLE III,"$3,825.00"
48,J.F. Drake State,207193,MARRIOTT RIVERCENTER,Jun,20,2012,Out-of-State Travel,TITLE III,$963.19
48,J.F. Drake State,207194,"MCALPINE, HELEN",Jun,20,2012,Out-of-State Travel,TITLE III,$86.00
48,J.F. Drake State,207194,"MCALPINE, HELEN",Jun,20,2012,In-State Travel,TITLE III,$30.00
48,J.F. Drake State,207195,MSC INDUSTRIAL SUPPLY,Jun,20,2012,Furniture and Equipment,PERKINS FUNDS,"$5,200.00"
48,J.F. Drake State,207196,PARTON CONSTRUCTION,Jun,20,2012,Alterations,TITLE III,"$7,210.00"
48,J.F. Drake State,207197,PEREGRINE CORP,Jun,20,2012,Materials and Supplies,TITLE III,$476.64
48,J.F. Drake State,207198,RONALD EGSON,Jun,20,2012,In-State Travel,,$95.00
48,J.F. Drake State,207198,RONALD EGSON,Jun,20,2012,In-State Travel,NAT'L SCIENCE FOUNDATION,$83.97
48,J.F. Drake State,207199,RYAN GREEN,Jun,20,2012,In-State Travel,TITLE III,$713.75
48,J.F. Drake State,207200,SAM'S CLUB/WALMART,Jun,20,2012,Materials and Supplies,NAT'L SCIENCE FOUNDATION,$350.00
48,J.F. Drake State,207201,SAM'S CLUB/WALMART,Jun,20,2012,Materials and Supplies,PERKINS FUNDS,$5.80
48,J.F. Drake State,207202,SEXTON WELDING SUPPLY,Jun,20,2012,Materials and Supplies,PERKINS FUNDS,"$3,275.33"
48,J.F. Drake State,207203,SHERATON CHICAGO HOTEL,Jun,20,2012,Out-of-State Travel,TITLE III,$833.42
48,J.F. Drake State,207204,"SHOTTS, LESLEY",Jun,20,2012,Out-of-State Travel,TITLE III,$488.88
48,J.F. Drake State,207205,"SIMS, PATRICIA G.",Jun,20,2012,In-State Travel,TITLE III,$300.00
48,J.F. Drake State,207206,SPRINGHILL SUITES NEW ORL,Jun,20,2012,Out-of-State Travel,TITLE III,$412.80
48,J.F. Drake State,207207,"STANFA EQUIPMENT SALES, L",Jun,20,2012,Other Contractual Services,TITLE III,$515.00
48,J.F. Drake State,207208,GIL TURLEY,Jun,20,2012,In-State Travel,TITLE III,"$1,163.58"
48,J.F. Drake State,207209,WALT DISNEY SWAN & DOLPHI,Jun,20,2012,Out-of-State Travel,TITLE III,"$2,011.50"
48,J.F. Drake State,207210,4IMPRINT,Jun,20,2012,Materials and Supplies,STUDENT SUPPORT SERVICES,"$1,531.48"
48,J.F. Drake State,105601,ACT,Jun,14,2012,Materials and Supplies,UNRESTRICTED,$275.00
48,J.F. Drake State,105602,"DYNAMIC SECURITY, INC.",Jun,14,2012,Other Contractual Services,UNRESTRICTED,"$5,940.48"
48,J.F. Drake State,105603,"DYNAMIC SECURITY, INC.",Jun,14,2012,Other Contractual Services,UNRESTRICTED,"$5,940.48"
48,J.F. Drake State,105604,"DYNAMIC SECURITY, INC.",Jun,14,2012,Other Contractual Services,UNRESTRICTED,"$6,377.28"
48,J.F. Drake State,105605,ELSEVIER,Jun,14,2012,Purchases for Resale,UNRESTRICTED,$892.61
48,J.F. Drake State,105606,FEDEX,Jun,14,2012,Postage,UNRESTRICTED,$213.83
48,J.F. Drake State,105607,"GIGAPARTS, INC",Jun,14,2012,Purchases for Resale,UNRESTRICTED,$83.85
48,J.F. Drake State,105608,HUNTSVILLE TIMES,Jun,14,2012,Other Contractual Services,UNRESTRICTED,$312.80
48,J.F. Drake State,105609,MINUTEMAN PRESS,Jun,14,2012,Advertising and Promotions,UNRESTRICTED,$293.84
48,J.F. Drake State,105610,NEXUS ENERGY CENTER,Jun,14,2012,Other Contractual Services,SESP,"$32,710.00"
48,J.F. Drake State,105611,"OFFICE DEPOT, INC.",Jun,14,2012,Materials and Supplies,UNRESTRICTED,"$1,353.94"
48,J.F. Drake State,105612,RONALD EGSON,Jun,14,2012,In-State Travel,CAREER COACHES,$103.39
48,J.F. Drake State,105614,SOUTHERNLINC WIRELESS,Jun,14,2012,Communications,UNRESTRICTED,$63.60
48,J.F. Drake State,105615,THE ALABAMA LAWNMASTERS,Jun,14,2012,Maintenance and Repairs,UNRESTRICTED,$685.00
48,J.F. Drake State,105616,"THE SOLUTIONS TEAM, INC",Jun,14,2012,Computer Software,UNRESTRICTED,$200.00
48,J.F. Drake State,105617,UPS,Jun,14,2012,Freight,UNRESTRICTED,$143.47
48,J.F. Drake State,105618,W.H.THOMAS OIL CO.,Jun,14,2012,Materials and Supplies,UNRESTRICTED,$926.30
48,J.F. Drake State,105619,WASTE MANAGEMENT OF NORTH,Jun,14,2012,Other Contractual Services,UNRESTRICTED,$923.94
48,J.F. Drake State,105619,WASTE MANAGEMENT OF NORTH,Jun,14,2012,Other Contractual Services,ARMY GRANT,$235.21
48,J.F. Drake State,105620,WEATHERTECH DIST,Jun,14,2012,Materials and Supplies,UNRESTRICTED,$496.00
48,J.F. Drake State,105592,"LANIER,FORD,SHAVER &",Jun,11,2012,Legal Services,UNRESTRICTED,$21.37
48,J.F. Drake State,207075,HOBBY LOBBY,Jun,8,2012,Maintenance and Repairs,TITLE III,$895.93
48,J.F. Drake State,105549,WEATHERTECH DIST,Jun,5,2012,Maintenance and Repairs,UNRESTRICTED,$272.80
48,J.F. Drake State,105550,ALA. SUPERCOMPUTER FUND,Jun,5,2012,Service Contracts on Equipment,UNRESTRICTED,"$5,345.00"
48,J.F. Drake State,105552,AT&T LONG DISTANCE SERV.,Jun,5,2012,Communications,UNRESTRICTED,$2.52
48,J.F. Drake State,105553,BUILDING SPECIALTIES CO,Jun,5,2012,Materials and Supplies,UNRESTRICTED,$230.00
48,J.F. Drake State,105554,C. C. DICKSON COMPANY,Jun,5,2012,Materials and Supplies,UNRESTRICTED,$65.94
48,J.F. Drake State,105555,CDW-G,Jun,5,2012,Institutional Use,UNRESTRICTED,"$1,384.87"
48,J.F. Drake State,105556,CHEVRON CARD SERVICES,Jun,5,2012,Gasoline and Oil - Motor Vehic,UNRESTRICTED,"$1,185.23"
48,J.F. Drake State,105557,COPELAND CLEANERS,Jun,5,2012,Materials and Supplies,UNRESTRICTED,$32.39
48,J.F. Drake State,105557,COPELAND CLEANERS,Jun,5,2012,Institutional Use,UNRESTRICTED,$15.45
48,J.F. Drake State,105558,"DYNAMIC SECURITY, INC.",Jun,5,2012,Other Contractual Services,UNRESTRICTED,"$5,940.48"
48,J.F. Drake State,105559,FEDEX,Jun,5,2012,Postage,UNRESTRICTED,$234.74
48,J.F. Drake State,105560,GED TESTING PROGRAM,Jun,5,2012,Materials and Supplies,UNRESTRICTED,$186.00
48,J.F. Drake State,105561,HUNTSVILLE TIMES,Jun,5,2012,Advertising and Promotions,UNRESTRICTED,"$2,174.00"
48,J.F. Drake State,105562,KATINA WALTON,Jun,5,2012,In-State Travel,ADULT ED,$310.96
48,J.F. Drake State,105563,KENCO TOYOTA LIFT,Jun,5,2012,Maintenance and Repairs,UNRESTRICTED,$571.89
48,J.F. Drake State,105564,KEYPLUS SCHOOL PRODUCTS,Jun,5,2012,Institutional Use,UNRESTRICTED,"$2,199.80"
48,J.F. Drake State,105565,"LANIER,FORD,SHAVER &",Jun,5,2012,Legal Services,UNRESTRICTED,"$1,984.00"
48,J.F. Drake State,105566,LOWE'S,Jun,5,2012,Materials and Supplies,UNRESTRICTED,$774.16
48,J.F. Drake State,105568,"MOBILE MINI, INC",Jun,5,2012,Materials and Supplies,UNRESTRICTED,$215.00
48,J.F. Drake State,105569,MCGRAW HILL EDUCATION,Jun,5,2012,Purchases for Resale,UNRESTRICTED,"$4,126.33"
48,J.F. Drake State,105570,MINUTEMAN PRESS,Jun,5,2012,Advertising and Promotions,UNRESTRICTED,"$4,353.51"
48,J.F. Drake State,105571,MORRIS GREENHOUSES,Jun,5,2012,Institutional Use,UNRESTRICTED,$100.00
48,J.F. Drake State,105572,MSC INDUSTRIAL SUPPLY,Jun,5,2012,Materials and Supplies,UNRESTRICTED,$280.52
48,J.F. Drake State,105573,OAKHALL INDUSTRIES,Jun,5,2012,Institutional Use,UNRESTRICTED,$316.27
48,J.F. Drake State,105574,RANDALL A SCHRIMSHER,Jun,5,2012,Materials and Supplies,UNRESTRICTED,"$6,475.00"
48,J.F. Drake State,105575,SALLY BEAUTY SUPPLY,Jun,5,2012,Purchases for Resale,UNRESTRICTED,$119.50
48,J.F. Drake State,105576,SKT ARCHITECTS,Jun,5,2012,Alterations,PLANT FUNDS,"$6,272.64"
48,J.F. Drake State,105577,"SMITH, RYAN",Jun,5,2012,Materials and Supplies,UNRESTRICTED,$203.02
48,J.F. Drake State,105578,SUCCESS MARKETING,Jun,5,2012,Advertising and Promotions,UNRESTRICTED,$625.00
48,J.F. Drake State,105579,THE ALABAMA LAWNMASTERS,Jun,5,2012,Other Contractual Services,UNRESTRICTED,"$3,045.00"
48,J.F. Drake State,105579,THE ALABAMA LAWNMASTERS,Jun,5,2012,Other Contractual Services,ARMY GRANT,$650.00
48,J.F. Drake State,105580,"THE SOLUTIONS TEAM, INC",Jun,5,2012,Computer Software,UNRESTRICTED,$200.00
48,J.F. Drake State,105581,VERIZON WIRELESS,Jun,5,2012,Communications,UNRESTRICTED,$983.17
48,J.F. Drake State,105582,WEATHERTECH DIST,Jun,5,2012,Materials and Supplies,UNRESTRICTED,"$1,751.20"
48,J.F. Drake State,105583,BURT WEBSTER,Jun,5,2012,Other Contractual Services,PLANT FUNDS,"$5,750.00"
48,J.F. Drake State,105584,"WHOLESALE TROPHIES, INC.",Jun,5,2012,Institutional Use,UNRESTRICTED,$87.49
48,J.F. Drake State,207053,ALABAMA SKILLSUSA,Jun,5,2012,Out-of-State Travel,PERKINS FUNDS,"$1,728.00"
48,J.F. Drake State,207054,ALABAMA SKILLSUSA,Jun,5,2012,Out-of-State Travel,PERKINS FUNDS,"$4,320.00"
48,J.F. Drake State,207055,ALABAMA SKILLSUSA,Jun,5,2012,Out-of-State Travel,PERKINS FUNDS,"$1,350.00"
48,J.F. Drake State,207056,BERNEY OFFICE SOLUTIONS,Jun,5,2012,Materials and Supplies,TITLE III,$13.99
48,J.F. Drake State,207057,BRAN-DEV COATINGS,Jun,5,2012,Buildings and Fixed Equipment,TITLE III,"$33,330.68"
48,J.F. Drake State,207058,CDW-G,Jun,5,2012,Materials and Supplies,TITLE III,$944.48
48,J.F. Drake State,207059,CISSE,Jun,5,2012,Out-of-State Travel,,"$1,725.00"
48,J.F. Drake State,207060,DENISE GAYMON,Jun,5,2012,In-State Travel,NAT'L SCIENCE FOUNDATION,$145.13
48,J.F. Drake State,207061,LEADERSHIP HSV.-MADISON,Jun,5,2012,Memberships,TITLE III,$200.00
48,J.F. Drake State,207062,LORAINE RAGIN,Jun,5,2012,In-State Travel,TITLE III,$225.00
48,J.F. Drake State,207063,MIDWEST LIBRARY SERVICE,Jun,5,2012,Books,TITLE III,$38.24
48,J.F. Drake State,207064,NATIONAL ASSOC OF HBCU TI,Jun,5,2012,Out-of-State Travel,TITLE III,$400.00
48,J.F. Drake State,207065,NEOKA IVEY,Jun,5,2012,Out-of-State Travel,PERKINS FUNDS,$300.00
48,J.F. Drake State,207066,NEOKA IVEY,Jun,5,2012,Out-of-State Travel,PERKINS FUNDS,$840.00
48,J.F. Drake State,207067,JENNIFER OLINGER,Jun,5,2012,Out-of-State Travel,TITLE III,$79.18
48,J.F. Drake State,207068,POCKET NURSE,Jun,5,2012,Materials and Supplies,ALLIED HEALTH,"$4,208.33"
48,J.F. Drake State,207069,"POPE, GWENDOLYN M.",Jun,5,2012,Out-of-State Travel,PERKINS FUNDS,$300.00
48,J.F. Drake State,207070,RONALD EGSON,Jun,5,2012,Out-of-State Travel,,$620.00
48,J.F. Drake State,207071,ROYAL PLAZA HOTEL,Jun,5,2012,Out-of-State Travel,,"$1,431.60"
48,J.F. Drake State,207072,SAN ANTONIO RIVERCENTER,Jun,5,2012,Out-of-State Travel,,$770.55
48,J.F. Drake State,207073,"SMITH, RYAN",Jun,5,2012,Out-of-State Travel,TITLE III,$74.62
48,J.F. Drake State,207074,UTHSCSA SCHOOL OF NURSING,Jun,5,2012,Out-of-State Travel,,$925.00
48,J.F. Drake State,206692,NICOLE BELL,Jun,1,2012,In-State Travel,TITLE III,$351.92
48,J.F. Drake State,206693,COUNCIL ON OCCUP. EDUC.,Jun,1,2012,Out-of-State Travel,TITLE III,"$1,050.00"
48,J.F. Drake State,206694,"HENRY, DEXTER",Jun,1,2012,Out-of-State Travel,TITLE III,$557.04
48,J.F. Drake State,206695,HILTON HOTELS/RESORTS,Jun,1,2012,Out-of-State Travel,TITLE III,"$2,051.84"
48,J.F. Drake State,206696,HYATT REGENCY ST. LOUIS,Jun,1,2012,Out-of-State Travel,TITLE III,$869.70
48,J.F. Drake State,206697,NEOKA IVEY,Jun,1,2012,In-State Travel,TITLE III,$693.32
48,J.F. Drake State,206698,"POPE, GWENDOLYN M.",Jun,1,2012,Out-of-State Travel,PERKINS FUNDS,$300.00
48,J.F. Drake State,206699,RENAISSANCE NEW ORLEANS,Jun,1,2012,Out-of-State Travel,TITLE III,$596.12
48,J.F. Drake State,206700,RYAN GREEN,Jun,1,2012,In-State Travel,TITLE III,$475.00
48,J.F. Drake State,206701,"SIMS, PATRICIA G.",Jun,1,2012,Memberships,TITLE III,$25.00
48,J.F. Drake State,206702,"SUDEALL, MONICA",Jun,1,2012,In-State Travel,TITLE III,$150.00
48,J.F. Drake State,302518,ROBBIE LEE AKINS,May,31,2012,Support Personnel Salaries - S,UNRESTRICTED,"$1,783.77"
48,J.F. Drake State,302519,NICOLE CLARESE BARNETT,May,31,2012,Other Professional Salaries -,ADULT ED,"$1,827.04"
48,J.F. Drake State,302520,STEPHANIE JONES BOUNDS,May,31,2012,Instructional Salaries - Tempo,UNRESTRICTED,$900.00
48,J.F. Drake State,302521,ROYCE DANTE CARVER,May,31,2012,Hourly Wages,STUDENT SUPPORT SERVICES,$650.00
48,J.F. Drake State,302522,RICHARD COLLIE,May,31,2012,Other Professional Salaries -,STUDENT SUPPORT SERVICES,"$3,750.00"
48,J.F. Drake State,302523,TOMEKA CROSS,May,31,2012,Support Personnel Salaries - S,UNRESTRICTED,"$1,463.92"
48,J.F. Drake State,302524,CHRISTINE H DAVIS,May,31,2012,Instructional Salaries - Regul,UNRESTRICTED,"$5,306.36"
48,J.F. Drake State,302525,GEORGE VICTOR HARLOW III,May,31,2012,Hourly Wages,NAT'L SCIENCE FOUNDATION,$180.00
48,J.F. Drake State,302526,MERRIL EDWARD HOLLOWAY II,May,31,2012,Instructional Salaries - Tempo,ADULT ED,$576.00
48,J.F. Drake State,302527,DENNIS ERIC JEFFREY,May,31,2012,Other Professional Salaries -,SESP,"$1,080.00"
48,J.F. Drake State,302528,JUSTIN M KELLY,May,31,2012,Instructional Salaries - Tempo,UNRESTRICTED,"$2,137.50"
48,J.F. Drake State,302529,PATRICK T MCDONALD,May,31,2012,Hourly Wages,NAT'L SCIENCE FOUNDATION,"$1,200.00"
48,J.F. Drake State,302530,PAMELA F MCTILLER,May,31,2012,Instructional Salaries - Tempo,UNRESTRICTED,$337.50
48,J.F. Drake State,302531,SANDRA O MITCHELL,May,31,2012,Hourly Wages,TITLE III,$278.13
48,J.F. Drake State,302532,DOROTHY J NOBLE,May,31,2012,Instructional Salaries - Tempo,UNRESTRICTED,$675.00
48,J.F. Drake State,302533,GUY ARTHUR SIEGELE,May,31,2012,Support Personnel Salaries - S,UNRESTRICTED,"$1,889.83"
48,J.F. Drake State,302534,JASON MICHAEL SMITH,May,31,2012,Hourly Wages,NAT'L SCIENCE FOUNDATION,"$1,485.00"
48,J.F. Drake State,302535,JASON M STEPHENS,May,31,2012,Hourly Wages,STUDENT SUPPORT SERVICES,$500.00
48,J.F. Drake State,302536,FORREST BRYANT TEAGUE,May,31,2012,Hourly Wages,NAT'L SCIENCE FOUNDATION,$670.00
48,J.F. Drake State,302537,ALICIA LASEAN WILLIAMS,May,31,2012,Hourly Wages,NAT'L SCIENCE FOUNDATION,$570.00
48,J.F. Drake State,90003194,DEMICA SHERMIR ALLISON,May,31,2012,Hourly Wages,TITLE III,$570.00
48,J.F. Drake State,90003195,LYSA AUGUSTIN,May,31,2012,Instructional Salaries - Tempo,ADULT ED,$396.00
48,J.F. Drake State,90003196,CAROLYN AVRITTE,May,31,2012,Instructional Salaries - Tempo,UNRESTRICTED,$360.00
48,J.F. Drake State,90003197,NELSON E BARNES,May,31,2012,Instructional Salaries - Tempo,UNRESTRICTED,$675.00
48,J.F. Drake State,90003198,BEN BATTLE,May,31,2012,Instructional Salaries - Regul,UNRESTRICTED,"$5,306.36"
48,J.F. Drake State,90003199,CHARLOTTE KATHRYN BAUCOM,May,31,2012,Instructional Salaries - Tempo,UNRESTRICTED,"$1,462.50"
48,J.F. Drake State,90003200,ANGELA NICOLE BELL,May,31,2012,Instructional Salaries - Regul,UNRESTRICTED,"$5,520.36"
48,J.F. Drake State,90003202,PATRICE BIVINS,May,31,2012,Support Personnel Salaries - S,STUDENT SUPPORT SERVICES,"$1,889.83"
48,J.F. Drake State,90003203,CHERYL BRAWLEY-KELLY,May,31,2012,Instructional Salaries - Tempo,UNRESTRICTED,"$1,530.00"
48,J.F. Drake State,90003204,LASHONDA D BROWN,May,31,2012,Instructional Salaries - Tempo,UNRESTRICTED,$337.50
48,J.F. Drake State,90003205,BRUCE A BULLUCK,May,31,2012,Other Professional Salaries -,UNRESTRICTED,"$5,833.33"
48,J.F. Drake State,90003206,KHALILAH BURTON,May,31,2012,Instructional Salaries - Tempo,UNRESTRICTED,"$1,125.00"
48,J.F. Drake State,90003207,LISA G BURTON,May,31,2012,Other Professional Salaries -,UNRESTRICTED,"$4,166.00"
48,J.F. Drake State,90003208,DERICK R CARPENAY,May,31,2012,Instructional Salaries - Tempo,UNRESTRICTED,$787.50
48,J.F. Drake State,90003209,KEMBA CHAMBERS,May,31,2012,Other Professional Salaries -,UNRESTRICTED,"$7,360.42"
48,J.F. Drake State,90003210,KATIE E CHANCE,May,31,2012,Support Personnel Salaries - S,UNRESTRICTED,"$2,485.42"
48,J.F. Drake State,90003211,ROGER CHEN,May,31,2012,Instructional Salaries - Tempo,UNRESTRICTED,$225.00
48,J.F. Drake State,90003211,ROGER CHEN,May,31,2012,Hourly Wages,NAT'L SCIENCE FOUNDATION,"$1,020.00"
48,J.F. Drake State,90003212,ADAM CLARK,May,31,2012,Instructional Salaries - Regul,UNRESTRICTED,"$5,082.64"
48,J.F. Drake State,90003214,CARLA R CLIFT,May,31,2012,Other Professional Salaries -,UNRESTRICTED,"$5,609.75"
48,J.F. Drake State,90003215,MONIQUE C COSBY,May,31,2012,Support Personnel Salaries - S,UNRESTRICTED,"$3,303.17"
48,J.F. Drake State,90003216,REGINA LYNNE CRAWFORD,May,31,2012,Support Personnel Salaries - S,UNRESTRICTED,"$3,079.83"
48,J.F. Drake State,90003217,DEIONE L CRUTCHER,May,31,2012,Hourly Wages,ADULT ED,$988.00
48,J.F. Drake State,90003218,MATTIE D DAVIS,May,31,2012,Instructional Salaries - Regul,UNRESTRICTED,"$6,641.88"
48,J.F. Drake State,90003218,MATTIE D DAVIS,May,31,2012,Other Staff Benefits,UNRESTRICTED,$11.25
48,J.F. Drake State,90003219,MARLO DRAKE,May,31,2012,Support Personnel Salaries - S,UNRESTRICTED,"$2,421.56"
48,J.F. Drake State,90003219,MARLO DRAKE,May,31,2012,Support Personnel Salaries - S,TITLE III,$807.19
48,J.F. Drake State,90003221,GABRIELE DUNSEITH,May,31,2012,Instructional Salaries - Tempo,UNRESTRICTED,$330.00
48,J.F. Drake State,90003222,VERNESSA M EDWARDS,May,31,2012,Instructional Salaries - Tempo,UNRESTRICTED,$562.50
48,J.F. Drake State,90003223,CHRISTIANA A OPARA EGBUJO,May,31,2012,Instructional Salaries - Tempo,UNRESTRICTED,"$1,620.00"
48,J.F. Drake State,90003224,RONALD E EGSON,May,31,2012,Instructional Salaries - Tempo,UNRESTRICTED,"$2,034.50"
48,J.F. Drake State,90003224,RONALD E EGSON,May,31,2012,Support Personnel Salaries - S,CAREER COACHES,"$2,336.00"
48,J.F. Drake State,90003225,ROSELINE C ELIKE,May,31,2012,Instructional Salaries - Tempo,UNRESTRICTED,"$1,680.00"
48,J.F. Drake State,90003226,AVA D FARR,May,31,2012,Instructional Salaries - Regul,,"$4,861.52"
48,J.F. Drake State,90003227,GAIL E FISCH,May,31,2012,Instructional Salaries - Regul,ADULT ED,"$2,687.50"
48,J.F. Drake State,90003228,EDWIN T FORBES,May,31,2012,Instructional Salaries - Regul,UNRESTRICTED,"$4,062.58"
48,J.F. Drake State,90003229,HORACE L FRANKLIN JR,May,31,2012,Instructional Salaries - Regul,UNRESTRICTED,"$4,972.00"
48,J.F. Drake State,90003229,HORACE L FRANKLIN JR,May,31,2012,Instructional Salaries - Tempo,UNRESTRICTED,$337.50
48,J.F. Drake State,90003230,MATTIE B FREEMAN,May,31,2012,Instructional Salaries - Tempo,UNRESTRICTED,"$2,100.00"
48,J.F. Drake State,90003231,ALEXANDREA L FRYE,May,31,2012,Other Professional Salaries -,TITLE III,"$3,000.00"
48,J.F. Drake State,90003232,WENDY F GANNON,May,31,2012,Instructional Salaries - Tempo,,"$1,012.50"
48,J.F. Drake State,90003233,BONNIE GARRETT,May,31,2012,Instructional Salaries - Tempo,UNRESTRICTED,"$1,125.00"
48,J.F. Drake State,90003234,DENISE CLEOSHI GAYMON,May,31,2012,Support Personnel Salaries - S,CAREER COACHES,"$2,336.00"
48,J.F. Drake State,90003235,SYMMETRIS K GOHANNA,May,31,2012,Instructional Salaries - Regul,UNRESTRICTED,"$4,367.92"
48,J.F. Drake State,90003236,LARDELL GOODLOE JR,May,31,2012,Instructional Salaries - Regul,UNRESTRICTED,"$5,009.88"
48,J.F. Drake State,90003236,LARDELL GOODLOE JR,May,31,2012,Instructional Salaries - Tempo,SESP,$900.00
48,J.F. Drake State,90003237,TIMOTHY RYAN GREEN,May,31,2012,Instructional Salaries - Regul,UNRESTRICTED,"$3,972.12"
48,J.F. Drake State,90003237,TIMOTHY RYAN GREEN,May,31,2012,Instructional Salaries - Tempo,UNRESTRICTED,$225.00
48,J.F. Drake State,90003238,VICKIE E GREEN,May,31,2012,Instructional Salaries - Regul,,"$4,972.00"
48,J.F. Drake State,90003239,ROBERT N GRISSIM,May,31,2012,Instructional Salaries - Regul,UNRESTRICTED,"$3,646.17"
48,J.F. Drake State,90003240,CHARLES GROSS,May,31,2012,Instructional Salaries - Tempo,UNRESTRICTED,$675.00
48,J.F. Drake State,90003241,SAMUEL V GUISHARD,May,31,2012,Instructional Salaries - Tempo,UNRESTRICTED,"$1,687.50"
48,J.F. Drake State,90003242,MANELZA CRAWFORD HAMBRICK,May,31,2012,Support Personnel Salaries - S,UNRESTRICTED,"$2,485.42"
48,J.F. Drake State,90003243,AUNDREA D HANSON,May,31,2012,Instructional Salaries - Tempo,UNRESTRICTED,$337.50
48,J.F. Drake State,90003244,KATRINA J HARRIS,May,31,2012,Support Personnel Salaries - S,UNRESTRICTED,$955.90
48,J.F. Drake State,90003244,KATRINA J HARRIS,May,31,2012,Support Personnel Salaries - S,TITLE III,"$2,867.69"
48,J.F. Drake State,90003245,HENRY C HAWKINS,May,31,2012,Instructional Salaries - Tempo,SESP,"$1,500.00"
48,J.F. Drake State,90003246,CAROLYN HENDERSON,May,31,2012,Instructional Salaries - Tempo,UNRESTRICTED,$337.50
48,J.F. Drake State,90003246,CAROLYN HENDERSON,May,31,2012,Instructional Salaries - Regul,UNRESTRICTED,"$4,062.58"
48,J.F. Drake State,90003247,DEXTER R HENRY,May,31,2012,Instructional Salaries - Regul,UNRESTRICTED,"$6,416.88"
48,J.F. Drake State,90003247,DEXTER R HENRY,May,31,2012,Instructional Salaries - Tempo,SESP,$480.00
48,J.F. Drake State,90003248,KARL W HENRY SR,May,31,2012,Instructional Salaries - Regul,UNRESTRICTED,"$7,261.64"
48,J.F. Drake State,90003249,ISSAC D HINES,May,31,2012,Instructional Salaries - Tempo,UNRESTRICTED,$675.00
48,J.F. Drake State,90003249,ISSAC D HINES,May,31,2012,Hourly Wages,NAT'L SCIENCE FOUNDATION,$420.00
48,J.F. Drake State,90003250,DORIS HINTON,May,31,2012,Instructional Salaries - Regul,UNRESTRICTED,"$5,416.76"
48,J.F. Drake State,90003251,KHALID HOLMES,May,31,2012,Instructional Salaries - Regul,UNRESTRICTED,"$4,230.76"
48,J.F. Drake State,90003251,KHALID HOLMES,May,31,2012,Instructional Salaries - Tempo,UNRESTRICTED,$450.00
48,J.F. Drake State,90003252,TERESA HOOPER,May,31,2012,Instructional Salaries - Tempo,UNRESTRICTED,$240.00
48,J.F. Drake State,90003253,CANDICE HOWELL,May,31,2012,Instructional Salaries - Tempo,UNRESTRICTED,$337.50
48,J.F. Drake State,90003254,PATRICIA HUGHES,May,31,2012,Administrative Salaries- Sched,UNRESTRICTED,"$4,872.78"
48,J.F. Drake State,90003256,JAN J HYMAN,May,31,2012,Support Personnel Salaries - S,,"$3,154.50"
48,J.F. Drake State,90003258,NEOKA JANE IVEY,May,31,2012,Support Personnel Salaries - S,UNRESTRICTED,"$1,889.83"
